NUMERO_MANDATO;RIGA_MANDATO;QUIET;IMPORTO_RIGA;IMPORTO_MANDATO;BENEFICIARIO;CIG;DATA_MANDATO;CAPITOLO;ARTICOLO;NUMERO_IMPEGNO;TITOLO;DESCR_TITOLO;LIVELLO_II;DESCR_LIVELLO_II;LIVELLO_III;DESCR_LIVELLO_III;LIVELLO_IV;DESCR_LIVELLO_IV;LIVELLO_V;DESCR_LIVELLO_V;DATA_PAG_EFF
2938;1;9999999;25;50;COMUNE DI PREGANZIOL - ECONOMO PEZZATO ELENA; ;03/10/2023;410;0;587;1;Spese correnti;3;Acquisto di beni e servizi;1;Acquisto di beni;2;Altri beni di consumo;999;Altri beni e materiali di consumo n.a.c.;06/10/2023
2938;2;9999999;25;50;COMUNE DI PREGANZIOL - ECONOMO PEZZATO ELENA; ;03/10/2023;410;0;587;1;Spese correnti;3;Acquisto di beni e servizi;1;Acquisto di beni;2;Altri beni di consumo;999;Altri beni e materiali di consumo n.a.c.;06/10/2023
2940;1;9999999;5;5;COMUNE DI PREGANZIOL - ECONOMO PEZZATO ELENA; ;03/10/2023;1147;1;618;1;Spese correnti;3;Acquisto di beni e servizi;1;Acquisto di beni;2;Altri beni di consumo;999;Altri beni e materiali di consumo n.a.c.;06/10/2023
2941;1;9999999;5,15;5,15;COMUNE DI PREGANZIOL - ECONOMO PEZZATO ELENA; ;03/10/2023;1147;2;619;1;Spese correnti;3;Acquisto di beni e servizi;1;Acquisto di beni;2;Altri beni di consumo;999;Altri beni e materiali di consumo n.a.c.;06/10/2023
2942;1;9999999;70;70;COMUNE DI PREGANZIOL - ECONOMO PEZZATO ELENA; ;03/10/2023;1300;0;620;1;Spese correnti;3;Acquisto di beni e servizi;1;Acquisto di beni;2;Altri beni di consumo;999;Altri beni e materiali di consumo n.a.c.;06/10/2023
2943;1;9999999;51,4;51,4;COMUNE DI PREGANZIOL - ECONOMO PEZZATO ELENA; ;03/10/2023;1793;0;625;1;Spese correnti;3;Acquisto di beni e servizi;2;Acquisto di servizi;16;Servizi amministrativi;2;Spese postali;06/10/2023
2946;1;9999999;417,76;417,76;KUWAIT PETROLEUM ITALIA SPA;Z9C36EAB07;03/10/2023;1307;0;270;1;Spese correnti;3;Acquisto di beni e servizi;1;Acquisto di beni;2;Altri beni di consumo;2;Carburanti, combustibili e lubrificanti;06/10/2023
2947;1;9999999;351,98;351,98;KUWAIT PETROLEUM ITALIA SPA;Z9C36EAB07;03/10/2023;2197;0;271;1;Spese correnti;3;Acquisto di beni e servizi;1;Acquisto di beni;2;Altri beni di consumo;2;Carburanti, combustibili e lubrificanti;06/10/2023
2948;1;9999999;353,8;353,8;INIZIATIVE UNINDUSTRIA SRL; ;03/10/2023;8204;4;758;1;Spese correnti;3;Acquisto di beni e servizi;2;Acquisto di servizi;99;Altri servizi;999;Altri servizi diversi n.a.c.;06/10/2023
2949;1;9999999;854;854;INIZIATIVE UNINDUSTRIA SRL; ;03/10/2023;8204;4;758;1;Spese correnti;3;Acquisto di beni e servizi;2;Acquisto di servizi;99;Altri servizi;999;Altri servizi diversi n.a.c.;06/10/2023
2950;1;9999999;7.500,00;7.500,00;STUDIO MARKETING CITY DI ROSARIO CARDILLO;Z8535E5212;03/10/2023;9441;0;452;1;Spese correnti;3;Acquisto di beni e servizi;2;Acquisto di servizi;11;Prestazioni professionali e specialistiche;999;Altre prestazioni professionali e specialistiche n.a.c.;06/10/2023
2951;1;9999999;-88;88;AREA DI SERVIZIO ENI DI CIMBRO MASSIMILIANO;ZB13AB5473;03/10/2023;1802;0;424;1;Spese correnti;3;Acquisto di beni e servizi;2;Acquisto di servizi;9;Manutenzione ordinaria e riparazioni;1;Manutenzione ordinaria e riparazioni di mezzi di trasporto ad uso civile, di sicurezza e ordine pubblico;06/10/2023
2951;2;9999999;88;88;AREA DI SERVIZIO ENI DI CIMBRO MASSIMILIANO;ZB13AB5473;03/10/2023;1802;0;424;1;Spese correnti;3;Acquisto di beni e servizi;2;Acquisto di servizi;9;Manutenzione ordinaria e riparazioni;1;Manutenzione ordinaria e riparazioni di mezzi di trasporto ad uso civile, di sicurezza e ordine pubblico;06/10/2023
2951;3;9999999;88;88;AREA DI SERVIZIO ENI DI CIMBRO MASSIMILIANO;ZB13AB5473;03/10/2023;1802;0;424;1;Spese correnti;3;Acquisto di beni e servizi;2;Acquisto di servizi;9;Manutenzione ordinaria e riparazioni;1;Manutenzione ordinaria e riparazioni di mezzi di trasporto ad uso civile, di sicurezza e ordine pubblico;06/10/2023
2952;1;9999999;4.162,86;4.162,86;OMESSO NOMINATIVO NEL RISPETTO DELLA NORMATIVA SULLA PROTEZIONE DATI PERSONALI; ;03/10/2023;8361;2;782;1;Spese correnti;4;Trasferimenti correnti;4;Trasferimenti correnti a Istituzioni Sociali Private;1;Trasferimenti correnti a Istituzioni Sociali Private;1;Trasferimenti correnti a Istituzioni Sociali Private;06/10/2023
2953;1;9999999;372,98;372,98;OMESSO NOMINATIVO NEL RISPETTO DELLA NORMATIVA SULLA PROTEZIONE DATI PERSONALI; ;03/10/2023;8361;2;785;1;Spese correnti;4;Trasferimenti correnti;4;Trasferimenti correnti a Istituzioni Sociali Private;1;Trasferimenti correnti a Istituzioni Sociali Private;1;Trasferimenti correnti a Istituzioni Sociali Private;06/10/2023
2954;1;9999999;1.565,54;1.565,54;OMESSO NOMINATIVO NEL RISPETTO DELLA NORMATIVA SULLA PROTEZIONE DATI PERSONALI; ;03/10/2023;8361;2;783;1;Spese correnti;4;Trasferimenti correnti;4;Trasferimenti correnti a Istituzioni Sociali Private;1;Trasferimenti correnti a Istituzioni Sociali Private;1;Trasferimenti correnti a Istituzioni Sociali Private;06/10/2023
2955;1;9999999;1.364,51;1.364,51;OMESSO NOMINATIVO NEL RISPETTO DELLA NORMATIVA SULLA PROTEZIONE DATI PERSONALI; ;03/10/2023;8361;2;784;1;Spese correnti;4;Trasferimenti correnti;4;Trasferimenti correnti a Istituzioni Sociali Private;1;Trasferimenti correnti a Istituzioni Sociali Private;1;Trasferimenti correnti a Istituzioni Sociali Private;06/10/2023
2956;1;9999999;134,2;134,2;OMESSO NOMINATIVO NEL RISPETTO DELLA NORMATIVA SULLA PROTEZIONE DATI PERSONALI;ZAC3C7FCEE;03/10/2023;1798;0;771;1;Spese correnti;3;Acquisto di beni e servizi;2;Acquisto di servizi;19;Servizi informatici e di telecomunicazioni;1;Gestione e manutenzione applicazioni;06/10/2023
2957;1;9999999;2.378,32;2.378,32;GA SERVICE S.R.L.;Z863C35F07;03/10/2023;10796;0;694;2;Spese in conto capitale;2;Investimenti fissi lordi e acquisto di terreni;1;Beni materiali;7;Hardware;3;Periferiche;06/10/2023
2958;1;9999999;3.999,99;3.999,99;PULITORI ED AFFINI SPA;87752258BF;03/10/2023;1794;0;656;1;Spese correnti;3;Acquisto di beni e servizi;2;Acquisto di servizi;13;Servizi ausiliari per il funzionamento dell'ente;2;Servizi di pulizia e lavanderia;06/10/2023
2959;1;9999999;5,66;292,54;ENEL ENERGIA SPA;9619395FDC;03/10/2023;5930;0;481;1;Spese correnti;3;Acquisto di beni e servizi;2;Acquisto di servizi;5;Utenze e canoni;4;Energia elettrica;06/10/2023
2959;2;9999999;6,44;292,54;ENEL ENERGIA SPA;9619395FDC;03/10/2023;5930;0;481;1;Spese correnti;3;Acquisto di beni e servizi;2;Acquisto di servizi;5;Utenze e canoni;4;Energia elettrica;06/10/2023
2959;3;9999999;130,16;292,54;ENEL ENERGIA SPA;9619395FDC;03/10/2023;5930;0;481;1;Spese correnti;3;Acquisto di beni e servizi;2;Acquisto di servizi;5;Utenze e canoni;4;Energia elettrica;06/10/2023
2959;4;9999999;150,28;292,54;ENEL ENERGIA SPA;9619395FDC;03/10/2023;5930;0;481;1;Spese correnti;3;Acquisto di beni e servizi;2;Acquisto di servizi;5;Utenze e canoni;4;Energia elettrica;06/10/2023
2960;1;9999999;16.738,86;16.738,86;TECNOHABITAT INGEGNERIA;95173616C0;03/10/2023;15930;0;1203;2;Spese in conto capitale;2;Investimenti fissi lordi e acquisto di terreni;3;Beni immateriali;5;Incarichi professionali per la realizzazione di investimenti;1;Incarichi professionali per la realizzazione di investimenti;06/10/2023
2961;1;9999999;432,18;432,18;OMESSO NOMINATIVO NEL RISPETTO DELLA NORMATIVA SULLA PROTEZIONE DATI PERSONALI; ;03/10/2023;8361;0;1316;1;Spese correnti;4;Trasferimenti correnti;2;Trasferimenti correnti a Famiglie;2;Interventi assistenziali;999;Altri assegni e sussidi assistenziali;06/10/2023
2962;1;9999999;663,24;663,24;OMESSO NOMINATIVO NEL RISPETTO DELLA NORMATIVA SULLA PROTEZIONE DATI PERSONALI; ;03/10/2023;8361;0;471;1;Spese correnti;4;Trasferimenti correnti;2;Trasferimenti correnti a Famiglie;2;Interventi assistenziali;999;Altri assegni e sussidi assistenziali;06/10/2023
2963;1;9999999;250;250;ANAC;98756181C9;06/10/2023;15925;3;1374;2;Spese in conto capitale;2;Investimenti fissi lordi e acquisto di terreni;1;Beni materiali;9;Beni immobili;12;Infrastrutture stradali;10/10/2023
2964;1;9999999;35;35;ANAC;9967951562;06/10/2023;15905;16;578;2;Spese in conto capitale;2;Investimenti fissi lordi e acquisto di terreni;1;Beni materiali;9;Beni immobili;12;Infrastrutture stradali;10/10/2023
2965;1;9999999;630,93;630,93;POSTE ITALIANE SPA;ZCE3502180;06/10/2023;1793;0;288;1;Spese correnti;3;Acquisto di beni e servizi;2;Acquisto di servizi;16;Servizi amministrativi;2;Spese postali;10/10/2023
2967;1;9999999;7.000,00;7.000,00;F.LLI LANDO SPA;ZEE3C7E685;06/10/2023;8170;0;769;1;Spese correnti;3;Acquisto di beni e servizi;1;Acquisto di beni;2;Altri beni di consumo;11;Generi alimentari;10/10/2023
2968;1;9999999;238,8;238,8;ANAC;995130088A;06/10/2023;15930;3;637;2;Spese in conto capitale;2;Investimenti fissi lordi e acquisto di terreni;1;Beni materiali;9;Beni immobili;12;Infrastrutture stradali;10/10/2023
2969;1;9999999;11,2;11,2;ANAC;995130088A;06/10/2023;15930;1;638;2;Spese in conto capitale;2;Investimenti fissi lordi e acquisto di terreni;1;Beni materiali;9;Beni immobili;12;Infrastrutture stradali;10/10/2023
2970;1;9999999;1.237,67;1.237,67;LEGGERE S.R.L.;Z673A59373;06/10/2023;4506;0;478;1;Spese correnti;3;Acquisto di beni e servizi;1;Acquisto di beni;1;Giornali, riviste e pubblicazioni;2;Pubblicazioni;10/10/2023
2975;1;9999999;35;35;ANAC;A00D1452A9;09/10/2023;13452;1;736;2;Spese in conto capitale;2;Investimenti fissi lordi e acquisto di terreni;1;Beni materiali;9;Beni immobili;3;Fabbricati ad uso scolastico;10/10/2023
2976;1;9999999;35;35;ANAC; ;09/10/2023;11316;0;1370;2;Spese in conto capitale;2;Investimenti fissi lordi e acquisto di terreni;1;Beni materiali;9;Beni immobili;19;Fabbricati ad uso strumentale;10/10/2023
2977;1;9999999;260;260;OMESSO NOMINATIVO NEL RISPETTO DELLA NORMATIVA SULLA PROTEZIONE DATI PERSONALI; ;09/10/2023;8361;0;844;1;Spese correnti;4;Trasferimenti correnti;2;Trasferimenti correnti a Famiglie;2;Interventi assistenziali;999;Altri assegni e sussidi assistenziali;11/10/2023
2978;1;9999999;172,84;172,84;BI ESSE SPA;Z7B398A8D1;09/10/2023;2910;0;159;1;Spese correnti;3;Acquisto di beni e servizi;1;Acquisto di beni;2;Altri beni di consumo;999;Altri beni e materiali di consumo n.a.c.;11/10/2023
2979;1;9999999;-15,33;464,52;LEGGERE S.R.L.;Z673A59373;09/10/2023;4506;0;478;1;Spese correnti;3;Acquisto di beni e servizi;1;Acquisto di beni;1;Giornali, riviste e pubblicazioni;2;Pubblicazioni;11/10/2023
2979;2;9999999;479,85;464,52;LEGGERE S.R.L.;Z673A59373;09/10/2023;4506;0;478;1;Spese correnti;3;Acquisto di beni e servizi;1;Acquisto di beni;1;Giornali, riviste e pubblicazioni;2;Pubblicazioni;11/10/2023
2980;1;9999999;1.389,00;1.389,00;GIES S.R.L.;Z7934ED2CD;10/10/2023;810;0;200;1;Spese correnti;3;Acquisto di beni e servizi;2;Acquisto di servizi;99;Altri servizi;999;Altri servizi diversi n.a.c.;13/10/2023
2981;1;9999999;305,58;305,58;AGENZIA DELLE ENTRATE DI TREVISO;Z7934ED2CD;10/10/2023;810;0;200;1;Spese correnti;3;Acquisto di beni e servizi;2;Acquisto di servizi;99;Altri servizi;999;Altri servizi diversi n.a.c.;15/11/2023
2982;1;9999999;2.105,58;2.105,58;ASSOCIAZIONE COMUNI MARCA TREVIGIANA; ;10/10/2023;4261;2;1019;1;Spese correnti;3;Acquisto di beni e servizi;2;Acquisto di servizi;99;Altri servizi;999;Altri servizi diversi n.a.c.;13/10/2023
2983;1;9999999;80;80;EDILVERDE S.R.L.;Z82398837C;10/10/2023;1147;1;149;1;Spese correnti;3;Acquisto di beni e servizi;1;Acquisto di beni;2;Altri beni di consumo;999;Altri beni e materiali di consumo n.a.c.;13/10/2023
2984;1;9999999;80,78;80,78;EDILVERDE S.R.L.;Z82398837C;10/10/2023;1300;0;150;1;Spese correnti;3;Acquisto di beni e servizi;1;Acquisto di beni;2;Altri beni di consumo;999;Altri beni e materiali di consumo n.a.c.;13/10/2023
2985;1;9999999;80;80;EDILVERDE S.R.L.;Z82398837C;10/10/2023;5620;2;148;1;Spese correnti;3;Acquisto di beni e servizi;1;Acquisto di beni;2;Altri beni di consumo;999;Altri beni e materiali di consumo n.a.c.;13/10/2023
2986;1;9999999;254,25;254,25;GUIDOLIN SRL;Z9C3C52DDB;10/10/2023;13215;0;519;2;Spese in conto capitale;2;Investimenti fissi lordi e acquisto di terreni;1;Beni materiali;9;Beni immobili;3;Fabbricati ad uso scolastico;13/10/2023
2987;1;9999999;1.331,75;1.331,75;GUIDOLIN SRL;Z9C3C52DDB;10/10/2023;13217;0;996;2;Spese in conto capitale;2;Investimenti fissi lordi e acquisto di terreni;1;Beni materiali;9;Beni immobili;3;Fabbricati ad uso scolastico;13/10/2023
2988;1;9999999;680,63;680,63;AUTOFFICINA B.M.T. CARS & TRUCKS SRL;ZE83A04208;11/10/2023;1340;1;284;1;Spese correnti;3;Acquisto di beni e servizi;2;Acquisto di servizi;9;Manutenzione ordinaria e riparazioni;1;Manutenzione ordinaria e riparazioni di mezzi di trasporto ad uso civile, di sicurezza e ordine pubblico;13/10/2023
2989;1;9999999;95,04;95,04;AUTOFFICINA B.M.T. CARS & TRUCKS SRL;ZE83A04208;11/10/2023;2422;1;283;1;Spese correnti;3;Acquisto di beni e servizi;2;Acquisto di servizi;9;Manutenzione ordinaria e riparazioni;1;Manutenzione ordinaria e riparazioni di mezzi di trasporto ad uso civile, di sicurezza e ordine pubblico;13/10/2023
2990;1;9999999;475,9;475,9;MALASPINA GIANLUCA;ZF32C9A191;11/10/2023;6276;0;765;1;Spese correnti;3;Acquisto di beni e servizi;2;Acquisto di servizi;11;Prestazioni professionali e specialistiche;999;Altre prestazioni professionali e specialistiche n.a.c.;13/10/2023
2991;1;9999999;416,42;416,42;MALGARETTO SARA;ZF32C9A191;11/10/2023;6276;0;766;1;Spese correnti;3;Acquisto di beni e servizi;2;Acquisto di servizi;11;Prestazioni professionali e specialistiche;999;Altre prestazioni professionali e specialistiche n.a.c.;13/10/2023
2992;1;9999999;297,44;297,44;RAMO GIANLUCA;ZF32C9A191;11/10/2023;6276;0;767;1;Spese correnti;3;Acquisto di beni e servizi;2;Acquisto di servizi;11;Prestazioni professionali e specialistiche;999;Altre prestazioni professionali e specialistiche n.a.c.;13/10/2023
2993;1;9999999;297,44;297,44;MIOTELLO MICHELE;ZF32C9A191;11/10/2023;6276;0;768;1;Spese correnti;3;Acquisto di beni e servizi;2;Acquisto di servizi;11;Prestazioni professionali e specialistiche;999;Altre prestazioni professionali e specialistiche n.a.c.;13/10/2023
2994;1;9999999;104,7;104,7;OMESSO NOMINATIVO NEL RISPETTO DELLA NORMATIVA SULLA PROTEZIONE DATI PERSONALI;ZF32C9A191;11/10/2023;6276;0;984;1;Spese correnti;3;Acquisto di beni e servizi;2;Acquisto di servizi;11;Prestazioni professionali e specialistiche;999;Altre prestazioni professionali e specialistiche n.a.c.;13/10/2023
2995;1;9999999;65,44;65,44;OMESSO NOMINATIVO NEL RISPETTO DELLA NORMATIVA SULLA PROTEZIONE DATI PERSONALI;ZF32C9A191;11/10/2023;6276;0;985;1;Spese correnti;3;Acquisto di beni e servizi;2;Acquisto di servizi;11;Prestazioni professionali e specialistiche;999;Altre prestazioni professionali e specialistiche n.a.c.;13/10/2023
2996;1;9999999;424,8;424,8;AUTOFFICINA B.M.T. CARS & TRUCKS SRL;ZE83A04208;11/10/2023;8210;1;286;1;Spese correnti;3;Acquisto di beni e servizi;2;Acquisto di servizi;9;Manutenzione ordinaria e riparazioni;11;Manutenzione ordinaria e riparazioni di altri beni materiali;13/10/2023
2997;1;9999999;317,2;317,2;STUDIO A.S.A. DEI DOTTORI SERENA E TOMASI;ZDA3C4FED6;11/10/2023;8674;0;745;1;Spese correnti;3;Acquisto di beni e servizi;2;Acquisto di servizi;15;Contratti di servizio pubblico;999;Altre spese per contratti di servizio pubblico;13/10/2023
2999;1;9999999;400;400;LAMPS PREMIAZIONI di MAZZUIA MICHELE;Z8A3C6860D;11/10/2023;5180;0;762;1;Spese correnti;3;Acquisto di beni e servizi;1;Acquisto di beni;2;Altri beni di consumo;1;Carta, cancelleria e stampati;13/10/2023
3000;1;9999999;793;793;SOC. IMM. MURETTO S.N.C. DI CRESCENTE V. & C.; ;11/10/2023;1812;0;327;1;Spese correnti;3;Acquisto di beni e servizi;2;Acquisto di servizi;7;Utilizzo di beni di terzi;1;Locazione di beni immobili;13/10/2023
3001;1;9999999;798,23;798,23;AGENZIA DELLE ENTRATE DI TREVISO; ;12/10/2023;1904;0;850;1;Spese correnti;10;Altre spese correnti;3;Versamenti IVA a debito;1;Versamenti IVA a debito per le gestioni commerciali;1;Versamenti IVA a debito per le gestioni commerciali;16/10/2023
3002;1;9999999;4.670,00;4.670,00;IFAF SPA - IMPRESA FACCHETTI ADOLFO E FIGLI;97606539A8;12/10/2023;15905;8;1212;2;Spese in conto capitale;2;Investimenti fissi lordi e acquisto di terreni;1;Beni materiali;9;Beni immobili;12;Infrastrutture stradali;16/10/2023
3003;1;9999999;225,44;225,44;IFAF SPA - IMPRESA FACCHETTI ADOLFO E FIGLI;97606539A8;12/10/2023;15905;14;1213;2;Spese in conto capitale;2;Investimenti fissi lordi e acquisto di terreni;1;Beni materiali;9;Beni immobili;12;Infrastrutture stradali;16/10/2023
3004;1;9999999;1.221,89;1.221,89;IFAF SPA - IMPRESA FACCHETTI ADOLFO E FIGLI;97606539A8;12/10/2023;15905;17;1214;2;Spese in conto capitale;2;Investimenti fissi lordi e acquisto di terreni;1;Beni materiali;9;Beni immobili;12;Infrastrutture stradali;16/10/2023
3005;1;9999999;5.047,56;5.047,56;IFAF SPA - IMPRESA FACCHETTI ADOLFO E FIGLI;97606539A8;12/10/2023;15905;17;1214;2;Spese in conto capitale;2;Investimenti fissi lordi e acquisto di terreni;1;Beni materiali;9;Beni immobili;12;Infrastrutture stradali;16/10/2023
3007;1;9999999;11.294,41;11.294,41;AMMINISTRATORI COMUNALI; ;16/10/2023;74;0;141;1;Spese correnti;3;Acquisto di beni e servizi;2;Acquisto di servizi;1;Organi e incarichi istituzionali dell'amministrazione;1;Organi istituzionali dell'amministrazione - Indennità;25/10/2023
3066;1;9999999;33,4;33,4;DIPENDENTI DIVERSI (MISSIONI E RIMBORSO SPESE); ;16/10/2023;1786;0;211;1;Spese correnti;3;Acquisto di beni e servizi;2;Acquisto di servizi;2;Organizzazione eventi, pubblicita` e servizi per trasferta;1;Rimborso per viaggio e trasloco;25/10/2023
3105;1;9999999;3,72;3,72;DOLOMITI ENERGIA SPA;964666689C;16/10/2023;1346;0;499;1;Spese correnti;3;Acquisto di beni e servizi;2;Acquisto di servizi;5;Utenze e canoni;6;Gas;18/10/2023
3106;1;9999999;2,85;76,84;DOLOMITI ENERGIA SPA;964666689C;16/10/2023;1801;0;489;1;Spese correnti;3;Acquisto di beni e servizi;2;Acquisto di servizi;5;Utenze e canoni;6;Gas;18/10/2023
3106;2;9999999;2,91;76,84;DOLOMITI ENERGIA SPA;964666689C;16/10/2023;1801;0;489;1;Spese correnti;3;Acquisto di beni e servizi;2;Acquisto di servizi;5;Utenze e canoni;6;Gas;18/10/2023
3106;3;9999999;2,92;76,84;DOLOMITI ENERGIA SPA;964666689C;16/10/2023;1801;0;489;1;Spese correnti;3;Acquisto di beni e servizi;2;Acquisto di servizi;5;Utenze e canoni;6;Gas;18/10/2023
3106;4;9999999;3,74;76,84;DOLOMITI ENERGIA SPA;964666689C;16/10/2023;1801;0;489;1;Spese correnti;3;Acquisto di beni e servizi;2;Acquisto di servizi;5;Utenze e canoni;6;Gas;18/10/2023
3106;5;9999999;29,98;76,84;DOLOMITI ENERGIA SPA;964666689C;16/10/2023;1801;0;489;1;Spese correnti;3;Acquisto di beni e servizi;2;Acquisto di servizi;5;Utenze e canoni;6;Gas;18/10/2023
3106;6;9999999;34,44;76,84;DOLOMITI ENERGIA SPA;964666689C;16/10/2023;1801;0;489;1;Spese correnti;3;Acquisto di beni e servizi;2;Acquisto di servizi;5;Utenze e canoni;6;Gas;18/10/2023
3107;1;9999999;96,22;96,22;DOLOMITI ENERGIA SPA;964666689C;16/10/2023;2790;0;490;1;Spese correnti;3;Acquisto di beni e servizi;2;Acquisto di servizi;5;Utenze e canoni;6;Gas;18/10/2023
3108;1;9999999;20,51;20,51;DOLOMITI ENERGIA SPA;964666689C;16/10/2023;2792;0;491;1;Spese correnti;3;Acquisto di beni e servizi;2;Acquisto di servizi;5;Utenze e canoni;6;Gas;18/10/2023
3109;1;9999999;16,52;238,68;DOLOMITI ENERGIA SPA;964666689C;16/10/2023;2973;0;492;1;Spese correnti;3;Acquisto di beni e servizi;2;Acquisto di servizi;5;Utenze e canoni;6;Gas;18/10/2023
3109;2;9999999;31,94;238,68;DOLOMITI ENERGIA SPA;964666689C;16/10/2023;2973;0;492;1;Spese correnti;3;Acquisto di beni e servizi;2;Acquisto di servizi;5;Utenze e canoni;6;Gas;18/10/2023
3109;3;9999999;93,09;238,68;DOLOMITI ENERGIA SPA;964666689C;16/10/2023;2973;0;492;1;Spese correnti;3;Acquisto di beni e servizi;2;Acquisto di servizi;5;Utenze e canoni;6;Gas;18/10/2023
3109;4;9999999;97,13;238,68;DOLOMITI ENERGIA SPA;964666689C;16/10/2023;2973;0;492;1;Spese correnti;3;Acquisto di beni e servizi;2;Acquisto di servizi;5;Utenze e canoni;6;Gas;18/10/2023
3110;1;9999999;109,04;109,04;DOLOMITI ENERGIA SPA;964666689C;16/10/2023;4020;0;493;1;Spese correnti;3;Acquisto di beni e servizi;2;Acquisto di servizi;5;Utenze e canoni;6;Gas;18/10/2023
3111;1;9999999;40,98;40,98;DOLOMITI ENERGIA SPA;964666689C;16/10/2023;4527;0;502;1;Spese correnti;3;Acquisto di beni e servizi;2;Acquisto di servizi;5;Utenze e canoni;6;Gas;18/10/2023
3112;1;9999999;10,49;10,49;DOLOMITI ENERGIA SPA;964666689C;16/10/2023;4686;0;494;1;Spese correnti;3;Acquisto di beni e servizi;2;Acquisto di servizi;5;Utenze e canoni;6;Gas;18/10/2023
3113;1;9999999;2,5;60,82;DOLOMITI ENERGIA SPA;964666689C;16/10/2023;5050;0;501;1;Spese correnti;3;Acquisto di beni e servizi;2;Acquisto di servizi;5;Utenze e canoni;6;Gas;18/10/2023
3113;2;9999999;6,69;60,82;DOLOMITI ENERGIA SPA;964666689C;16/10/2023;5050;0;501;1;Spese correnti;3;Acquisto di beni e servizi;2;Acquisto di servizi;5;Utenze e canoni;6;Gas;18/10/2023
3113;3;9999999;17,89;60,82;DOLOMITI ENERGIA SPA;964666689C;16/10/2023;5050;0;501;1;Spese correnti;3;Acquisto di beni e servizi;2;Acquisto di servizi;5;Utenze e canoni;6;Gas;18/10/2023
3113;4;9999999;33,74;60,82;DOLOMITI ENERGIA SPA;964666689C;16/10/2023;5050;0;501;1;Spese correnti;3;Acquisto di beni e servizi;2;Acquisto di servizi;5;Utenze e canoni;6;Gas;18/10/2023
3114;1;9999999;2,92;2,92;DOLOMITI ENERGIA SPA;964666689C;16/10/2023;5051;0;495;1;Spese correnti;3;Acquisto di beni e servizi;2;Acquisto di servizi;5;Utenze e canoni;6;Gas;18/10/2023
3115;1;9999999;81,84;81,84;DOLOMITI ENERGIA SPA;964666689C;16/10/2023;6461;0;496;1;Spese correnti;3;Acquisto di beni e servizi;2;Acquisto di servizi;5;Utenze e canoni;6;Gas;18/10/2023
3116;1;9999999;2,92;2,92;DOLOMITI ENERGIA SPA;964666689C;16/10/2023;6647;0;497;1;Spese correnti;3;Acquisto di beni e servizi;2;Acquisto di servizi;5;Utenze e canoni;6;Gas;18/10/2023
3117;1;9999999;10.581,85;10.581,85;VERITAS  S.P.A.;Z0D3855C00;16/10/2023;7435;2;989;1;Spese correnti;3;Acquisto di beni e servizi;2;Acquisto di servizi;9;Manutenzione ordinaria e riparazioni;4;Manutenzione ordinaria e riparazioni di impianti e macchinari;18/10/2023
3118;1;9999999;13,67;77,81;DOLOMITI ENERGIA SPA;964666689C;16/10/2023;7552;1;500;1;Spese correnti;3;Acquisto di beni e servizi;2;Acquisto di servizi;5;Utenze e canoni;6;Gas;18/10/2023
3118;2;9999999;64,14;77,81;DOLOMITI ENERGIA SPA;964666689C;16/10/2023;7552;1;500;1;Spese correnti;3;Acquisto di beni e servizi;2;Acquisto di servizi;5;Utenze e canoni;6;Gas;18/10/2023
3119;1;9999999;0,38;0,38;AGENZIA DELLE ENTRATE-RISCOSSIONE; ;17/10/2023;2351;1;249;1;Spese correnti;3;Acquisto di beni e servizi;2;Acquisto di servizi;3;Aggi di riscossione;999;Altri aggi di riscossione n.a.c.;20/10/2023
3120;1;9999999;1,48;1,48;AGENZIA DELLE ENTRATE-RISCOSSIONE; ;17/10/2023;2351;1;249;1;Spese correnti;3;Acquisto di beni e servizi;2;Acquisto di servizi;3;Aggi di riscossione;999;Altri aggi di riscossione n.a.c.;20/10/2023
3121;1;9999999;4,9;4,9;AGENZIA DELLE ENTRATE-RISCOSSIONE; ;17/10/2023;2351;1;249;1;Spese correnti;3;Acquisto di beni e servizi;2;Acquisto di servizi;3;Aggi di riscossione;999;Altri aggi di riscossione n.a.c.;20/10/2023
3122;1;9999999;0,08;0,08;AGENZIA DELLE ENTRATE-RISCOSSIONE; ;17/10/2023;2351;1;249;1;Spese correnti;3;Acquisto di beni e servizi;2;Acquisto di servizi;3;Aggi di riscossione;999;Altri aggi di riscossione n.a.c.;20/10/2023
3123;1;9999999;1,69;1,69;AGENZIA DELLE ENTRATE-RISCOSSIONE; ;17/10/2023;2351;1;458;1;Spese correnti;3;Acquisto di beni e servizi;2;Acquisto di servizi;3;Aggi di riscossione;999;Altri aggi di riscossione n.a.c.;20/10/2023
3124;1;9999999;0,25;0,25;AGENZIA DELLE ENTRATE-RISCOSSIONE; ;17/10/2023;2351;1;292;1;Spese correnti;3;Acquisto di beni e servizi;2;Acquisto di servizi;3;Aggi di riscossione;999;Altri aggi di riscossione n.a.c.;20/10/2023
3125;1;9999999;1,75;1,75;AGENZIA DELLE ENTRATE-RISCOSSIONE; ;17/10/2023;2351;1;1531;1;Spese correnti;3;Acquisto di beni e servizi;2;Acquisto di servizi;3;Aggi di riscossione;999;Altri aggi di riscossione n.a.c.;20/10/2023
3126;1;9999999;0,28;0,28;AGENZIA DELLE ENTRATE-RISCOSSIONE; ;17/10/2023;2351;1;249;1;Spese correnti;3;Acquisto di beni e servizi;2;Acquisto di servizi;3;Aggi di riscossione;999;Altri aggi di riscossione n.a.c.;20/10/2023
3127;1;9999999;0,15;0,15;AGENZIA DELLE ENTRATE-RISCOSSIONE; ;17/10/2023;2351;1;249;1;Spese correnti;3;Acquisto di beni e servizi;2;Acquisto di servizi;3;Aggi di riscossione;999;Altri aggi di riscossione n.a.c.;20/10/2023
3128;1;9999999;2,97;2,97;AGENZIA DELLE ENTRATE-RISCOSSIONE; ;17/10/2023;2351;1;370;1;Spese correnti;3;Acquisto di beni e servizi;2;Acquisto di servizi;3;Aggi di riscossione;999;Altri aggi di riscossione n.a.c.;20/10/2023
3129;1;9999999;1,47;1,47;AGENZIA DELLE ENTRATE-RISCOSSIONE; ;17/10/2023;2351;1;370;1;Spese correnti;3;Acquisto di beni e servizi;2;Acquisto di servizi;3;Aggi di riscossione;999;Altri aggi di riscossione n.a.c.;20/10/2023
3130;1;9999999;0,08;0,08;AGENZIA DELLE ENTRATE-RISCOSSIONE; ;17/10/2023;2351;1;292;1;Spese correnti;3;Acquisto di beni e servizi;2;Acquisto di servizi;3;Aggi di riscossione;999;Altri aggi di riscossione n.a.c.;20/10/2023
3131;1;9999999;2,54;2,54;AGENZIA DELLE ENTRATE-RISCOSSIONE; ;17/10/2023;2351;1;249;1;Spese correnti;3;Acquisto di beni e servizi;2;Acquisto di servizi;3;Aggi di riscossione;999;Altri aggi di riscossione n.a.c.;20/10/2023
3132;1;9999999;0,02;0,02;AGENZIA DELLE ENTRATE-RISCOSSIONE; ;17/10/2023;1010;0;982;1;Spese correnti;3;Acquisto di beni e servizi;2;Acquisto di servizi;3;Aggi di riscossione;999;Altri aggi di riscossione n.a.c.;20/10/2023
3133;1;9999999;23,95;23,95;AGENZIA DELLE ENTRATE-RISCOSSIONE; ;17/10/2023;1010;0;250;1;Spese correnti;3;Acquisto di beni e servizi;2;Acquisto di servizi;3;Aggi di riscossione;999;Altri aggi di riscossione n.a.c.;20/10/2023
3134;1;9999999;0,76;0,76;AGENZIA DELLE ENTRATE-RISCOSSIONE; ;17/10/2023;1010;0;250;1;Spese correnti;3;Acquisto di beni e servizi;2;Acquisto di servizi;3;Aggi di riscossione;999;Altri aggi di riscossione n.a.c.;20/10/2023
3135;1;9999999;0,36;0,36;AGENZIA DELLE ENTRATE-RISCOSSIONE; ;17/10/2023;1010;0;250;1;Spese correnti;3;Acquisto di beni e servizi;2;Acquisto di servizi;3;Aggi di riscossione;999;Altri aggi di riscossione n.a.c.;20/10/2023
3136;1;9999999;1.412,46;1.412,46;KIRIKU Societa' cooperativa sociale onlus;Z6C35B265E;17/10/2023;8204;4;450;1;Spese correnti;3;Acquisto di beni e servizi;2;Acquisto di servizi;99;Altri servizi;999;Altri servizi diversi n.a.c.;20/10/2023
3137;1;9999999;15.519,92;15.519,92;CODESS SOCIALE-COOP. ONLUS;9120417633;17/10/2023;8250;0;578;1;Spese correnti;3;Acquisto di beni e servizi;2;Acquisto di servizi;15;Contratti di servizio pubblico;9;Contratti di servizio di assistenza sociale domiciliare;20/10/2023
3138;1;9999999;537;537;CONSORZIO PROVINCIALE INTESA-CCA SOC.COOP.SOCIALECONSORTILE;9293702D7F;17/10/2023;8208;1;661;1;Spese correnti;3;Acquisto di beni e servizi;2;Acquisto di servizi;99;Altri servizi;999;Altri servizi diversi n.a.c.;20/10/2023
3139;1;9999999;101,75;101,75;E.MEDI.CAL SRL;Z473A8B998;17/10/2023;679;0;433;1;Spese correnti;3;Acquisto di beni e servizi;2;Acquisto di servizi;18;Servizi sanitari;1;Spese per accertamenti sanitari resi necessari dall'attività lavorativa;20/10/2023
3140;1;9999999;500;500;OMESSO NOMINATIVO NEL RISPETTO DELLA NORMATIVA SULLA PROTEZIONE DATI PERSONALI; ;17/10/2023;8361;0;855;1;Spese correnti;4;Trasferimenti correnti;2;Trasferimenti correnti a Famiglie;2;Interventi assistenziali;999;Altri assegni e sussidi assistenziali;20/10/2023
3141;1;9999999;900;900;OMESSO NOMINATIVO NEL RISPETTO DELLA NORMATIVA SULLA PROTEZIONE DATI PERSONALI; ;17/10/2023;8361;0;856;1;Spese correnti;4;Trasferimenti correnti;2;Trasferimenti correnti a Famiglie;2;Interventi assistenziali;999;Altri assegni e sussidi assistenziali;20/10/2023
3142;1;9999999;1.010,01;1.010,01;OMESSO NOMINATIVO NEL RISPETTO DELLA NORMATIVA SULLA PROTEZIONE DATI PERSONALI; ;17/10/2023;8361;2;857;1;Spese correnti;4;Trasferimenti correnti;4;Trasferimenti correnti a Istituzioni Sociali Private;1;Trasferimenti correnti a Istituzioni Sociali Private;1;Trasferimenti correnti a Istituzioni Sociali Private;20/10/2023
3143;1;9999999;1.109,16;1.109,16;OMESSO NOMINATIVO NEL RISPETTO DELLA NORMATIVA SULLA PROTEZIONE DATI PERSONALI; ;17/10/2023;8361;2;858;1;Spese correnti;4;Trasferimenti correnti;4;Trasferimenti correnti a Istituzioni Sociali Private;1;Trasferimenti correnti a Istituzioni Sociali Private;1;Trasferimenti correnti a Istituzioni Sociali Private;20/10/2023
3144;1;9999999;5.350,99;5.350,99;OMESSO NOMINATIVO NEL RISPETTO DELLA NORMATIVA SULLA PROTEZIONE DATI PERSONALI; ;17/10/2023;8393;0;859;1;Spese correnti;4;Trasferimenti correnti;2;Trasferimenti correnti a Famiglie;5;Altri trasferimenti a famiglie;999;Altri trasferimenti a famiglie n.a.c.;20/10/2023
3145;1;9999999;236,05;236,05;SERVIZIO ELETTRICO NAZIONALE-SERVIZIO DI MAGGIOR TUTELA;690152676B;19/10/2023;5930;0;862;1;Spese correnti;3;Acquisto di beni e servizi;2;Acquisto di servizi;5;Utenze e canoni;4;Energia elettrica;27/10/2023
3146;1;9999999;634,4;634,4;ACCATRE-STP PROFESSIONISTI ENTI PUBBLICI S.r.l.;Z193B4A13D;19/10/2023;670;1;514;1;Spese correnti;3;Acquisto di beni e servizi;2;Acquisto di servizi;99;Altri servizi;999;Altri servizi diversi n.a.c.;27/10/2023
3147;1;9999999;1.100,00;1.100,00;SOGEST ITALIA SRL;Z08372EAAD;19/10/2023;1185;1;715;1;Spese correnti;3;Acquisto di beni e servizi;2;Acquisto di servizi;9;Manutenzione ordinaria e riparazioni;4;Manutenzione ordinaria e riparazioni di impianti e macchinari;27/10/2023
3148;1;9999999;183,52;183,52;SOGEST ITALIA SRL;Z08372EAAD;19/10/2023;1185;2;716;1;Spese correnti;3;Acquisto di beni e servizi;2;Acquisto di servizi;9;Manutenzione ordinaria e riparazioni;4;Manutenzione ordinaria e riparazioni di impianti e macchinari;27/10/2023
3149;1;9999999;1.522,50;1.522,50;ARCH. PIANI MASSIMO - PM STUDIO DI PROGETTAZIONE ARCHITETTONICA E ACUSTICA ARCHITETTONICA;ZDA37C6417;19/10/2023;1340;0;1170;1;Spese correnti;3;Acquisto di beni e servizi;2;Acquisto di servizi;11;Prestazioni professionali e specialistiche;999;Altre prestazioni professionali e specialistiche n.a.c.;27/10/2023
3150;1;9999999;1.300,00;1.300,00;SOGEST ITALIA SRL;Z08372EAAD;19/10/2023;1805;0;714;1;Spese correnti;3;Acquisto di beni e servizi;2;Acquisto di servizi;13;Servizi ausiliari per il funzionamento dell'ente;1;Servizi di sorveglianza, custodia e accoglienza;27/10/2023
3151;1;9999999;249,74;249,74;VIER  SCARL; ;19/10/2023;2792;0;235;1;Spese correnti;3;Acquisto di beni e servizi;2;Acquisto di servizi;5;Utenze e canoni;4;Energia elettrica;27/10/2023
3152;1;9999999;457,14;457,14;VIER  SCARL; ;19/10/2023;2973;0;131;1;Spese correnti;3;Acquisto di beni e servizi;2;Acquisto di servizi;5;Utenze e canoni;4;Energia elettrica;27/10/2023
3153;1;9999999;588,73;588,73;VIER  SCARL; ;19/10/2023;4020;0;236;1;Spese correnti;3;Acquisto di beni e servizi;2;Acquisto di servizi;5;Utenze e canoni;4;Energia elettrica;27/10/2023
3154;1;9999999;166,5;166,5;VIER  SCARL; ;19/10/2023;7552;1;237;1;Spese correnti;3;Acquisto di beni e servizi;2;Acquisto di servizi;5;Utenze e canoni;4;Energia elettrica;27/10/2023
3155;1;9999999;6.310,00;6.310,00;Societa' Cooperativa PORTABAGAGLI MULTISERVICE;Z213C7C6CC;19/10/2023;11302;8;477;2;Spese in conto capitale;2;Investimenti fissi lordi e acquisto di terreni;1;Beni materiali;9;Beni immobili;19;Fabbricati ad uso strumentale;27/10/2023
3156;1;9999999;373,4;373,4;COMUNE DI TREVISO; ;24/10/2023;1510;0;871;1;Spese correnti;3;Acquisto di beni e servizi;2;Acquisto di servizi;99;Altri servizi;5;Spese per commissioni e comitati dell'Ente;27/10/2023
3157;1;9999999;148,16;6.104,09;CONTARINA S.P.A.; ;24/10/2023;1194;0;161;1;Spese correnti;3;Acquisto di beni e servizi;2;Acquisto di servizi;5;Utenze e canoni;999;Utenze e canoni per altri servizi n.a.c.;27/10/2023
3157;2;9999999;148,16;6.104,09;CONTARINA S.P.A.; ;24/10/2023;1194;0;161;1;Spese correnti;3;Acquisto di beni e servizi;2;Acquisto di servizi;5;Utenze e canoni;999;Utenze e canoni per altri servizi n.a.c.;27/10/2023
3157;3;9999999;194,52;6.104,09;CONTARINA S.P.A.; ;24/10/2023;1194;0;161;1;Spese correnti;3;Acquisto di beni e servizi;2;Acquisto di servizi;5;Utenze e canoni;999;Utenze e canoni per altri servizi n.a.c.;27/10/2023
3157;4;9999999;254,21;6.104,09;CONTARINA S.P.A.; ;24/10/2023;1194;0;161;1;Spese correnti;3;Acquisto di beni e servizi;2;Acquisto di servizi;5;Utenze e canoni;999;Utenze e canoni per altri servizi n.a.c.;27/10/2023
3157;5;9999999;268,53;6.104,09;CONTARINA S.P.A.; ;24/10/2023;1194;0;161;1;Spese correnti;3;Acquisto di beni e servizi;2;Acquisto di servizi;5;Utenze e canoni;999;Utenze e canoni per altri servizi n.a.c.;27/10/2023
3157;6;9999999;273,51;6.104,09;CONTARINA S.P.A.; ;24/10/2023;1194;0;161;1;Spese correnti;3;Acquisto di beni e servizi;2;Acquisto di servizi;5;Utenze e canoni;999;Utenze e canoni per altri servizi n.a.c.;27/10/2023
3157;7;9999999;318,28;6.104,09;CONTARINA S.P.A.; ;24/10/2023;1194;0;161;1;Spese correnti;3;Acquisto di beni e servizi;2;Acquisto di servizi;5;Utenze e canoni;999;Utenze e canoni per altri servizi n.a.c.;27/10/2023
3157;8;9999999;319,88;6.104,09;CONTARINA S.P.A.; ;24/10/2023;1194;0;161;1;Spese correnti;3;Acquisto di beni e servizi;2;Acquisto di servizi;5;Utenze e canoni;999;Utenze e canoni per altri servizi n.a.c.;27/10/2023
3157;9;9999999;1.516,64;6.104,09;CONTARINA S.P.A.; ;24/10/2023;1194;0;161;1;Spese correnti;3;Acquisto di beni e servizi;2;Acquisto di servizi;5;Utenze e canoni;999;Utenze e canoni per altri servizi n.a.c.;27/10/2023
3157;10;9999999;2.662,20;6.104,09;CONTARINA S.P.A.; ;24/10/2023;1194;0;161;1;Spese correnti;3;Acquisto di beni e servizi;2;Acquisto di servizi;5;Utenze e canoni;999;Utenze e canoni per altri servizi n.a.c.;27/10/2023
3158;1;9999999;119,52;119,52;ENEL ENERGIA SPA;9619395FDC;24/10/2023;1346;0;482;1;Spese correnti;3;Acquisto di beni e servizi;2;Acquisto di servizi;5;Utenze e canoni;4;Energia elettrica;27/10/2023
3159;1;9999999;44,58;3.621,69;ENEL ENERGIA SPA;9619395FDC;24/10/2023;1801;0;483;1;Spese correnti;3;Acquisto di beni e servizi;2;Acquisto di servizi;5;Utenze e canoni;4;Energia elettrica;27/10/2023
3159;2;9999999;130,78;3.621,69;ENEL ENERGIA SPA;9619395FDC;24/10/2023;1801;0;483;1;Spese correnti;3;Acquisto di beni e servizi;2;Acquisto di servizi;5;Utenze e canoni;4;Energia elettrica;27/10/2023
3159;3;9999999;235,79;3.621,69;ENEL ENERGIA SPA;9619395FDC;24/10/2023;1801;0;483;1;Spese correnti;3;Acquisto di beni e servizi;2;Acquisto di servizi;5;Utenze e canoni;4;Energia elettrica;27/10/2023
3159;4;9999999;705,39;3.621,69;ENEL ENERGIA SPA;9619395FDC;24/10/2023;1801;0;483;1;Spese correnti;3;Acquisto di beni e servizi;2;Acquisto di servizi;5;Utenze e canoni;4;Energia elettrica;27/10/2023
3159;5;9999999;751,78;3.621,69;ENEL ENERGIA SPA;9619395FDC;24/10/2023;1801;0;483;1;Spese correnti;3;Acquisto di beni e servizi;2;Acquisto di servizi;5;Utenze e canoni;4;Energia elettrica;27/10/2023
3159;6;9999999;1.753,37;3.621,69;ENEL ENERGIA SPA;9619395FDC;24/10/2023;1801;0;483;1;Spese correnti;3;Acquisto di beni e servizi;2;Acquisto di servizi;5;Utenze e canoni;4;Energia elettrica;27/10/2023
3160;1;9999999;152,04;2.304,79;TELECOM ITALIA S.P.A.;9,29E+10;24/10/2023;1801;1;610;1;Spese correnti;3;Acquisto di beni e servizi;2;Acquisto di servizi;5;Utenze e canoni;999;Utenze e canoni per altri servizi n.a.c.;27/10/2023
3160;2;9999999;271,33;2.304,79;TELECOM ITALIA S.P.A.;9,29E+10;24/10/2023;1801;1;610;1;Spese correnti;3;Acquisto di beni e servizi;2;Acquisto di servizi;5;Utenze e canoni;999;Utenze e canoni per altri servizi n.a.c.;27/10/2023
3160;3;9999999;1.881,42;2.304,79;TELECOM ITALIA S.P.A.;9,29E+10;24/10/2023;1801;1;610;1;Spese correnti;3;Acquisto di beni e servizi;2;Acquisto di servizi;5;Utenze e canoni;999;Utenze e canoni per altri servizi n.a.c.;27/10/2023
3161;1;9999999;488,32;488,32;TELECOM ITALIA S.P.A.;Z523435997;24/10/2023;1801;1;430;1;Spese correnti;3;Acquisto di beni e servizi;2;Acquisto di servizi;5;Utenze e canoni;2;Telefonia mobile;27/10/2023
3162;1;9999999;275,29;275,29;ENEL ENERGIA SPA;Z5A3AB0AFF;24/10/2023;2790;0;641;1;Spese correnti;3;Acquisto di beni e servizi;2;Acquisto di servizi;5;Utenze e canoni;4;Energia elettrica;27/10/2023
3163;1;9999999;442,88;442,88;TELECOM ITALIA S.P.A.;9,29E+10;24/10/2023;2790;1;613;1;Spese correnti;3;Acquisto di beni e servizi;2;Acquisto di servizi;5;Utenze e canoni;999;Utenze e canoni per altri servizi n.a.c.;27/10/2023
3164;1;9999999;132,88;132,88;TELECOM ITALIA S.P.A.;9,29E+10;24/10/2023;2792;1;611;1;Spese correnti;3;Acquisto di beni e servizi;2;Acquisto di servizi;5;Utenze e canoni;999;Utenze e canoni per altri servizi n.a.c.;27/10/2023
3165;1;9999999;142,95;352,06;ENEL ENERGIA SPA;9619395FDC;24/10/2023;2973;0;484;1;Spese correnti;3;Acquisto di beni e servizi;2;Acquisto di servizi;5;Utenze e canoni;4;Energia elettrica;27/10/2023
3165;2;9999999;209,11;352,06;ENEL ENERGIA SPA;9619395FDC;24/10/2023;2973;0;484;1;Spese correnti;3;Acquisto di beni e servizi;2;Acquisto di servizi;5;Utenze e canoni;4;Energia elettrica;27/10/2023
3166;1;9999999;194,44;194,44;ENEL ENERGIA SPA;Z5A3AB0AFF;24/10/2023;2973;0;640;1;Spese correnti;3;Acquisto di beni e servizi;2;Acquisto di servizi;5;Utenze e canoni;4;Energia elettrica;27/10/2023
3167;1;9999999;448,98;1.841,43;TELECOM ITALIA S.P.A.;9,29E+10;24/10/2023;2973;1;612;1;Spese correnti;3;Acquisto di beni e servizi;2;Acquisto di servizi;5;Utenze e canoni;999;Utenze e canoni per altri servizi n.a.c.;27/10/2023
3167;2;9999999;448,98;1.841,43;TELECOM ITALIA S.P.A.;9,29E+10;24/10/2023;2973;1;612;1;Spese correnti;3;Acquisto di beni e servizi;2;Acquisto di servizi;5;Utenze e canoni;999;Utenze e canoni per altri servizi n.a.c.;27/10/2023
3167;3;9999999;448,98;1.841,43;TELECOM ITALIA S.P.A.;9,29E+10;24/10/2023;2973;1;612;1;Spese correnti;3;Acquisto di beni e servizi;2;Acquisto di servizi;5;Utenze e canoni;999;Utenze e canoni per altri servizi n.a.c.;27/10/2023
3167;4;9999999;494,49;1.841,43;TELECOM ITALIA S.P.A.;9,29E+10;24/10/2023;2973;1;612;1;Spese correnti;3;Acquisto di beni e servizi;2;Acquisto di servizi;5;Utenze e canoni;999;Utenze e canoni per altri servizi n.a.c.;27/10/2023
3168;1;9999999;799,66;799,66;ENEL ENERGIA SPA;9619395FDC;24/10/2023;4527;0;485;1;Spese correnti;3;Acquisto di beni e servizi;2;Acquisto di servizi;5;Utenze e canoni;4;Energia elettrica;27/10/2023
3169;1;9999999;71,15;71,15;ENEL ENERGIA SPA;9619395FDC;24/10/2023;4686;1;486;1;Spese correnti;3;Acquisto di beni e servizi;2;Acquisto di servizi;5;Utenze e canoni;4;Energia elettrica;27/10/2023
3171;1;9999999;0,23;1.561,79;ENEL ENERGIA SPA;9619395FDC;24/10/2023;5930;0;481;1;Spese correnti;3;Acquisto di beni e servizi;2;Acquisto di servizi;5;Utenze e canoni;4;Energia elettrica;27/10/2023
3171;2;9999999;4,04;1.561,79;ENEL ENERGIA SPA;9619395FDC;24/10/2023;5930;0;481;1;Spese correnti;3;Acquisto di beni e servizi;2;Acquisto di servizi;5;Utenze e canoni;4;Energia elettrica;27/10/2023
3171;3;9999999;6,44;1.561,79;ENEL ENERGIA SPA;9619395FDC;24/10/2023;5930;0;481;1;Spese correnti;3;Acquisto di beni e servizi;2;Acquisto di servizi;5;Utenze e canoni;4;Energia elettrica;27/10/2023
3171;4;9999999;6,99;1.561,79;ENEL ENERGIA SPA;9619395FDC;24/10/2023;5930;0;481;1;Spese correnti;3;Acquisto di beni e servizi;2;Acquisto di servizi;5;Utenze e canoni;4;Energia elettrica;27/10/2023
3171;5;9999999;7,53;1.561,79;ENEL ENERGIA SPA;9619395FDC;24/10/2023;5930;0;481;1;Spese correnti;3;Acquisto di beni e servizi;2;Acquisto di servizi;5;Utenze e canoni;4;Energia elettrica;27/10/2023
3171;6;9999999;7,76;1.561,79;ENEL ENERGIA SPA;9619395FDC;24/10/2023;5930;0;481;1;Spese correnti;3;Acquisto di beni e servizi;2;Acquisto di servizi;5;Utenze e canoni;4;Energia elettrica;27/10/2023
3171;7;9999999;8,3;1.561,79;ENEL ENERGIA SPA;9619395FDC;24/10/2023;5930;0;481;1;Spese correnti;3;Acquisto di beni e servizi;2;Acquisto di servizi;5;Utenze e canoni;4;Energia elettrica;27/10/2023
3171;8;9999999;9,49;1.561,79;ENEL ENERGIA SPA;9619395FDC;24/10/2023;5930;0;481;1;Spese correnti;3;Acquisto di beni e servizi;2;Acquisto di servizi;5;Utenze e canoni;4;Energia elettrica;27/10/2023
3171;9;9999999;9,97;1.561,79;ENEL ENERGIA SPA;9619395FDC;24/10/2023;5930;0;481;1;Spese correnti;3;Acquisto di beni e servizi;2;Acquisto di servizi;5;Utenze e canoni;4;Energia elettrica;27/10/2023
3171;10;9999999;10,24;1.561,79;ENEL ENERGIA SPA;9619395FDC;24/10/2023;5930;0;481;1;Spese correnti;3;Acquisto di beni e servizi;2;Acquisto di servizi;5;Utenze e canoni;4;Energia elettrica;27/10/2023
3171;11;9999999;10,52;1.561,79;ENEL ENERGIA SPA;9619395FDC;24/10/2023;5930;0;481;1;Spese correnti;3;Acquisto di beni e servizi;2;Acquisto di servizi;5;Utenze e canoni;4;Energia elettrica;27/10/2023
3171;12;9999999;13,53;1.561,79;ENEL ENERGIA SPA;9619395FDC;24/10/2023;5930;0;481;1;Spese correnti;3;Acquisto di beni e servizi;2;Acquisto di servizi;5;Utenze e canoni;4;Energia elettrica;27/10/2023
3171;13;9999999;21,81;1.561,79;ENEL ENERGIA SPA;9619395FDC;24/10/2023;5930;0;481;1;Spese correnti;3;Acquisto di beni e servizi;2;Acquisto di servizi;5;Utenze e canoni;4;Energia elettrica;27/10/2023
3171;14;9999999;23,33;1.561,79;ENEL ENERGIA SPA;9619395FDC;24/10/2023;5930;0;481;1;Spese correnti;3;Acquisto di beni e servizi;2;Acquisto di servizi;5;Utenze e canoni;4;Energia elettrica;27/10/2023
3171;15;9999999;24,52;1.561,79;ENEL ENERGIA SPA;9619395FDC;24/10/2023;5930;0;481;1;Spese correnti;3;Acquisto di beni e servizi;2;Acquisto di servizi;5;Utenze e canoni;4;Energia elettrica;27/10/2023
3171;16;9999999;26,28;1.561,79;ENEL ENERGIA SPA;9619395FDC;24/10/2023;5930;0;481;1;Spese correnti;3;Acquisto di beni e servizi;2;Acquisto di servizi;5;Utenze e canoni;4;Energia elettrica;27/10/2023
3171;17;9999999;27,32;1.561,79;ENEL ENERGIA SPA;9619395FDC;24/10/2023;5930;0;481;1;Spese correnti;3;Acquisto di beni e servizi;2;Acquisto di servizi;5;Utenze e canoni;4;Energia elettrica;27/10/2023
3171;18;9999999;27,32;1.561,79;ENEL ENERGIA SPA;9619395FDC;24/10/2023;5930;0;481;1;Spese correnti;3;Acquisto di beni e servizi;2;Acquisto di servizi;5;Utenze e canoni;4;Energia elettrica;27/10/2023
3171;19;9999999;29,28;1.561,79;ENEL ENERGIA SPA;9619395FDC;24/10/2023;5930;0;481;1;Spese correnti;3;Acquisto di beni e servizi;2;Acquisto di servizi;5;Utenze e canoni;4;Energia elettrica;27/10/2023
3171;20;9999999;31,77;1.561,79;ENEL ENERGIA SPA;9619395FDC;24/10/2023;5930;0;481;1;Spese correnti;3;Acquisto di beni e servizi;2;Acquisto di servizi;5;Utenze e canoni;4;Energia elettrica;27/10/2023
3171;21;9999999;35,81;1.561,79;ENEL ENERGIA SPA;9619395FDC;24/10/2023;5930;0;481;1;Spese correnti;3;Acquisto di beni e servizi;2;Acquisto di servizi;5;Utenze e canoni;4;Energia elettrica;27/10/2023
3171;22;9999999;35,81;1.561,79;ENEL ENERGIA SPA;9619395FDC;24/10/2023;5930;0;481;1;Spese correnti;3;Acquisto di beni e servizi;2;Acquisto di servizi;5;Utenze e canoni;4;Energia elettrica;27/10/2023
3171;23;9999999;37,78;1.561,79;ENEL ENERGIA SPA;9619395FDC;24/10/2023;5930;0;481;1;Spese correnti;3;Acquisto di beni e servizi;2;Acquisto di servizi;5;Utenze e canoni;4;Energia elettrica;27/10/2023
3171;24;9999999;38,06;1.561,79;ENEL ENERGIA SPA;9619395FDC;24/10/2023;5930;0;481;1;Spese correnti;3;Acquisto di beni e servizi;2;Acquisto di servizi;5;Utenze e canoni;4;Energia elettrica;27/10/2023
3171;25;9999999;39,76;1.561,79;ENEL ENERGIA SPA;9619395FDC;24/10/2023;5930;0;481;1;Spese correnti;3;Acquisto di beni e servizi;2;Acquisto di servizi;5;Utenze e canoni;4;Energia elettrica;27/10/2023
3171;26;9999999;42,55;1.561,79;ENEL ENERGIA SPA;9619395FDC;24/10/2023;5930;0;481;1;Spese correnti;3;Acquisto di beni e servizi;2;Acquisto di servizi;5;Utenze e canoni;4;Energia elettrica;27/10/2023
3171;27;9999999;48,57;1.561,79;ENEL ENERGIA SPA;9619395FDC;24/10/2023;5930;0;481;1;Spese correnti;3;Acquisto di beni e servizi;2;Acquisto di servizi;5;Utenze e canoni;4;Energia elettrica;27/10/2023
3171;28;9999999;48,81;1.561,79;ENEL ENERGIA SPA;9619395FDC;24/10/2023;5930;0;481;1;Spese correnti;3;Acquisto di beni e servizi;2;Acquisto di servizi;5;Utenze e canoni;4;Energia elettrica;27/10/2023
3171;29;9999999;53,12;1.561,79;ENEL ENERGIA SPA;9619395FDC;24/10/2023;5930;0;481;1;Spese correnti;3;Acquisto di beni e servizi;2;Acquisto di servizi;5;Utenze e canoni;4;Energia elettrica;27/10/2023
3171;30;9999999;55,12;1.561,79;ENEL ENERGIA SPA;9619395FDC;24/10/2023;5930;0;481;1;Spese correnti;3;Acquisto di beni e servizi;2;Acquisto di servizi;5;Utenze e canoni;4;Energia elettrica;27/10/2023
3171;31;9999999;69,06;1.561,79;ENEL ENERGIA SPA;9619395FDC;24/10/2023;5930;0;481;1;Spese correnti;3;Acquisto di beni e servizi;2;Acquisto di servizi;5;Utenze e canoni;4;Energia elettrica;27/10/2023
3171;32;9999999;75,47;1.561,79;ENEL ENERGIA SPA;9619395FDC;24/10/2023;5930;0;481;1;Spese correnti;3;Acquisto di beni e servizi;2;Acquisto di servizi;5;Utenze e canoni;4;Energia elettrica;27/10/2023
3171;33;9999999;76,36;1.561,79;ENEL ENERGIA SPA;9619395FDC;24/10/2023;5930;0;481;1;Spese correnti;3;Acquisto di beni e servizi;2;Acquisto di servizi;5;Utenze e canoni;4;Energia elettrica;27/10/2023
3171;34;9999999;77,13;1.561,79;ENEL ENERGIA SPA;9619395FDC;24/10/2023;5930;0;481;1;Spese correnti;3;Acquisto di beni e servizi;2;Acquisto di servizi;5;Utenze e canoni;4;Energia elettrica;27/10/2023
3171;35;9999999;77,43;1.561,79;ENEL ENERGIA SPA;9619395FDC;24/10/2023;5930;0;481;1;Spese correnti;3;Acquisto di beni e servizi;2;Acquisto di servizi;5;Utenze e canoni;4;Energia elettrica;27/10/2023
3171;36;9999999;85,42;1.561,79;ENEL ENERGIA SPA;9619395FDC;24/10/2023;5930;0;481;1;Spese correnti;3;Acquisto di beni e servizi;2;Acquisto di servizi;5;Utenze e canoni;4;Energia elettrica;27/10/2023
3171;37;9999999;85,95;1.561,79;ENEL ENERGIA SPA;9619395FDC;24/10/2023;5930;0;481;1;Spese correnti;3;Acquisto di beni e servizi;2;Acquisto di servizi;5;Utenze e canoni;4;Energia elettrica;27/10/2023
3171;38;9999999;87,24;1.561,79;ENEL ENERGIA SPA;9619395FDC;24/10/2023;5930;0;481;1;Spese correnti;3;Acquisto di beni e servizi;2;Acquisto di servizi;5;Utenze e canoni;4;Energia elettrica;27/10/2023
3171;39;9999999;88,17;1.561,79;ENEL ENERGIA SPA;9619395FDC;24/10/2023;5930;0;481;1;Spese correnti;3;Acquisto di beni e servizi;2;Acquisto di servizi;5;Utenze e canoni;4;Energia elettrica;27/10/2023
3171;40;9999999;97,5;1.561,79;ENEL ENERGIA SPA;9619395FDC;24/10/2023;5930;0;481;1;Spese correnti;3;Acquisto di beni e servizi;2;Acquisto di servizi;5;Utenze e canoni;4;Energia elettrica;27/10/2023
3172;1;9999999;128,73;11.513,45;ENEL ENERGIA SPA;9619395FDC;24/10/2023;5930;0;481;1;Spese correnti;3;Acquisto di beni e servizi;2;Acquisto di servizi;5;Utenze e canoni;4;Energia elettrica;27/10/2023
3172;2;9999999;128,97;11.513,45;ENEL ENERGIA SPA;9619395FDC;24/10/2023;5930;0;481;1;Spese correnti;3;Acquisto di beni e servizi;2;Acquisto di servizi;5;Utenze e canoni;4;Energia elettrica;27/10/2023
3172;3;9999999;135,12;11.513,45;ENEL ENERGIA SPA;9619395FDC;24/10/2023;5930;0;481;1;Spese correnti;3;Acquisto di beni e servizi;2;Acquisto di servizi;5;Utenze e canoni;4;Energia elettrica;27/10/2023
3172;4;9999999;147,5;11.513,45;ENEL ENERGIA SPA;9619395FDC;24/10/2023;5930;0;481;1;Spese correnti;3;Acquisto di beni e servizi;2;Acquisto di servizi;5;Utenze e canoni;4;Energia elettrica;27/10/2023
3172;5;9999999;151,19;11.513,45;ENEL ENERGIA SPA;9619395FDC;24/10/2023;5930;0;481;1;Spese correnti;3;Acquisto di beni e servizi;2;Acquisto di servizi;5;Utenze e canoni;4;Energia elettrica;27/10/2023
3172;6;9999999;153,01;11.513,45;ENEL ENERGIA SPA;9619395FDC;24/10/2023;5930;0;481;1;Spese correnti;3;Acquisto di beni e servizi;2;Acquisto di servizi;5;Utenze e canoni;4;Energia elettrica;27/10/2023
3172;7;9999999;156,03;11.513,45;ENEL ENERGIA SPA;9619395FDC;24/10/2023;5930;0;481;1;Spese correnti;3;Acquisto di beni e servizi;2;Acquisto di servizi;5;Utenze e canoni;4;Energia elettrica;27/10/2023
3172;8;9999999;158,14;11.513,45;ENEL ENERGIA SPA;9619395FDC;24/10/2023;5930;0;481;1;Spese correnti;3;Acquisto di beni e servizi;2;Acquisto di servizi;5;Utenze e canoni;4;Energia elettrica;27/10/2023
3172;9;9999999;167,55;11.513,45;ENEL ENERGIA SPA;9619395FDC;24/10/2023;5930;0;481;1;Spese correnti;3;Acquisto di beni e servizi;2;Acquisto di servizi;5;Utenze e canoni;4;Energia elettrica;27/10/2023
3172;10;9999999;169,14;11.513,45;ENEL ENERGIA SPA;9619395FDC;24/10/2023;5930;0;481;1;Spese correnti;3;Acquisto di beni e servizi;2;Acquisto di servizi;5;Utenze e canoni;4;Energia elettrica;27/10/2023
3172;11;9999999;170,04;11.513,45;ENEL ENERGIA SPA;9619395FDC;24/10/2023;5930;0;481;1;Spese correnti;3;Acquisto di beni e servizi;2;Acquisto di servizi;5;Utenze e canoni;4;Energia elettrica;27/10/2023
3172;12;9999999;174,02;11.513,45;ENEL ENERGIA SPA;9619395FDC;24/10/2023;5930;0;481;1;Spese correnti;3;Acquisto di beni e servizi;2;Acquisto di servizi;5;Utenze e canoni;4;Energia elettrica;27/10/2023
3172;13;9999999;174,55;11.513,45;ENEL ENERGIA SPA;9619395FDC;24/10/2023;5930;0;481;1;Spese correnti;3;Acquisto di beni e servizi;2;Acquisto di servizi;5;Utenze e canoni;4;Energia elettrica;27/10/2023
3172;14;9999999;187,64;11.513,45;ENEL ENERGIA SPA;9619395FDC;24/10/2023;5930;0;481;1;Spese correnti;3;Acquisto di beni e servizi;2;Acquisto di servizi;5;Utenze e canoni;4;Energia elettrica;27/10/2023
3172;15;9999999;193,42;11.513,45;ENEL ENERGIA SPA;9619395FDC;24/10/2023;5930;0;481;1;Spese correnti;3;Acquisto di beni e servizi;2;Acquisto di servizi;5;Utenze e canoni;4;Energia elettrica;27/10/2023
3172;16;9999999;194,64;11.513,45;ENEL ENERGIA SPA;9619395FDC;24/10/2023;5930;0;481;1;Spese correnti;3;Acquisto di beni e servizi;2;Acquisto di servizi;5;Utenze e canoni;4;Energia elettrica;27/10/2023
3172;17;9999999;247,73;11.513,45;ENEL ENERGIA SPA;9619395FDC;24/10/2023;5930;0;481;1;Spese correnti;3;Acquisto di beni e servizi;2;Acquisto di servizi;5;Utenze e canoni;4;Energia elettrica;27/10/2023
3172;18;9999999;280,04;11.513,45;ENEL ENERGIA SPA;9619395FDC;24/10/2023;5930;0;481;1;Spese correnti;3;Acquisto di beni e servizi;2;Acquisto di servizi;5;Utenze e canoni;4;Energia elettrica;27/10/2023
3172;19;9999999;302,32;11.513,45;ENEL ENERGIA SPA;9619395FDC;24/10/2023;5930;0;481;1;Spese correnti;3;Acquisto di beni e servizi;2;Acquisto di servizi;5;Utenze e canoni;4;Energia elettrica;27/10/2023
3172;20;9999999;306,39;11.513,45;ENEL ENERGIA SPA;9619395FDC;24/10/2023;5930;0;481;1;Spese correnti;3;Acquisto di beni e servizi;2;Acquisto di servizi;5;Utenze e canoni;4;Energia elettrica;27/10/2023
3172;21;9999999;325,15;11.513,45;ENEL ENERGIA SPA;9619395FDC;24/10/2023;5930;0;481;1;Spese correnti;3;Acquisto di beni e servizi;2;Acquisto di servizi;5;Utenze e canoni;4;Energia elettrica;27/10/2023
3172;22;9999999;331,18;11.513,45;ENEL ENERGIA SPA;9619395FDC;24/10/2023;5930;0;481;1;Spese correnti;3;Acquisto di beni e servizi;2;Acquisto di servizi;5;Utenze e canoni;4;Energia elettrica;27/10/2023
3172;23;9999999;347,98;11.513,45;ENEL ENERGIA SPA;9619395FDC;24/10/2023;5930;0;481;1;Spese correnti;3;Acquisto di beni e servizi;2;Acquisto di servizi;5;Utenze e canoni;4;Energia elettrica;27/10/2023
3172;24;9999999;363,87;11.513,45;ENEL ENERGIA SPA;9619395FDC;24/10/2023;5930;0;481;1;Spese correnti;3;Acquisto di beni e servizi;2;Acquisto di servizi;5;Utenze e canoni;4;Energia elettrica;27/10/2023
3172;25;9999999;376,46;11.513,45;ENEL ENERGIA SPA;9619395FDC;24/10/2023;5930;0;481;1;Spese correnti;3;Acquisto di beni e servizi;2;Acquisto di servizi;5;Utenze e canoni;4;Energia elettrica;27/10/2023
3172;26;9999999;411,63;11.513,45;ENEL ENERGIA SPA;9619395FDC;24/10/2023;5930;0;481;1;Spese correnti;3;Acquisto di beni e servizi;2;Acquisto di servizi;5;Utenze e canoni;4;Energia elettrica;27/10/2023
3172;27;9999999;451,38;11.513,45;ENEL ENERGIA SPA;9619395FDC;24/10/2023;5930;0;481;1;Spese correnti;3;Acquisto di beni e servizi;2;Acquisto di servizi;5;Utenze e canoni;4;Energia elettrica;27/10/2023
3172;28;9999999;452,14;11.513,45;ENEL ENERGIA SPA;9619395FDC;24/10/2023;5930;0;481;1;Spese correnti;3;Acquisto di beni e servizi;2;Acquisto di servizi;5;Utenze e canoni;4;Energia elettrica;27/10/2023
3172;29;9999999;480,14;11.513,45;ENEL ENERGIA SPA;9619395FDC;24/10/2023;5930;0;481;1;Spese correnti;3;Acquisto di beni e servizi;2;Acquisto di servizi;5;Utenze e canoni;4;Energia elettrica;27/10/2023
3172;30;9999999;520,5;11.513,45;ENEL ENERGIA SPA;9619395FDC;24/10/2023;5930;0;481;1;Spese correnti;3;Acquisto di beni e servizi;2;Acquisto di servizi;5;Utenze e canoni;4;Energia elettrica;27/10/2023
3172;31;9999999;529,86;11.513,45;ENEL ENERGIA SPA;9619395FDC;24/10/2023;5930;0;481;1;Spese correnti;3;Acquisto di beni e servizi;2;Acquisto di servizi;5;Utenze e canoni;4;Energia elettrica;27/10/2023
3172;32;9999999;542,6;11.513,45;ENEL ENERGIA SPA;9619395FDC;24/10/2023;5930;0;481;1;Spese correnti;3;Acquisto di beni e servizi;2;Acquisto di servizi;5;Utenze e canoni;4;Energia elettrica;27/10/2023
3172;33;9999999;584,58;11.513,45;ENEL ENERGIA SPA;9619395FDC;24/10/2023;5930;0;481;1;Spese correnti;3;Acquisto di beni e servizi;2;Acquisto di servizi;5;Utenze e canoni;4;Energia elettrica;27/10/2023
3172;34;9999999;618,17;11.513,45;ENEL ENERGIA SPA;9619395FDC;24/10/2023;5930;0;481;1;Spese correnti;3;Acquisto di beni e servizi;2;Acquisto di servizi;5;Utenze e canoni;4;Energia elettrica;27/10/2023
3172;35;9999999;718,9;11.513,45;ENEL ENERGIA SPA;9619395FDC;24/10/2023;5930;0;481;1;Spese correnti;3;Acquisto di beni e servizi;2;Acquisto di servizi;5;Utenze e canoni;4;Energia elettrica;27/10/2023
3172;36;9999999;732,74;11.513,45;ENEL ENERGIA SPA;9619395FDC;24/10/2023;5930;0;481;1;Spese correnti;3;Acquisto di beni e servizi;2;Acquisto di servizi;5;Utenze e canoni;4;Energia elettrica;27/10/2023
3173;1;9999999;11,32;735,52;ENEL ENERGIA SPA;9619395FDC;24/10/2023;5931;0;488;1;Spese correnti;3;Acquisto di beni e servizi;2;Acquisto di servizi;5;Utenze e canoni;4;Energia elettrica;27/10/2023
3173;2;9999999;17,75;735,52;ENEL ENERGIA SPA;9619395FDC;24/10/2023;5931;0;488;1;Spese correnti;3;Acquisto di beni e servizi;2;Acquisto di servizi;5;Utenze e canoni;4;Energia elettrica;27/10/2023
3173;3;9999999;50,14;735,52;ENEL ENERGIA SPA;9619395FDC;24/10/2023;5931;0;488;1;Spese correnti;3;Acquisto di beni e servizi;2;Acquisto di servizi;5;Utenze e canoni;4;Energia elettrica;27/10/2023
3173;4;9999999;73,19;735,52;ENEL ENERGIA SPA;9619395FDC;24/10/2023;5931;0;488;1;Spese correnti;3;Acquisto di beni e servizi;2;Acquisto di servizi;5;Utenze e canoni;4;Energia elettrica;27/10/2023
3173;5;9999999;78,7;735,52;ENEL ENERGIA SPA;9619395FDC;24/10/2023;5931;0;488;1;Spese correnti;3;Acquisto di beni e servizi;2;Acquisto di servizi;5;Utenze e canoni;4;Energia elettrica;27/10/2023
3173;6;9999999;85,22;735,52;ENEL ENERGIA SPA;9619395FDC;24/10/2023;5931;0;488;1;Spese correnti;3;Acquisto di beni e servizi;2;Acquisto di servizi;5;Utenze e canoni;4;Energia elettrica;27/10/2023
3173;7;9999999;89,27;735,52;ENEL ENERGIA SPA;9619395FDC;24/10/2023;5931;0;488;1;Spese correnti;3;Acquisto di beni e servizi;2;Acquisto di servizi;5;Utenze e canoni;4;Energia elettrica;27/10/2023
3173;8;9999999;122,85;735,52;ENEL ENERGIA SPA;9619395FDC;24/10/2023;5931;0;488;1;Spese correnti;3;Acquisto di beni e servizi;2;Acquisto di servizi;5;Utenze e canoni;4;Energia elettrica;27/10/2023
3173;9;9999999;207,08;735,52;ENEL ENERGIA SPA;9619395FDC;24/10/2023;5931;0;488;1;Spese correnti;3;Acquisto di beni e servizi;2;Acquisto di servizi;5;Utenze e canoni;4;Energia elettrica;27/10/2023
3174;1;9999999;52,16;117,42;ENEL ENERGIA SPA;9619395FDC;24/10/2023;6461;0;487;1;Spese correnti;3;Acquisto di beni e servizi;2;Acquisto di servizi;5;Utenze e canoni;4;Energia elettrica;27/10/2023
3174;2;9999999;65,26;117,42;ENEL ENERGIA SPA;9619395FDC;24/10/2023;6461;0;487;1;Spese correnti;3;Acquisto di beni e servizi;2;Acquisto di servizi;5;Utenze e canoni;4;Energia elettrica;27/10/2023
3175;1;9999999;151,04;151,04;TELECOM ITALIA S.P.A.;9,29E+10;24/10/2023;6642;0;838;1;Spese correnti;3;Acquisto di beni e servizi;2;Acquisto di servizi;5;Utenze e canoni;1;Telefonia fissa;27/10/2023
3176;1;9999999;183,53;183,53;ENEL ENERGIA SPA;Z5A3AB0AFF;24/10/2023;7552;1;642;1;Spese correnti;3;Acquisto di beni e servizi;2;Acquisto di servizi;5;Utenze e canoni;4;Energia elettrica;27/10/2023
3177;1;9999999;4.239,50;4.239,50;ZANCHETTIN S.R.L;Z203C17E8F;24/10/2023;11316;1;682;2;Spese in conto capitale;2;Investimenti fissi lordi e acquisto di terreni;1;Beni materiali;4;Impianti e macchinari;2;Impianti;27/10/2023
3180;1;9999999;544;544;CECINI GIOVANNI;ZF53CCCF68;24/10/2023;4528;0;852;1;Spese correnti;3;Acquisto di beni e servizi;2;Acquisto di servizi;11;Prestazioni professionali e specialistiche;999;Altre prestazioni professionali e specialistiche n.a.c.;27/10/2023
3181;1;9999999;1.456,00;1.456,00;MIOTTO DAVIDE;ZF83CC0D1A;24/10/2023;4710;0;849;1;Spese correnti;3;Acquisto di beni e servizi;2;Acquisto di servizi;99;Altri servizi;999;Altri servizi diversi n.a.c.;27/10/2023
3182;1;9999999;73,2;73,2;REGIONE DEL VENETO;98756181C9;24/10/2023;15925;3;1374;2;Spese in conto capitale;2;Investimenti fissi lordi e acquisto di terreni;1;Beni materiali;9;Beni immobili;12;Infrastrutture stradali;27/10/2023
3183;1;9999999;5.856,00;5.856,00;IMAR ASCENSORI S.A.S. DI POMIATO ROMEO & C.;Z9F3C99B1B;26/10/2023;1185;1;781;1;Spese correnti;3;Acquisto di beni e servizi;2;Acquisto di servizi;9;Manutenzione ordinaria e riparazioni;4;Manutenzione ordinaria e riparazioni di impianti e macchinari;31/10/2023
3184;1;9999999;67,83;510,25;FINBUC S.R.L.;ZD83C865EF;26/10/2023;1780;0;772;1;Spese correnti;3;Acquisto di beni e servizi;1;Acquisto di beni;2;Altri beni di consumo;6;Materiale informatico;31/10/2023
3184;2;9999999;442,42;510,25;FINBUC S.R.L.;ZD83C865EF;26/10/2023;1780;0;772;1;Spese correnti;3;Acquisto di beni e servizi;1;Acquisto di beni;2;Altri beni di consumo;6;Materiale informatico;31/10/2023
3185;1;9999999;707,73;707,73;POSTE ITALIANE SPA;ZCE3502180;26/10/2023;1793;0;288;1;Spese correnti;3;Acquisto di beni e servizi;2;Acquisto di servizi;16;Servizi amministrativi;2;Spese postali;31/10/2023
3186;1;9999999;168,5;168,5;VIER  SCARL; ;26/10/2023;2792;0;235;1;Spese correnti;3;Acquisto di beni e servizi;2;Acquisto di servizi;5;Utenze e canoni;4;Energia elettrica;31/10/2023
3187;1;9999999;827,3;827,3;VIER  SCARL; ;26/10/2023;2973;0;131;1;Spese correnti;3;Acquisto di beni e servizi;2;Acquisto di servizi;5;Utenze e canoni;4;Energia elettrica;31/10/2023
3188;1;9999999;482,99;482,99;VIER  SCARL; ;26/10/2023;4020;0;236;1;Spese correnti;3;Acquisto di beni e servizi;2;Acquisto di servizi;5;Utenze e canoni;4;Energia elettrica;31/10/2023
3189;1;9999999;52,62;1.415,58;SERENISSIMA RISTORAZIONE SPA;932853027C;26/10/2023;4260;0;731;1;Spese correnti;3;Acquisto di beni e servizi;2;Acquisto di servizi;15;Contratti di servizio pubblico;6;Contratti di servizio per le mense scolastiche;31/10/2023
3189;2;9999999;57,89;1.415,58;SERENISSIMA RISTORAZIONE SPA;932853027C;26/10/2023;4260;0;731;1;Spese correnti;3;Acquisto di beni e servizi;2;Acquisto di servizi;15;Contratti di servizio pubblico;6;Contratti di servizio per le mense scolastiche;31/10/2023
3189;3;9999999;57,89;1.415,58;SERENISSIMA RISTORAZIONE SPA;932853027C;26/10/2023;4260;0;731;1;Spese correnti;3;Acquisto di beni e servizi;2;Acquisto di servizi;15;Contratti di servizio pubblico;6;Contratti di servizio per le mense scolastiche;31/10/2023
3189;4;9999999;268,38;1.415,58;SERENISSIMA RISTORAZIONE SPA;932853027C;26/10/2023;4260;0;731;1;Spese correnti;3;Acquisto di beni e servizi;2;Acquisto di servizi;15;Contratti di servizio pubblico;6;Contratti di servizio per le mense scolastiche;31/10/2023
3189;5;9999999;294,69;1.415,58;SERENISSIMA RISTORAZIONE SPA;932853027C;26/10/2023;4260;0;731;1;Spese correnti;3;Acquisto di beni e servizi;2;Acquisto di servizi;15;Contratti di servizio pubblico;6;Contratti di servizio per le mense scolastiche;31/10/2023
3189;6;9999999;684,11;1.415,58;SERENISSIMA RISTORAZIONE SPA;932853027C;26/10/2023;4260;0;731;1;Spese correnti;3;Acquisto di beni e servizi;2;Acquisto di servizi;15;Contratti di servizio pubblico;6;Contratti di servizio per le mense scolastiche;31/10/2023
3190;1;9999999;54,6;4.745,67;SERENISSIMA RISTORAZIONE SPA;932853027C;26/10/2023;4261;0;732;1;Spese correnti;3;Acquisto di beni e servizi;2;Acquisto di servizi;15;Contratti di servizio pubblico;6;Contratti di servizio per le mense scolastiche;31/10/2023
3190;2;9999999;117;4.745,67;SERENISSIMA RISTORAZIONE SPA;932853027C;26/10/2023;4261;0;732;1;Spese correnti;3;Acquisto di beni e servizi;2;Acquisto di servizi;15;Contratti di servizio pubblico;6;Contratti di servizio per le mense scolastiche;31/10/2023
3190;3;9999999;196,92;4.745,67;SERENISSIMA RISTORAZIONE SPA;932853027C;26/10/2023;4261;0;732;1;Spese correnti;3;Acquisto di beni e servizi;2;Acquisto di servizi;15;Contratti di servizio pubblico;6;Contratti di servizio per le mense scolastiche;31/10/2023
3190;4;9999999;198,19;4.745,67;SERENISSIMA RISTORAZIONE SPA;932853027C;26/10/2023;4261;0;732;1;Spese correnti;3;Acquisto di beni e servizi;2;Acquisto di servizi;15;Contratti di servizio pubblico;6;Contratti di servizio per le mense scolastiche;31/10/2023
3190;5;9999999;241,11;4.745,67;SERENISSIMA RISTORAZIONE SPA;932853027C;26/10/2023;4261;0;732;1;Spese correnti;3;Acquisto di beni e servizi;2;Acquisto di servizi;15;Contratti di servizio pubblico;6;Contratti di servizio per le mense scolastiche;31/10/2023
3190;6;9999999;610,36;4.745,67;SERENISSIMA RISTORAZIONE SPA;932853027C;26/10/2023;4261;0;732;1;Spese correnti;3;Acquisto di beni e servizi;2;Acquisto di servizi;15;Contratti di servizio pubblico;6;Contratti di servizio per le mense scolastiche;31/10/2023
3190;7;9999999;1.048,91;4.745,67;SERENISSIMA RISTORAZIONE SPA;932853027C;26/10/2023;4261;0;732;1;Spese correnti;3;Acquisto di beni e servizi;2;Acquisto di servizi;15;Contratti di servizio pubblico;6;Contratti di servizio per le mense scolastiche;31/10/2023
3190;8;9999999;1.049,05;4.745,67;SERENISSIMA RISTORAZIONE SPA;932853027C;26/10/2023;4261;0;732;1;Spese correnti;3;Acquisto di beni e servizi;2;Acquisto di servizi;15;Contratti di servizio pubblico;6;Contratti di servizio per le mense scolastiche;31/10/2023
3190;9;9999999;1.229,53;4.745,67;SERENISSIMA RISTORAZIONE SPA;932853027C;26/10/2023;4261;0;732;1;Spese correnti;3;Acquisto di beni e servizi;2;Acquisto di servizi;15;Contratti di servizio pubblico;6;Contratti di servizio per le mense scolastiche;31/10/2023
3191;1;9999999;1.387,50;1.387,50;DISMA SAS DI A. RIGO & C.;Z0A3BA9AA6;26/10/2023;4529;0;666;1;Spese correnti;3;Acquisto di beni e servizi;2;Acquisto di servizi;11;Prestazioni professionali e specialistiche;999;Altre prestazioni professionali e specialistiche n.a.c.;31/10/2023
3192;1;9999999;670,26;670,26;VIER  SCARL; ;26/10/2023;5050;0;132;1;Spese correnti;3;Acquisto di beni e servizi;2;Acquisto di servizi;5;Utenze e canoni;4;Energia elettrica;31/10/2023
3193;1;9999999;915;915;SE.M.PRE S.R.L.;Z723CB0F52;26/10/2023;5640;0;847;1;Spese correnti;3;Acquisto di beni e servizi;1;Acquisto di beni;2;Altri beni di consumo;999;Altri beni e materiali di consumo n.a.c.;31/10/2023
3194;1;9999999;1.446,94;1.446,94;CONTARINA S.P.A.;Z893777BD9;26/10/2023;7433;0;772;1;Spese correnti;3;Acquisto di beni e servizi;2;Acquisto di servizi;99;Altri servizi;999;Altri servizi diversi n.a.c.;31/10/2023
3195;1;9999999;112,33;112,33;VIER  SCARL; ;26/10/2023;7552;1;237;1;Spese correnti;3;Acquisto di beni e servizi;2;Acquisto di servizi;5;Utenze e canoni;4;Energia elettrica;31/10/2023
3196;1;9999999;128,99;1.674,22;SERENISSIMA RISTORAZIONE SPA;932853027C;26/10/2023;7553;1;733;1;Spese correnti;3;Acquisto di beni e servizi;2;Acquisto di servizi;15;Contratti di servizio pubblico;6;Contratti di servizio per le mense scolastiche;31/10/2023
3196;2;9999999;606,33;1.674,22;SERENISSIMA RISTORAZIONE SPA;932853027C;26/10/2023;7553;1;733;1;Spese correnti;3;Acquisto di beni e servizi;2;Acquisto di servizi;15;Contratti di servizio pubblico;6;Contratti di servizio per le mense scolastiche;31/10/2023
3196;3;9999999;938,9;1.674,22;SERENISSIMA RISTORAZIONE SPA;932853027C;26/10/2023;7553;1;733;1;Spese correnti;3;Acquisto di beni e servizi;2;Acquisto di servizi;15;Contratti di servizio pubblico;6;Contratti di servizio per le mense scolastiche;31/10/2023
3197;1;9999999;126,54;126,54;MINISTERO INFRASTR./TRASPORTI-MOTORIZZ.CIVILE; ;26/10/2023;2344;0;1167;1;Spese correnti;3;Acquisto di beni e servizi;2;Acquisto di servizi;5;Utenze e canoni;3;Accesso a banche dati e a pubblicazioni on line;31/10/2023
3198;1;9999999;642,64;642,64;COMUNE DI MOGLIANO VENETO; ;26/10/2023;2452;1;307;1;Spese correnti;4;Trasferimenti correnti;1;Trasferimenti correnti a Amministrazioni Pubbliche;2;Trasferimenti correnti a Amministrazioni Locali;3;Trasferimenti correnti a Comuni;31/10/2023
3199;1;9999999;926;926;GIES S.R.L.;Z7934ED2CD;26/10/2023;810;0;200;1;Spese correnti;3;Acquisto di beni e servizi;2;Acquisto di servizi;99;Altri servizi;999;Altri servizi diversi n.a.c.;31/10/2023
3200;1;9999999;203,72;203,72;AGENZIA DELLE ENTRATE DI TREVISO;Z7934ED2CD;26/10/2023;810;0;200;1;Spese correnti;3;Acquisto di beni e servizi;2;Acquisto di servizi;99;Altri servizi;999;Altri servizi diversi n.a.c.;15/11/2023
3201;1;9999999;475;475;GIES S.R.L.;ZC12BEC04E;26/10/2023;810;0;215;1;Spese correnti;3;Acquisto di beni e servizi;2;Acquisto di servizi;99;Altri servizi;999;Altri servizi diversi n.a.c.;31/10/2023
3202;1;9999999;104,5;104,5;AGENZIA DELLE ENTRATE DI TREVISO;ZC12BEC04E;26/10/2023;810;0;215;1;Spese correnti;3;Acquisto di beni e servizi;2;Acquisto di servizi;99;Altri servizi;999;Altri servizi diversi n.a.c.;15/11/2023
3203;1;9999999;540;540;OMESSO NOMINATIVO NEL RISPETTO DELLA NORMATIVA SULLA PROTEZIONE DATI PERSONALI; ;02/11/2023;8361;0;894;1;Spese correnti;4;Trasferimenti correnti;2;Trasferimenti correnti a Famiglie;2;Interventi assistenziali;999;Altri assegni e sussidi assistenziali;07/11/2023
3205;1;9999999;70;70;DELFINO & PARTNERS SPA;Z2D3CEB4C2;02/11/2023;557;0;865;1;Spese correnti;3;Acquisto di beni e servizi;2;Acquisto di servizi;4;Acquisto di servizi per formazione e addestramento del personale dell'ente;999;Acquisto di servizi per altre spese per formazione e addestramento n.a.c.;07/11/2023
3206;1;9999999;4.914,16;4.914,16;OFFICINA BONATO SNC DI BONATO ANDREA E DIEGO & C.;Z283B9A4CB;02/11/2023;5720;1;559;1;Spese correnti;3;Acquisto di beni e servizi;2;Acquisto di servizi;9;Manutenzione ordinaria e riparazioni;12;Manutenzione ordinaria e riparazioni di terreni e beni materiali non prodotti;07/11/2023
3207;1;9999999;253,63;253,63;ABACO S.P.A.;9,44E+58;02/11/2023;1010;0;1259;1;Spese correnti;3;Acquisto di beni e servizi;2;Acquisto di servizi;3;Aggi di riscossione;999;Altri aggi di riscossione n.a.c.;07/11/2023
3208;1;9999999;375,42;375,42;ABACO S.P.A.;9,44E+58;02/11/2023;1010;0;1259;1;Spese correnti;3;Acquisto di beni e servizi;2;Acquisto di servizi;3;Aggi di riscossione;999;Altri aggi di riscossione n.a.c.;07/11/2023
3209;1;9999999;450;450;OMESSO NOMINATIVO NEL RISPETTO DELLA NORMATIVA SULLA PROTEZIONE DATI PERSONALI; ;02/11/2023;8361;0;902;1;Spese correnti;4;Trasferimenti correnti;2;Trasferimenti correnti a Famiglie;2;Interventi assistenziali;999;Altri assegni e sussidi assistenziali;07/11/2023
3210;1;9999999;180;180;OMESSO NOMINATIVO NEL RISPETTO DELLA NORMATIVA SULLA PROTEZIONE DATI PERSONALI; ;02/11/2023;8361;0;903;1;Spese correnti;4;Trasferimenti correnti;2;Trasferimenti correnti a Famiglie;2;Interventi assistenziali;999;Altri assegni e sussidi assistenziali;07/11/2023
3211;1;9999999;600;600;OMESSO NOMINATIVO NEL RISPETTO DELLA NORMATIVA SULLA PROTEZIONE DATI PERSONALI; ;02/11/2023;8361;0;904;1;Spese correnti;4;Trasferimenti correnti;2;Trasferimenti correnti a Famiglie;2;Interventi assistenziali;999;Altri assegni e sussidi assistenziali;07/11/2023
3212;1;9999999;437,54;437,54;OMESSO NOMINATIVO NEL RISPETTO DELLA NORMATIVA SULLA PROTEZIONE DATI PERSONALI; ;02/11/2023;8361;0;905;1;Spese correnti;4;Trasferimenti correnti;2;Trasferimenti correnti a Famiglie;2;Interventi assistenziali;999;Altri assegni e sussidi assistenziali;07/11/2023
3213;1;9999999;534,31;534,31;OMESSO NOMINATIVO NEL RISPETTO DELLA NORMATIVA SULLA PROTEZIONE DATI PERSONALI; ;02/11/2023;8361;0;906;1;Spese correnti;4;Trasferimenti correnti;2;Trasferimenti correnti a Famiglie;2;Interventi assistenziali;999;Altri assegni e sussidi assistenziali;07/11/2023
3214;1;9999999;188,7;188,7;OMESSO NOMINATIVO NEL RISPETTO DELLA NORMATIVA SULLA PROTEZIONE DATI PERSONALI; ;02/11/2023;8361;0;906;1;Spese correnti;4;Trasferimenti correnti;2;Trasferimenti correnti a Famiglie;2;Interventi assistenziali;999;Altri assegni e sussidi assistenziali;07/11/2023
3215;1;9999999;120,07;120,07;OMESSO NOMINATIVO NEL RISPETTO DELLA NORMATIVA SULLA PROTEZIONE DATI PERSONALI; ;02/11/2023;8361;0;906;1;Spese correnti;4;Trasferimenti correnti;2;Trasferimenti correnti a Famiglie;2;Interventi assistenziali;999;Altri assegni e sussidi assistenziali;07/11/2023
3216;1;9999999;137,71;137,71;OMESSO NOMINATIVO NEL RISPETTO DELLA NORMATIVA SULLA PROTEZIONE DATI PERSONALI; ;02/11/2023;8361;0;906;1;Spese correnti;4;Trasferimenti correnti;2;Trasferimenti correnti a Famiglie;2;Interventi assistenziali;999;Altri assegni e sussidi assistenziali;07/11/2023
3217;1;9999999;214,95;214,95;OMESSO NOMINATIVO NEL RISPETTO DELLA NORMATIVA SULLA PROTEZIONE DATI PERSONALI; ;02/11/2023;8361;0;906;1;Spese correnti;4;Trasferimenti correnti;2;Trasferimenti correnti a Famiglie;2;Interventi assistenziali;999;Altri assegni e sussidi assistenziali;07/11/2023
3218;1;9999999;562;562;OMESSO NOMINATIVO NEL RISPETTO DELLA NORMATIVA SULLA PROTEZIONE DATI PERSONALI; ;02/11/2023;8361;0;907;1;Spese correnti;4;Trasferimenti correnti;2;Trasferimenti correnti a Famiglie;2;Interventi assistenziali;999;Altri assegni e sussidi assistenziali;07/11/2023
3219;1;9999999;130;130;OMESSO NOMINATIVO NEL RISPETTO DELLA NORMATIVA SULLA PROTEZIONE DATI PERSONALI; ;02/11/2023;8362;0;885;1;Spese correnti;4;Trasferimenti correnti;2;Trasferimenti correnti a Famiglie;2;Interventi assistenziali;999;Altri assegni e sussidi assistenziali;07/11/2023
3220;1;9999999;125,5;125,5;OMESSO NOMINATIVO NEL RISPETTO DELLA NORMATIVA SULLA PROTEZIONE DATI PERSONALI; ;02/11/2023;8362;0;885;1;Spese correnti;4;Trasferimenti correnti;2;Trasferimenti correnti a Famiglie;2;Interventi assistenziali;999;Altri assegni e sussidi assistenziali;07/11/2023
3221;1;9999999;120;120;OMESSO NOMINATIVO NEL RISPETTO DELLA NORMATIVA SULLA PROTEZIONE DATI PERSONALI; ;02/11/2023;8362;0;885;1;Spese correnti;4;Trasferimenti correnti;2;Trasferimenti correnti a Famiglie;2;Interventi assistenziali;999;Altri assegni e sussidi assistenziali;07/11/2023
3222;1;9999999;110;110;OMESSO NOMINATIVO NEL RISPETTO DELLA NORMATIVA SULLA PROTEZIONE DATI PERSONALI; ;02/11/2023;8362;0;885;1;Spese correnti;4;Trasferimenti correnti;2;Trasferimenti correnti a Famiglie;2;Interventi assistenziali;999;Altri assegni e sussidi assistenziali;07/11/2023
3223;1;9999999;130;130;OMESSO NOMINATIVO NEL RISPETTO DELLA NORMATIVA SULLA PROTEZIONE DATI PERSONALI; ;02/11/2023;8362;0;885;1;Spese correnti;4;Trasferimenti correnti;2;Trasferimenti correnti a Famiglie;2;Interventi assistenziali;999;Altri assegni e sussidi assistenziali;07/11/2023
3224;1;9999999;360;360;CPIA ALBERTO MANZI DI TREVISO; ;02/11/2023;8361;1;1294;1;Spese correnti;4;Trasferimenti correnti;3;Trasferimenti correnti a Imprese;99;Trasferimenti correnti a altre imprese;999;Trasferimenti correnti a altre imprese;07/11/2023
3225;1;9999999;240;240;CPIA ALBERTO MANZI DI TREVISO; ;02/11/2023;8361;1;1294;1;Spese correnti;4;Trasferimenti correnti;3;Trasferimenti correnti a Imprese;99;Trasferimenti correnti a altre imprese;999;Trasferimenti correnti a altre imprese;07/11/2023
3226;1;9999999;180;180;OMESSO NOMINATIVO NEL RISPETTO DELLA NORMATIVA SULLA PROTEZIONE DATI PERSONALI; ;02/11/2023;8362;0;885;1;Spese correnti;4;Trasferimenti correnti;2;Trasferimenti correnti a Famiglie;2;Interventi assistenziali;999;Altri assegni e sussidi assistenziali;07/11/2023
3227;1;9999999;140;140;OMESSO NOMINATIVO NEL RISPETTO DELLA NORMATIVA SULLA PROTEZIONE DATI PERSONALI; ;02/11/2023;8362;0;885;1;Spese correnti;4;Trasferimenti correnti;2;Trasferimenti correnti a Famiglie;2;Interventi assistenziali;999;Altri assegni e sussidi assistenziali;07/11/2023
3228;1;9999999;120;120;OMESSO NOMINATIVO NEL RISPETTO DELLA NORMATIVA SULLA PROTEZIONE DATI PERSONALI; ;02/11/2023;8362;0;885;1;Spese correnti;4;Trasferimenti correnti;2;Trasferimenti correnti a Famiglie;2;Interventi assistenziali;999;Altri assegni e sussidi assistenziali;07/11/2023
3229;1;9999999;130;130;OMESSO NOMINATIVO NEL RISPETTO DELLA NORMATIVA SULLA PROTEZIONE DATI PERSONALI; ;02/11/2023;8362;0;885;1;Spese correnti;4;Trasferimenti correnti;2;Trasferimenti correnti a Famiglie;2;Interventi assistenziali;999;Altri assegni e sussidi assistenziali;07/11/2023
3230;1;9999999;120;120;OMESSO NOMINATIVO NEL RISPETTO DELLA NORMATIVA SULLA PROTEZIONE DATI PERSONALI; ;02/11/2023;8362;0;885;1;Spese correnti;4;Trasferimenti correnti;2;Trasferimenti correnti a Famiglie;2;Interventi assistenziali;999;Altri assegni e sussidi assistenziali;07/11/2023
3231;1;9999999;70;70;OMESSO NOMINATIVO NEL RISPETTO DELLA NORMATIVA SULLA PROTEZIONE DATI PERSONALI; ;02/11/2023;8362;0;885;1;Spese correnti;4;Trasferimenti correnti;2;Trasferimenti correnti a Famiglie;2;Interventi assistenziali;999;Altri assegni e sussidi assistenziali;07/11/2023
3232;1;9999999;260;260;OMESSO NOMINATIVO NEL RISPETTO DELLA NORMATIVA SULLA PROTEZIONE DATI PERSONALI; ;02/11/2023;8362;0;885;1;Spese correnti;4;Trasferimenti correnti;2;Trasferimenti correnti a Famiglie;2;Interventi assistenziali;999;Altri assegni e sussidi assistenziali;07/11/2023
3233;1;9999999;110;110;OMESSO NOMINATIVO NEL RISPETTO DELLA NORMATIVA SULLA PROTEZIONE DATI PERSONALI; ;02/11/2023;8362;0;885;1;Spese correnti;4;Trasferimenti correnti;2;Trasferimenti correnti a Famiglie;2;Interventi assistenziali;999;Altri assegni e sussidi assistenziali;07/11/2023
3234;1;9999999;140;140;OMESSO NOMINATIVO NEL RISPETTO DELLA NORMATIVA SULLA PROTEZIONE DATI PERSONALI; ;02/11/2023;8362;0;885;1;Spese correnti;4;Trasferimenti correnti;2;Trasferimenti correnti a Famiglie;2;Interventi assistenziali;999;Altri assegni e sussidi assistenziali;07/11/2023
3235;1;9999999;110;110;OMESSO NOMINATIVO NEL RISPETTO DELLA NORMATIVA SULLA PROTEZIONE DATI PERSONALI; ;02/11/2023;8362;0;885;1;Spese correnti;4;Trasferimenti correnti;2;Trasferimenti correnti a Famiglie;2;Interventi assistenziali;999;Altri assegni e sussidi assistenziali;07/11/2023
3236;1;9999999;130;130;OMESSO NOMINATIVO NEL RISPETTO DELLA NORMATIVA SULLA PROTEZIONE DATI PERSONALI; ;02/11/2023;8362;0;885;1;Spese correnti;4;Trasferimenti correnti;2;Trasferimenti correnti a Famiglie;2;Interventi assistenziali;999;Altri assegni e sussidi assistenziali;07/11/2023
3237;1;9999999;120;120;OMESSO NOMINATIVO NEL RISPETTO DELLA NORMATIVA SULLA PROTEZIONE DATI PERSONALI; ;02/11/2023;8362;0;885;1;Spese correnti;4;Trasferimenti correnti;2;Trasferimenti correnti a Famiglie;2;Interventi assistenziali;999;Altri assegni e sussidi assistenziali;07/11/2023
3238;1;9999999;120;120;OMESSO NOMINATIVO NEL RISPETTO DELLA NORMATIVA SULLA PROTEZIONE DATI PERSONALI; ;02/11/2023;8362;0;885;1;Spese correnti;4;Trasferimenti correnti;2;Trasferimenti correnti a Famiglie;2;Interventi assistenziali;999;Altri assegni e sussidi assistenziali;07/11/2023
3239;1;9999999;130;130;OMESSO NOMINATIVO NEL RISPETTO DELLA NORMATIVA SULLA PROTEZIONE DATI PERSONALI; ;02/11/2023;8362;0;885;1;Spese correnti;4;Trasferimenti correnti;2;Trasferimenti correnti a Famiglie;2;Interventi assistenziali;999;Altri assegni e sussidi assistenziali;07/11/2023
3240;1;9999999;120;120;OMESSO NOMINATIVO NEL RISPETTO DELLA NORMATIVA SULLA PROTEZIONE DATI PERSONALI; ;02/11/2023;8362;0;885;1;Spese correnti;4;Trasferimenti correnti;2;Trasferimenti correnti a Famiglie;2;Interventi assistenziali;999;Altri assegni e sussidi assistenziali;07/11/2023
3241;1;9999999;150;150;OMESSO NOMINATIVO NEL RISPETTO DELLA NORMATIVA SULLA PROTEZIONE DATI PERSONALI; ;02/11/2023;8362;0;885;1;Spese correnti;4;Trasferimenti correnti;2;Trasferimenti correnti a Famiglie;2;Interventi assistenziali;999;Altri assegni e sussidi assistenziali;07/11/2023
3242;1;9999999;130;130;OMESSO NOMINATIVO NEL RISPETTO DELLA NORMATIVA SULLA PROTEZIONE DATI PERSONALI; ;02/11/2023;8362;0;885;1;Spese correnti;4;Trasferimenti correnti;2;Trasferimenti correnti a Famiglie;2;Interventi assistenziali;999;Altri assegni e sussidi assistenziali;07/11/2023
3243;1;9999999;150;150;OMESSO NOMINATIVO NEL RISPETTO DELLA NORMATIVA SULLA PROTEZIONE DATI PERSONALI; ;02/11/2023;8362;0;885;1;Spese correnti;4;Trasferimenti correnti;2;Trasferimenti correnti a Famiglie;2;Interventi assistenziali;999;Altri assegni e sussidi assistenziali;07/11/2023
3244;1;9999999;150;150;OMESSO NOMINATIVO NEL RISPETTO DELLA NORMATIVA SULLA PROTEZIONE DATI PERSONALI; ;02/11/2023;8362;0;885;1;Spese correnti;4;Trasferimenti correnti;2;Trasferimenti correnti a Famiglie;2;Interventi assistenziali;999;Altri assegni e sussidi assistenziali;07/11/2023
3245;1;9999999;120;120;OMESSO NOMINATIVO NEL RISPETTO DELLA NORMATIVA SULLA PROTEZIONE DATI PERSONALI; ;02/11/2023;8362;0;885;1;Spese correnti;4;Trasferimenti correnti;2;Trasferimenti correnti a Famiglie;2;Interventi assistenziali;999;Altri assegni e sussidi assistenziali;07/11/2023
3246;1;9999999;130;130;OMESSO NOMINATIVO NEL RISPETTO DELLA NORMATIVA SULLA PROTEZIONE DATI PERSONALI; ;02/11/2023;8362;0;885;1;Spese correnti;4;Trasferimenti correnti;2;Trasferimenti correnti a Famiglie;2;Interventi assistenziali;999;Altri assegni e sussidi assistenziali;07/11/2023
3247;1;9999999;150;150;OMESSO NOMINATIVO NEL RISPETTO DELLA NORMATIVA SULLA PROTEZIONE DATI PERSONALI; ;02/11/2023;8362;0;885;1;Spese correnti;4;Trasferimenti correnti;2;Trasferimenti correnti a Famiglie;2;Interventi assistenziali;999;Altri assegni e sussidi assistenziali;07/11/2023
3248;1;9999999;110;110;OMESSO NOMINATIVO NEL RISPETTO DELLA NORMATIVA SULLA PROTEZIONE DATI PERSONALI; ;02/11/2023;8362;0;885;1;Spese correnti;4;Trasferimenti correnti;2;Trasferimenti correnti a Famiglie;2;Interventi assistenziali;999;Altri assegni e sussidi assistenziali;07/11/2023
3249;1;9999999;210;210;OMESSO NOMINATIVO NEL RISPETTO DELLA NORMATIVA SULLA PROTEZIONE DATI PERSONALI; ;02/11/2023;8362;0;885;1;Spese correnti;4;Trasferimenti correnti;2;Trasferimenti correnti a Famiglie;2;Interventi assistenziali;999;Altri assegni e sussidi assistenziali;07/11/2023
3250;1;9999999;254;254;OMESSO NOMINATIVO NEL RISPETTO DELLA NORMATIVA SULLA PROTEZIONE DATI PERSONALI; ;02/11/2023;8362;0;885;1;Spese correnti;4;Trasferimenti correnti;2;Trasferimenti correnti a Famiglie;2;Interventi assistenziali;999;Altri assegni e sussidi assistenziali;07/11/2023
3251;1;9999999;2.537,60;2.537,60;MALASPINA GIANLUCA;Z8437C7BF9;02/11/2023;15925;3;864;2;Spese in conto capitale;2;Investimenti fissi lordi e acquisto di terreni;1;Beni materiali;9;Beni immobili;12;Infrastrutture stradali;07/11/2023
3252;1;9999999;120;120;OMESSO NOMINATIVO NEL RISPETTO DELLA NORMATIVA SULLA PROTEZIONE DATI PERSONALI; ;02/11/2023;8362;0;885;1;Spese correnti;4;Trasferimenti correnti;2;Trasferimenti correnti a Famiglie;2;Interventi assistenziali;999;Altri assegni e sussidi assistenziali;07/11/2023
3253;1;9999999;150;150;OMESSO NOMINATIVO NEL RISPETTO DELLA NORMATIVA SULLA PROTEZIONE DATI PERSONALI; ;02/11/2023;8362;0;885;1;Spese correnti;4;Trasferimenti correnti;2;Trasferimenti correnti a Famiglie;2;Interventi assistenziali;999;Altri assegni e sussidi assistenziali;07/11/2023
3254;1;9999999;120;120;OMESSO NOMINATIVO NEL RISPETTO DELLA NORMATIVA SULLA PROTEZIONE DATI PERSONALI; ;02/11/2023;8362;0;885;1;Spese correnti;4;Trasferimenti correnti;2;Trasferimenti correnti a Famiglie;2;Interventi assistenziali;999;Altri assegni e sussidi assistenziali;07/11/2023
3255;1;9999999;110;110;OMESSO NOMINATIVO NEL RISPETTO DELLA NORMATIVA SULLA PROTEZIONE DATI PERSONALI; ;02/11/2023;8362;0;885;1;Spese correnti;4;Trasferimenti correnti;2;Trasferimenti correnti a Famiglie;2;Interventi assistenziali;999;Altri assegni e sussidi assistenziali;07/11/2023
3256;1;9999999;120;120;OMESSO NOMINATIVO NEL RISPETTO DELLA NORMATIVA SULLA PROTEZIONE DATI PERSONALI; ;02/11/2023;8362;0;885;1;Spese correnti;4;Trasferimenti correnti;2;Trasferimenti correnti a Famiglie;2;Interventi assistenziali;999;Altri assegni e sussidi assistenziali;07/11/2023
3257;1;9999999;150;150;OMESSO NOMINATIVO NEL RISPETTO DELLA NORMATIVA SULLA PROTEZIONE DATI PERSONALI; ;02/11/2023;8362;0;885;1;Spese correnti;4;Trasferimenti correnti;2;Trasferimenti correnti a Famiglie;2;Interventi assistenziali;999;Altri assegni e sussidi assistenziali;07/11/2023
3258;1;9999999;150;150;OMESSO NOMINATIVO NEL RISPETTO DELLA NORMATIVA SULLA PROTEZIONE DATI PERSONALI; ;02/11/2023;8362;0;885;1;Spese correnti;4;Trasferimenti correnti;2;Trasferimenti correnti a Famiglie;2;Interventi assistenziali;999;Altri assegni e sussidi assistenziali;07/11/2023
3259;1;9999999;120;120;OMESSO NOMINATIVO NEL RISPETTO DELLA NORMATIVA SULLA PROTEZIONE DATI PERSONALI; ;02/11/2023;8362;0;885;1;Spese correnti;4;Trasferimenti correnti;2;Trasferimenti correnti a Famiglie;2;Interventi assistenziali;999;Altri assegni e sussidi assistenziali;07/11/2023
3260;1;9999999;140;140;OMESSO NOMINATIVO NEL RISPETTO DELLA NORMATIVA SULLA PROTEZIONE DATI PERSONALI; ;02/11/2023;8362;0;885;1;Spese correnti;4;Trasferimenti correnti;2;Trasferimenti correnti a Famiglie;2;Interventi assistenziali;999;Altri assegni e sussidi assistenziali;07/11/2023
3261;1;9999999;130;130;OMESSO NOMINATIVO NEL RISPETTO DELLA NORMATIVA SULLA PROTEZIONE DATI PERSONALI; ;02/11/2023;8362;0;885;1;Spese correnti;4;Trasferimenti correnti;2;Trasferimenti correnti a Famiglie;2;Interventi assistenziali;999;Altri assegni e sussidi assistenziali;07/11/2023
3262;1;9999999;197;197;OMESSO NOMINATIVO NEL RISPETTO DELLA NORMATIVA SULLA PROTEZIONE DATI PERSONALI; ;02/11/2023;8362;0;885;1;Spese correnti;4;Trasferimenti correnti;2;Trasferimenti correnti a Famiglie;2;Interventi assistenziali;999;Altri assegni e sussidi assistenziali;07/11/2023
3263;1;9999999;130;130;OMESSO NOMINATIVO NEL RISPETTO DELLA NORMATIVA SULLA PROTEZIONE DATI PERSONALI; ;06/11/2023;8362;0;885;1;Spese correnti;4;Trasferimenti correnti;2;Trasferimenti correnti a Famiglie;2;Interventi assistenziali;999;Altri assegni e sussidi assistenziali;08/11/2023
3264;1;9999999;187;187;OMESSO NOMINATIVO NEL RISPETTO DELLA NORMATIVA SULLA PROTEZIONE DATI PERSONALI; ;06/11/2023;8362;0;885;1;Spese correnti;4;Trasferimenti correnti;2;Trasferimenti correnti a Famiglie;2;Interventi assistenziali;999;Altri assegni e sussidi assistenziali;08/11/2023
3265;1;9999999;140;140;OMESSO NOMINATIVO NEL RISPETTO DELLA NORMATIVA SULLA PROTEZIONE DATI PERSONALI; ;06/11/2023;8362;0;885;1;Spese correnti;4;Trasferimenti correnti;2;Trasferimenti correnti a Famiglie;2;Interventi assistenziali;999;Altri assegni e sussidi assistenziali;08/11/2023
3266;1;9999999;140;140;OMESSO NOMINATIVO NEL RISPETTO DELLA NORMATIVA SULLA PROTEZIONE DATI PERSONALI; ;06/11/2023;8362;0;885;1;Spese correnti;4;Trasferimenti correnti;2;Trasferimenti correnti a Famiglie;2;Interventi assistenziali;999;Altri assegni e sussidi assistenziali;08/11/2023
3267;1;9999999;140;140;OMESSO NOMINATIVO NEL RISPETTO DELLA NORMATIVA SULLA PROTEZIONE DATI PERSONALI; ;06/11/2023;8362;0;885;1;Spese correnti;4;Trasferimenti correnti;2;Trasferimenti correnti a Famiglie;2;Interventi assistenziali;999;Altri assegni e sussidi assistenziali;08/11/2023
3268;1;9999999;110;110;OMESSO NOMINATIVO NEL RISPETTO DELLA NORMATIVA SULLA PROTEZIONE DATI PERSONALI; ;06/11/2023;8362;0;885;1;Spese correnti;4;Trasferimenti correnti;2;Trasferimenti correnti a Famiglie;2;Interventi assistenziali;999;Altri assegni e sussidi assistenziali;08/11/2023
3269;1;9999999;120;120;OMESSO NOMINATIVO NEL RISPETTO DELLA NORMATIVA SULLA PROTEZIONE DATI PERSONALI; ;06/11/2023;8362;0;885;1;Spese correnti;4;Trasferimenti correnti;2;Trasferimenti correnti a Famiglie;2;Interventi assistenziali;999;Altri assegni e sussidi assistenziali;08/11/2023
3270;1;9999999;110;110;OMESSO NOMINATIVO NEL RISPETTO DELLA NORMATIVA SULLA PROTEZIONE DATI PERSONALI; ;06/11/2023;8362;0;885;1;Spese correnti;4;Trasferimenti correnti;2;Trasferimenti correnti a Famiglie;2;Interventi assistenziali;999;Altri assegni e sussidi assistenziali;08/11/2023
3271;1;9999999;140;140;OMESSO NOMINATIVO NEL RISPETTO DELLA NORMATIVA SULLA PROTEZIONE DATI PERSONALI; ;06/11/2023;8362;0;885;1;Spese correnti;4;Trasferimenti correnti;2;Trasferimenti correnti a Famiglie;2;Interventi assistenziali;999;Altri assegni e sussidi assistenziali;08/11/2023
3272;1;9999999;110;110;OMESSO NOMINATIVO NEL RISPETTO DELLA NORMATIVA SULLA PROTEZIONE DATI PERSONALI; ;06/11/2023;8362;0;885;1;Spese correnti;4;Trasferimenti correnti;2;Trasferimenti correnti a Famiglie;2;Interventi assistenziali;999;Altri assegni e sussidi assistenziali;08/11/2023
3273;1;9999999;110;110;OMESSO NOMINATIVO NEL RISPETTO DELLA NORMATIVA SULLA PROTEZIONE DATI PERSONALI; ;06/11/2023;8362;0;885;1;Spese correnti;4;Trasferimenti correnti;2;Trasferimenti correnti a Famiglie;2;Interventi assistenziali;999;Altri assegni e sussidi assistenziali;08/11/2023
3274;1;9999999;110;110;OMESSO NOMINATIVO NEL RISPETTO DELLA NORMATIVA SULLA PROTEZIONE DATI PERSONALI; ;06/11/2023;8362;0;885;1;Spese correnti;4;Trasferimenti correnti;2;Trasferimenti correnti a Famiglie;2;Interventi assistenziali;999;Altri assegni e sussidi assistenziali;08/11/2023
3275;1;9999999;110;110;OMESSO NOMINATIVO NEL RISPETTO DELLA NORMATIVA SULLA PROTEZIONE DATI PERSONALI; ;06/11/2023;8362;0;885;1;Spese correnti;4;Trasferimenti correnti;2;Trasferimenti correnti a Famiglie;2;Interventi assistenziali;999;Altri assegni e sussidi assistenziali;08/11/2023
3276;1;9999999;140;140;OMESSO NOMINATIVO NEL RISPETTO DELLA NORMATIVA SULLA PROTEZIONE DATI PERSONALI; ;06/11/2023;8362;0;885;1;Spese correnti;4;Trasferimenti correnti;2;Trasferimenti correnti a Famiglie;2;Interventi assistenziali;999;Altri assegni e sussidi assistenziali;08/11/2023
3277;1;9999999;140;140;OMESSO NOMINATIVO NEL RISPETTO DELLA NORMATIVA SULLA PROTEZIONE DATI PERSONALI; ;06/11/2023;8362;0;885;1;Spese correnti;4;Trasferimenti correnti;2;Trasferimenti correnti a Famiglie;2;Interventi assistenziali;999;Altri assegni e sussidi assistenziali;08/11/2023
3278;1;9999999;165;165;OMESSO NOMINATIVO NEL RISPETTO DELLA NORMATIVA SULLA PROTEZIONE DATI PERSONALI; ;06/11/2023;8362;0;885;1;Spese correnti;4;Trasferimenti correnti;2;Trasferimenti correnti a Famiglie;2;Interventi assistenziali;999;Altri assegni e sussidi assistenziali;08/11/2023
3279;1;9999999;110;110;OMESSO NOMINATIVO NEL RISPETTO DELLA NORMATIVA SULLA PROTEZIONE DATI PERSONALI; ;06/11/2023;8362;0;885;1;Spese correnti;4;Trasferimenti correnti;2;Trasferimenti correnti a Famiglie;2;Interventi assistenziali;999;Altri assegni e sussidi assistenziali;08/11/2023
3280;1;9999999;120;120;OMESSO NOMINATIVO NEL RISPETTO DELLA NORMATIVA SULLA PROTEZIONE DATI PERSONALI; ;06/11/2023;8362;0;885;1;Spese correnti;4;Trasferimenti correnti;2;Trasferimenti correnti a Famiglie;2;Interventi assistenziali;999;Altri assegni e sussidi assistenziali;08/11/2023
3281;1;9999999;247;247;OMESSO NOMINATIVO NEL RISPETTO DELLA NORMATIVA SULLA PROTEZIONE DATI PERSONALI; ;06/11/2023;8362;0;885;1;Spese correnti;4;Trasferimenti correnti;2;Trasferimenti correnti a Famiglie;2;Interventi assistenziali;999;Altri assegni e sussidi assistenziali;08/11/2023
3282;1;9999999;120;120;OMESSO NOMINATIVO NEL RISPETTO DELLA NORMATIVA SULLA PROTEZIONE DATI PERSONALI; ;06/11/2023;8362;0;885;1;Spese correnti;4;Trasferimenti correnti;2;Trasferimenti correnti a Famiglie;2;Interventi assistenziali;999;Altri assegni e sussidi assistenziali;08/11/2023
3283;1;9999999;244;244;OMESSO NOMINATIVO NEL RISPETTO DELLA NORMATIVA SULLA PROTEZIONE DATI PERSONALI; ;06/11/2023;8362;0;885;1;Spese correnti;4;Trasferimenti correnti;2;Trasferimenti correnti a Famiglie;2;Interventi assistenziali;999;Altri assegni e sussidi assistenziali;08/11/2023
3284;1;9999999;110;110;OMESSO NOMINATIVO NEL RISPETTO DELLA NORMATIVA SULLA PROTEZIONE DATI PERSONALI; ;06/11/2023;8362;0;885;1;Spese correnti;4;Trasferimenti correnti;2;Trasferimenti correnti a Famiglie;2;Interventi assistenziali;999;Altri assegni e sussidi assistenziali;08/11/2023
3285;1;9999999;37,5;37,5;OMESSO NOMINATIVO NEL RISPETTO DELLA NORMATIVA SULLA PROTEZIONE DATI PERSONALI; ;06/11/2023;8362;0;885;1;Spese correnti;4;Trasferimenti correnti;2;Trasferimenti correnti a Famiglie;2;Interventi assistenziali;999;Altri assegni e sussidi assistenziali;08/11/2023
3286;1;9999999;110;110;OMESSO NOMINATIVO NEL RISPETTO DELLA NORMATIVA SULLA PROTEZIONE DATI PERSONALI; ;06/11/2023;8362;0;885;1;Spese correnti;4;Trasferimenti correnti;2;Trasferimenti correnti a Famiglie;2;Interventi assistenziali;999;Altri assegni e sussidi assistenziali;08/11/2023
3287;1;9999999;130;130;OMESSO NOMINATIVO NEL RISPETTO DELLA NORMATIVA SULLA PROTEZIONE DATI PERSONALI; ;06/11/2023;8362;0;885;1;Spese correnti;4;Trasferimenti correnti;2;Trasferimenti correnti a Famiglie;2;Interventi assistenziali;999;Altri assegni e sussidi assistenziali;08/11/2023
3288;1;9999999;120;120;OMESSO NOMINATIVO NEL RISPETTO DELLA NORMATIVA SULLA PROTEZIONE DATI PERSONALI; ;06/11/2023;8362;0;885;1;Spese correnti;4;Trasferimenti correnti;2;Trasferimenti correnti a Famiglie;2;Interventi assistenziali;999;Altri assegni e sussidi assistenziali;08/11/2023
3289;1;9999999;150;150;OMESSO NOMINATIVO NEL RISPETTO DELLA NORMATIVA SULLA PROTEZIONE DATI PERSONALI; ;06/11/2023;8362;0;885;1;Spese correnti;4;Trasferimenti correnti;2;Trasferimenti correnti a Famiglie;2;Interventi assistenziali;999;Altri assegni e sussidi assistenziali;08/11/2023
3290;1;9999999;150;150;OMESSO NOMINATIVO NEL RISPETTO DELLA NORMATIVA SULLA PROTEZIONE DATI PERSONALI; ;06/11/2023;8362;0;885;1;Spese correnti;4;Trasferimenti correnti;2;Trasferimenti correnti a Famiglie;2;Interventi assistenziali;999;Altri assegni e sussidi assistenziali;08/11/2023
3291;1;9999999;130;130;OMESSO NOMINATIVO NEL RISPETTO DELLA NORMATIVA SULLA PROTEZIONE DATI PERSONALI; ;06/11/2023;8362;0;885;1;Spese correnti;4;Trasferimenti correnti;2;Trasferimenti correnti a Famiglie;2;Interventi assistenziali;999;Altri assegni e sussidi assistenziali;08/11/2023
3292;1;9999999;150;150;OMESSO NOMINATIVO NEL RISPETTO DELLA NORMATIVA SULLA PROTEZIONE DATI PERSONALI; ;06/11/2023;8362;0;885;1;Spese correnti;4;Trasferimenti correnti;2;Trasferimenti correnti a Famiglie;2;Interventi assistenziali;999;Altri assegni e sussidi assistenziali;08/11/2023
3293;1;9999999;120;120;OMESSO NOMINATIVO NEL RISPETTO DELLA NORMATIVA SULLA PROTEZIONE DATI PERSONALI; ;06/11/2023;8362;0;885;1;Spese correnti;4;Trasferimenti correnti;2;Trasferimenti correnti a Famiglie;2;Interventi assistenziali;999;Altri assegni e sussidi assistenziali;08/11/2023
3294;1;9999999;140;140;OMESSO NOMINATIVO NEL RISPETTO DELLA NORMATIVA SULLA PROTEZIONE DATI PERSONALI; ;06/11/2023;8362;0;885;1;Spese correnti;4;Trasferimenti correnti;2;Trasferimenti correnti a Famiglie;2;Interventi assistenziali;999;Altri assegni e sussidi assistenziali;08/11/2023
3295;1;9999999;120;120;OMESSO NOMINATIVO NEL RISPETTO DELLA NORMATIVA SULLA PROTEZIONE DATI PERSONALI; ;06/11/2023;8362;0;885;1;Spese correnti;4;Trasferimenti correnti;2;Trasferimenti correnti a Famiglie;2;Interventi assistenziali;999;Altri assegni e sussidi assistenziali;08/11/2023
3296;1;9999999;140;140;OMESSO NOMINATIVO NEL RISPETTO DELLA NORMATIVA SULLA PROTEZIONE DATI PERSONALI; ;06/11/2023;8362;0;885;1;Spese correnti;4;Trasferimenti correnti;2;Trasferimenti correnti a Famiglie;2;Interventi assistenziali;999;Altri assegni e sussidi assistenziali;08/11/2023
3297;1;9999999;150;150;OMESSO NOMINATIVO NEL RISPETTO DELLA NORMATIVA SULLA PROTEZIONE DATI PERSONALI; ;06/11/2023;8362;0;885;1;Spese correnti;4;Trasferimenti correnti;2;Trasferimenti correnti a Famiglie;2;Interventi assistenziali;999;Altri assegni e sussidi assistenziali;08/11/2023
3298;1;9999999;143;143;OMESSO NOMINATIVO NEL RISPETTO DELLA NORMATIVA SULLA PROTEZIONE DATI PERSONALI; ;06/11/2023;8362;0;885;1;Spese correnti;4;Trasferimenti correnti;2;Trasferimenti correnti a Famiglie;2;Interventi assistenziali;999;Altri assegni e sussidi assistenziali;08/11/2023
3299;1;9999999;120;120;OMESSO NOMINATIVO NEL RISPETTO DELLA NORMATIVA SULLA PROTEZIONE DATI PERSONALI; ;06/11/2023;8362;0;885;1;Spese correnti;4;Trasferimenti correnti;2;Trasferimenti correnti a Famiglie;2;Interventi assistenziali;999;Altri assegni e sussidi assistenziali;08/11/2023
3300;1;9999999;168;168;OMESSO NOMINATIVO NEL RISPETTO DELLA NORMATIVA SULLA PROTEZIONE DATI PERSONALI; ;06/11/2023;8362;0;885;1;Spese correnti;4;Trasferimenti correnti;2;Trasferimenti correnti a Famiglie;2;Interventi assistenziali;999;Altri assegni e sussidi assistenziali;08/11/2023
3301;1;9999999;110;110;OMESSO NOMINATIVO NEL RISPETTO DELLA NORMATIVA SULLA PROTEZIONE DATI PERSONALI; ;06/11/2023;8362;0;885;1;Spese correnti;4;Trasferimenti correnti;2;Trasferimenti correnti a Famiglie;2;Interventi assistenziali;999;Altri assegni e sussidi assistenziali;08/11/2023
3302;1;9999999;140;140;OMESSO NOMINATIVO NEL RISPETTO DELLA NORMATIVA SULLA PROTEZIONE DATI PERSONALI; ;06/11/2023;8362;0;885;1;Spese correnti;4;Trasferimenti correnti;2;Trasferimenti correnti a Famiglie;2;Interventi assistenziali;999;Altri assegni e sussidi assistenziali;08/11/2023
3303;1;9999999;120;120;OMESSO NOMINATIVO NEL RISPETTO DELLA NORMATIVA SULLA PROTEZIONE DATI PERSONALI; ;06/11/2023;8362;0;885;1;Spese correnti;4;Trasferimenti correnti;2;Trasferimenti correnti a Famiglie;2;Interventi assistenziali;999;Altri assegni e sussidi assistenziali;08/11/2023
3304;1;9999999;110;110;OMESSO NOMINATIVO NEL RISPETTO DELLA NORMATIVA SULLA PROTEZIONE DATI PERSONALI; ;06/11/2023;8362;0;885;1;Spese correnti;4;Trasferimenti correnti;2;Trasferimenti correnti a Famiglie;2;Interventi assistenziali;999;Altri assegni e sussidi assistenziali;08/11/2023
3305;1;9999999;130;130;OMESSO NOMINATIVO NEL RISPETTO DELLA NORMATIVA SULLA PROTEZIONE DATI PERSONALI; ;06/11/2023;8362;0;885;1;Spese correnti;4;Trasferimenti correnti;2;Trasferimenti correnti a Famiglie;2;Interventi assistenziali;999;Altri assegni e sussidi assistenziali;08/11/2023
3306;1;9999999;120;120;OMESSO NOMINATIVO NEL RISPETTO DELLA NORMATIVA SULLA PROTEZIONE DATI PERSONALI; ;06/11/2023;8362;0;885;1;Spese correnti;4;Trasferimenti correnti;2;Trasferimenti correnti a Famiglie;2;Interventi assistenziali;999;Altri assegni e sussidi assistenziali;08/11/2023
3307;1;9999999;150;150;OMESSO NOMINATIVO NEL RISPETTO DELLA NORMATIVA SULLA PROTEZIONE DATI PERSONALI; ;06/11/2023;8362;0;885;1;Spese correnti;4;Trasferimenti correnti;2;Trasferimenti correnti a Famiglie;2;Interventi assistenziali;999;Altri assegni e sussidi assistenziali;08/11/2023
3308;1;9999999;150;150;OMESSO NOMINATIVO NEL RISPETTO DELLA NORMATIVA SULLA PROTEZIONE DATI PERSONALI; ;06/11/2023;8362;0;885;1;Spese correnti;4;Trasferimenti correnti;2;Trasferimenti correnti a Famiglie;2;Interventi assistenziali;999;Altri assegni e sussidi assistenziali;08/11/2023
3309;1;9999999;70;70;OMESSO NOMINATIVO NEL RISPETTO DELLA NORMATIVA SULLA PROTEZIONE DATI PERSONALI; ;06/11/2023;8362;0;885;1;Spese correnti;4;Trasferimenti correnti;2;Trasferimenti correnti a Famiglie;2;Interventi assistenziali;999;Altri assegni e sussidi assistenziali;08/11/2023
3310;1;9999999;150;150;OMESSO NOMINATIVO NEL RISPETTO DELLA NORMATIVA SULLA PROTEZIONE DATI PERSONALI; ;06/11/2023;8362;0;885;1;Spese correnti;4;Trasferimenti correnti;2;Trasferimenti correnti a Famiglie;2;Interventi assistenziali;999;Altri assegni e sussidi assistenziali;08/11/2023
3311;1;9999999;110;110;OMESSO NOMINATIVO NEL RISPETTO DELLA NORMATIVA SULLA PROTEZIONE DATI PERSONALI; ;06/11/2023;8362;0;885;1;Spese correnti;4;Trasferimenti correnti;2;Trasferimenti correnti a Famiglie;2;Interventi assistenziali;999;Altri assegni e sussidi assistenziali;08/11/2023
3312;1;9999999;130;130;OMESSO NOMINATIVO NEL RISPETTO DELLA NORMATIVA SULLA PROTEZIONE DATI PERSONALI; ;06/11/2023;8362;0;885;1;Spese correnti;4;Trasferimenti correnti;2;Trasferimenti correnti a Famiglie;2;Interventi assistenziali;999;Altri assegni e sussidi assistenziali;08/11/2023
3313;1;9999999;140;140;OMESSO NOMINATIVO NEL RISPETTO DELLA NORMATIVA SULLA PROTEZIONE DATI PERSONALI; ;06/11/2023;8362;0;885;1;Spese correnti;4;Trasferimenti correnti;2;Trasferimenti correnti a Famiglie;2;Interventi assistenziali;999;Altri assegni e sussidi assistenziali;08/11/2023
3314;1;9999999;190;190;OMESSO NOMINATIVO NEL RISPETTO DELLA NORMATIVA SULLA PROTEZIONE DATI PERSONALI; ;06/11/2023;8362;0;885;1;Spese correnti;4;Trasferimenti correnti;2;Trasferimenti correnti a Famiglie;2;Interventi assistenziali;999;Altri assegni e sussidi assistenziali;08/11/2023
3315;1;9999999;130;130;OMESSO NOMINATIVO NEL RISPETTO DELLA NORMATIVA SULLA PROTEZIONE DATI PERSONALI; ;06/11/2023;8362;0;885;1;Spese correnti;4;Trasferimenti correnti;2;Trasferimenti correnti a Famiglie;2;Interventi assistenziali;999;Altri assegni e sussidi assistenziali;08/11/2023
3316;1;9999999;120;120;OMESSO NOMINATIVO NEL RISPETTO DELLA NORMATIVA SULLA PROTEZIONE DATI PERSONALI; ;06/11/2023;8362;0;885;1;Spese correnti;4;Trasferimenti correnti;2;Trasferimenti correnti a Famiglie;2;Interventi assistenziali;999;Altri assegni e sussidi assistenziali;08/11/2023
3317;1;9999999;120;120;OMESSO NOMINATIVO NEL RISPETTO DELLA NORMATIVA SULLA PROTEZIONE DATI PERSONALI; ;06/11/2023;8362;0;885;1;Spese correnti;4;Trasferimenti correnti;2;Trasferimenti correnti a Famiglie;2;Interventi assistenziali;999;Altri assegni e sussidi assistenziali;08/11/2023
3318;1;9999999;130;130;OMESSO NOMINATIVO NEL RISPETTO DELLA NORMATIVA SULLA PROTEZIONE DATI PERSONALI; ;06/11/2023;8362;0;885;1;Spese correnti;4;Trasferimenti correnti;2;Trasferimenti correnti a Famiglie;2;Interventi assistenziali;999;Altri assegni e sussidi assistenziali;08/11/2023
3319;1;9999999;130;130;OMESSO NOMINATIVO NEL RISPETTO DELLA NORMATIVA SULLA PROTEZIONE DATI PERSONALI; ;06/11/2023;8362;0;885;1;Spese correnti;4;Trasferimenti correnti;2;Trasferimenti correnti a Famiglie;2;Interventi assistenziali;999;Altri assegni e sussidi assistenziali;08/11/2023
3320;1;9999999;211;211;OMESSO NOMINATIVO NEL RISPETTO DELLA NORMATIVA SULLA PROTEZIONE DATI PERSONALI; ;06/11/2023;8362;0;885;1;Spese correnti;4;Trasferimenti correnti;2;Trasferimenti correnti a Famiglie;2;Interventi assistenziali;999;Altri assegni e sussidi assistenziali;08/11/2023
3321;1;9999999;196;196;OMESSO NOMINATIVO NEL RISPETTO DELLA NORMATIVA SULLA PROTEZIONE DATI PERSONALI; ;06/11/2023;8362;0;885;1;Spese correnti;4;Trasferimenti correnti;2;Trasferimenti correnti a Famiglie;2;Interventi assistenziali;999;Altri assegni e sussidi assistenziali;08/11/2023
3322;1;9999999;110;110;OMESSO NOMINATIVO NEL RISPETTO DELLA NORMATIVA SULLA PROTEZIONE DATI PERSONALI; ;06/11/2023;8362;0;885;1;Spese correnti;4;Trasferimenti correnti;2;Trasferimenti correnti a Famiglie;2;Interventi assistenziali;999;Altri assegni e sussidi assistenziali;08/11/2023
3323;1;9999999;130;130;OMESSO NOMINATIVO NEL RISPETTO DELLA NORMATIVA SULLA PROTEZIONE DATI PERSONALI; ;06/11/2023;8362;0;885;1;Spese correnti;4;Trasferimenti correnti;2;Trasferimenti correnti a Famiglie;2;Interventi assistenziali;999;Altri assegni e sussidi assistenziali;08/11/2023
3324;1;9999999;213;213;OMESSO NOMINATIVO NEL RISPETTO DELLA NORMATIVA SULLA PROTEZIONE DATI PERSONALI; ;06/11/2023;8362;0;885;1;Spese correnti;4;Trasferimenti correnti;2;Trasferimenti correnti a Famiglie;2;Interventi assistenziali;999;Altri assegni e sussidi assistenziali;08/11/2023
3325;1;9999999;130;130;OMESSO NOMINATIVO NEL RISPETTO DELLA NORMATIVA SULLA PROTEZIONE DATI PERSONALI; ;06/11/2023;8362;0;885;1;Spese correnti;4;Trasferimenti correnti;2;Trasferimenti correnti a Famiglie;2;Interventi assistenziali;999;Altri assegni e sussidi assistenziali;08/11/2023
3326;1;9999999;150;150;OMESSO NOMINATIVO NEL RISPETTO DELLA NORMATIVA SULLA PROTEZIONE DATI PERSONALI; ;06/11/2023;8362;0;885;1;Spese correnti;4;Trasferimenti correnti;2;Trasferimenti correnti a Famiglie;2;Interventi assistenziali;999;Altri assegni e sussidi assistenziali;08/11/2023
3327;1;9999999;110;110;OMESSO NOMINATIVO NEL RISPETTO DELLA NORMATIVA SULLA PROTEZIONE DATI PERSONALI; ;06/11/2023;8362;0;885;1;Spese correnti;4;Trasferimenti correnti;2;Trasferimenti correnti a Famiglie;2;Interventi assistenziali;999;Altri assegni e sussidi assistenziali;08/11/2023
3328;1;9999999;150;150;OMESSO NOMINATIVO NEL RISPETTO DELLA NORMATIVA SULLA PROTEZIONE DATI PERSONALI; ;06/11/2023;8362;0;885;1;Spese correnti;4;Trasferimenti correnti;2;Trasferimenti correnti a Famiglie;2;Interventi assistenziali;999;Altri assegni e sussidi assistenziali;08/11/2023
3329;1;9999999;432,18;432,18;OMESSO NOMINATIVO NEL RISPETTO DELLA NORMATIVA SULLA PROTEZIONE DATI PERSONALI; ;06/11/2023;8361;0;1316;1;Spese correnti;4;Trasferimenti correnti;2;Trasferimenti correnti a Famiglie;2;Interventi assistenziali;999;Altri assegni e sussidi assistenziali;08/11/2023
3330;1;9999999;663,24;663,24;OMESSO NOMINATIVO NEL RISPETTO DELLA NORMATIVA SULLA PROTEZIONE DATI PERSONALI; ;06/11/2023;8361;0;471;1;Spese correnti;4;Trasferimenti correnti;2;Trasferimenti correnti a Famiglie;2;Interventi assistenziali;999;Altri assegni e sussidi assistenziali;08/11/2023
3334;1;9999999;396;396;TREVISAN SPA;ZBA3C693F8;06/11/2023;610;0;759;1;Spese correnti;3;Acquisto di beni e servizi;2;Acquisto di servizi;99;Altri servizi;999;Altri servizi diversi n.a.c.;08/11/2023
3335;1;9999999;458,58;458,58;AUTOFFICINA B.M.T. CARS & TRUCKS SRL;ZE83A04208;06/11/2023;1340;1;284;1;Spese correnti;3;Acquisto di beni e servizi;2;Acquisto di servizi;9;Manutenzione ordinaria e riparazioni;1;Manutenzione ordinaria e riparazioni di mezzi di trasporto ad uso civile, di sicurezza e ordine pubblico;08/11/2023
3336;1;9999999;2,92;2,92;DOLOMITI ENERGIA SPA;964666689C;06/11/2023;1346;0;499;1;Spese correnti;3;Acquisto di beni e servizi;2;Acquisto di servizi;5;Utenze e canoni;6;Gas;08/11/2023
3337;1;9999999;3.999,99;3.999,99;PULITORI ED AFFINI SPA;87752258BF;06/11/2023;1794;0;656;1;Spese correnti;3;Acquisto di beni e servizi;2;Acquisto di servizi;13;Servizi ausiliari per il funzionamento dell'ente;2;Servizi di pulizia e lavanderia;08/11/2023
3338;1;9999999;242,88;242,88;PULITORI ED AFFINI SPA;87752258BF;06/11/2023;1794;0;656;1;Spese correnti;3;Acquisto di beni e servizi;2;Acquisto di servizi;13;Servizi ausiliari per il funzionamento dell'ente;2;Servizi di pulizia e lavanderia;08/11/2023
3339;1;9999999;2,92;67,86;DOLOMITI ENERGIA SPA;964666689C;06/11/2023;1801;0;489;1;Spese correnti;3;Acquisto di beni e servizi;2;Acquisto di servizi;5;Utenze e canoni;6;Gas;08/11/2023
3339;2;9999999;2,92;67,86;DOLOMITI ENERGIA SPA;964666689C;06/11/2023;1801;0;489;1;Spese correnti;3;Acquisto di beni e servizi;2;Acquisto di servizi;5;Utenze e canoni;6;Gas;08/11/2023
3339;3;9999999;3,8;67,86;DOLOMITI ENERGIA SPA;964666689C;06/11/2023;1801;0;489;1;Spese correnti;3;Acquisto di beni e servizi;2;Acquisto di servizi;5;Utenze e canoni;6;Gas;08/11/2023
3339;4;9999999;3,81;67,86;DOLOMITI ENERGIA SPA;964666689C;06/11/2023;1801;0;489;1;Spese correnti;3;Acquisto di beni e servizi;2;Acquisto di servizi;5;Utenze e canoni;6;Gas;08/11/2023
3339;5;9999999;12,24;67,86;DOLOMITI ENERGIA SPA;964666689C;06/11/2023;1801;0;489;1;Spese correnti;3;Acquisto di beni e servizi;2;Acquisto di servizi;5;Utenze e canoni;6;Gas;08/11/2023
3339;6;9999999;42,17;67,86;DOLOMITI ENERGIA SPA;964666689C;06/11/2023;1801;0;489;1;Spese correnti;3;Acquisto di beni e servizi;2;Acquisto di servizi;5;Utenze e canoni;6;Gas;08/11/2023
3340;1;9999999;279,13;279,13;AUTOFFICINA B.M.T. CARS & TRUCKS SRL;ZE83A04208;06/11/2023;2422;1;283;1;Spese correnti;3;Acquisto di beni e servizi;2;Acquisto di servizi;9;Manutenzione ordinaria e riparazioni;1;Manutenzione ordinaria e riparazioni di mezzi di trasporto ad uso civile, di sicurezza e ordine pubblico;08/11/2023
3341;1;9999999;153,76;153,76;DOLOMITI ENERGIA SPA;964666689C;06/11/2023;2790;0;490;1;Spese correnti;3;Acquisto di beni e servizi;2;Acquisto di servizi;5;Utenze e canoni;6;Gas;08/11/2023
3342;1;9999999;20,66;20,66;DOLOMITI ENERGIA SPA;964666689C;06/11/2023;2792;0;491;1;Spese correnti;3;Acquisto di beni e servizi;2;Acquisto di servizi;5;Utenze e canoni;6;Gas;08/11/2023
3343;1;9999999;25,25;436,84;DOLOMITI ENERGIA SPA;964666689C;06/11/2023;2973;0;492;1;Spese correnti;3;Acquisto di beni e servizi;2;Acquisto di servizi;5;Utenze e canoni;6;Gas;08/11/2023
3343;2;9999999;104,95;436,84;DOLOMITI ENERGIA SPA;964666689C;06/11/2023;2973;0;492;1;Spese correnti;3;Acquisto di beni e servizi;2;Acquisto di servizi;5;Utenze e canoni;6;Gas;08/11/2023
3343;3;9999999;112,85;436,84;DOLOMITI ENERGIA SPA;964666689C;06/11/2023;2973;0;492;1;Spese correnti;3;Acquisto di beni e servizi;2;Acquisto di servizi;5;Utenze e canoni;6;Gas;08/11/2023
3343;4;9999999;193,79;436,84;DOLOMITI ENERGIA SPA;964666689C;06/11/2023;2973;0;492;1;Spese correnti;3;Acquisto di beni e servizi;2;Acquisto di servizi;5;Utenze e canoni;6;Gas;08/11/2023
3344;1;9999999;209,28;209,28;DOLOMITI ENERGIA SPA;964666689C;06/11/2023;4020;0;493;1;Spese correnti;3;Acquisto di beni e servizi;2;Acquisto di servizi;5;Utenze e canoni;6;Gas;08/11/2023
3345;1;9999999;34,44;34,44;DOLOMITI ENERGIA SPA;964666689C;06/11/2023;4527;0;502;1;Spese correnti;3;Acquisto di beni e servizi;2;Acquisto di servizi;5;Utenze e canoni;6;Gas;08/11/2023
3346;1;9999999;12,03;12,03;DOLOMITI ENERGIA SPA;964666689C;06/11/2023;4686;0;494;1;Spese correnti;3;Acquisto di beni e servizi;2;Acquisto di servizi;5;Utenze e canoni;6;Gas;08/11/2023
3347;1;9999999;13,98;221,09;DOLOMITI ENERGIA SPA;964666689C;06/11/2023;5050;0;501;1;Spese correnti;3;Acquisto di beni e servizi;2;Acquisto di servizi;5;Utenze e canoni;6;Gas;08/11/2023
3347;2;9999999;15,19;221,09;DOLOMITI ENERGIA SPA;964666689C;06/11/2023;5050;0;501;1;Spese correnti;3;Acquisto di beni e servizi;2;Acquisto di servizi;5;Utenze e canoni;6;Gas;08/11/2023
3347;3;9999999;25,93;221,09;DOLOMITI ENERGIA SPA;964666689C;06/11/2023;5050;0;501;1;Spese correnti;3;Acquisto di beni e servizi;2;Acquisto di servizi;5;Utenze e canoni;6;Gas;08/11/2023
3347;4;9999999;165,99;221,09;DOLOMITI ENERGIA SPA;964666689C;06/11/2023;5050;0;501;1;Spese correnti;3;Acquisto di beni e servizi;2;Acquisto di servizi;5;Utenze e canoni;6;Gas;08/11/2023
3348;1;9999999;2,92;2,92;DOLOMITI ENERGIA SPA;964666689C;06/11/2023;5051;0;495;1;Spese correnti;3;Acquisto di beni e servizi;2;Acquisto di servizi;5;Utenze e canoni;6;Gas;08/11/2023
3349;1;9999999;95,55;95,55;DOLOMITI ENERGIA SPA;964666689C;06/11/2023;6461;0;496;1;Spese correnti;3;Acquisto di beni e servizi;2;Acquisto di servizi;5;Utenze e canoni;6;Gas;08/11/2023
3350;1;9999999;2,92;2,92;DOLOMITI ENERGIA SPA;964666689C;06/11/2023;6647;0;497;1;Spese correnti;3;Acquisto di beni e servizi;2;Acquisto di servizi;5;Utenze e canoni;6;Gas;08/11/2023
3351;1;9999999;4.086,15;18.936,39;CONTARINA S.P.A.; ;06/11/2023;7433;0;869;1;Spese correnti;3;Acquisto di beni e servizi;2;Acquisto di servizi;99;Altri servizi;999;Altri servizi diversi n.a.c.;08/11/2023
3351;2;9999999;14.850,24;18.936,39;CONTARINA S.P.A.; ;06/11/2023;7433;0;869;1;Spese correnti;3;Acquisto di beni e servizi;2;Acquisto di servizi;99;Altri servizi;999;Altri servizi diversi n.a.c.;08/11/2023
3352;1;9999999;13,78;116,29;DOLOMITI ENERGIA SPA;964666689C;06/11/2023;7552;1;500;1;Spese correnti;3;Acquisto di beni e servizi;2;Acquisto di servizi;5;Utenze e canoni;6;Gas;08/11/2023
3352;2;9999999;102,51;116,29;DOLOMITI ENERGIA SPA;964666689C;06/11/2023;7552;1;500;1;Spese correnti;3;Acquisto di beni e servizi;2;Acquisto di servizi;5;Utenze e canoni;6;Gas;08/11/2023
3353;1;9999999;353,8;353,8;INIZIATIVE UNINDUSTRIA SRL; ;06/11/2023;8204;4;758;1;Spese correnti;3;Acquisto di beni e servizi;2;Acquisto di servizi;99;Altri servizi;999;Altri servizi diversi n.a.c.;08/11/2023
3354;1;9999999;5.490,00;5.490,00;ITALSERVICE SRL;Z153BEFE4A;06/11/2023;13211;0;998;2;Spese in conto capitale;2;Investimenti fissi lordi e acquisto di terreni;1;Beni materiali;9;Beni immobili;3;Fabbricati ad uso scolastico;08/11/2023
3355;1;9999999;1.830,00;1.830,00;ITALSERVICE SRL;Z243C74E07;06/11/2023;13211;0;998;2;Spese in conto capitale;2;Investimenti fissi lordi e acquisto di terreni;1;Beni materiali;9;Beni immobili;3;Fabbricati ad uso scolastico;08/11/2023
3358;1;9999999;13.956,80;13.956,80;TERRE SRL;Z0F3A2BEB2;06/11/2023;6276;0;353;1;Spese correnti;3;Acquisto di beni e servizi;2;Acquisto di servizi;11;Prestazioni professionali e specialistiche;999;Altre prestazioni professionali e specialistiche n.a.c.;08/11/2023
3359;1;9999999;30.000,00;30.000,00;CONTARINA S.P.A.; ;06/11/2023;7430;0;868;1;Spese correnti;3;Acquisto di beni e servizi;2;Acquisto di servizi;9;Manutenzione ordinaria e riparazioni;8;Manutenzione ordinaria e riparazioni di beni immobili;08/11/2023
3360;1;9999999;854;854;CENTRO STUDI AMM.VI M.T.;Z1939B109C;06/11/2023;9442;0;193;1;Spese correnti;3;Acquisto di beni e servizi;2;Acquisto di servizi;99;Altri servizi;999;Altri servizi diversi n.a.c.;08/11/2023
3361;1;9999999;3.600,00;3.600,00;CENTRO STUDI AMM.VI M.T.; ;08/11/2023;230;0;910;1;Spese correnti;3;Acquisto di beni e servizi;2;Acquisto di servizi;99;Altri servizi;3;Quote di associazioni;13/11/2023
3362;1;9999999;775;775;CENTRO STUDI AMM.VI M.T.; ;08/11/2023;692;0;911;1;Spese correnti;3;Acquisto di beni e servizi;2;Acquisto di servizi;99;Altri servizi;3;Quote di associazioni;13/11/2023
3364;1;9999999;152,13;152,13;BI ESSE SPA;Z7B398A8D1;08/11/2023;5840;0;155;1;Spese correnti;3;Acquisto di beni e servizi;1;Acquisto di beni;2;Altri beni di consumo;999;Altri beni e materiali di consumo n.a.c.;13/11/2023
3365;1;9999999;4.270,44;4.270,44;COSTRUZIONI MANUTENZIONI CECCHIN S.R.L.;Z393B3ABEC;08/11/2023;11302;8;477;2;Spese in conto capitale;2;Investimenti fissi lordi e acquisto di terreni;1;Beni materiali;9;Beni immobili;19;Fabbricati ad uso strumentale;13/11/2023
3366;1;9999999;1.100,00;1.100,00;TERMICA SILE S.R.L.;Z733832940;08/11/2023;1185;1;975;1;Spese correnti;3;Acquisto di beni e servizi;2;Acquisto di servizi;9;Manutenzione ordinaria e riparazioni;4;Manutenzione ordinaria e riparazioni di impianti e macchinari;13/11/2023
3367;1;9999999;120;120;TERMICA SILE S.R.L.;Z733832940;08/11/2023;2760;0;970;1;Spese correnti;3;Acquisto di beni e servizi;2;Acquisto di servizi;9;Manutenzione ordinaria e riparazioni;4;Manutenzione ordinaria e riparazioni di impianti e macchinari;13/11/2023
3368;1;9999999;100;100;TERMICA SILE S.R.L.;Z733832940;08/11/2023;2770;1;971;1;Spese correnti;3;Acquisto di beni e servizi;2;Acquisto di servizi;9;Manutenzione ordinaria e riparazioni;4;Manutenzione ordinaria e riparazioni di impianti e macchinari;13/11/2023
3369;1;9999999;1.100,00;1.100,00;TERMICA SILE S.R.L.;Z733832940;08/11/2023;2980;1;972;1;Spese correnti;3;Acquisto di beni e servizi;2;Acquisto di servizi;9;Manutenzione ordinaria e riparazioni;4;Manutenzione ordinaria e riparazioni di impianti e macchinari;13/11/2023
3370;1;9999999;500;500;TERMICA SILE S.R.L.;Z733832940;08/11/2023;4030;0;973;1;Spese correnti;3;Acquisto di beni e servizi;2;Acquisto di servizi;9;Manutenzione ordinaria e riparazioni;4;Manutenzione ordinaria e riparazioni di impianti e macchinari;13/11/2023
3371;1;9999999;120;120;TERMICA SILE S.R.L.;Z733832940;08/11/2023;4540;0;974;1;Spese correnti;3;Acquisto di beni e servizi;2;Acquisto di servizi;9;Manutenzione ordinaria e riparazioni;4;Manutenzione ordinaria e riparazioni di impianti e macchinari;13/11/2023
3372;1;9999999;500;500;TERMICA SILE S.R.L.;Z733832940;08/11/2023;4660;0;976;1;Spese correnti;3;Acquisto di beni e servizi;2;Acquisto di servizi;9;Manutenzione ordinaria e riparazioni;4;Manutenzione ordinaria e riparazioni di impianti e macchinari;13/11/2023
3373;1;9999999;2.500,00;2.500,00;OMESSO NOMINATIVO NEL RISPETTO DELLA NORMATIVA SULLA PROTEZIONE DATI PERSONALI;ZF53C5F072;08/11/2023;4711;0;770;1;Spese correnti;3;Acquisto di beni e servizi;2;Acquisto di servizi;99;Altri servizi;999;Altri servizi diversi n.a.c.;13/11/2023
3374;1;9999999;500;500;TERMICA SILE S.R.L.;Z733832940;08/11/2023;5080;0;978;1;Spese correnti;3;Acquisto di beni e servizi;2;Acquisto di servizi;9;Manutenzione ordinaria e riparazioni;4;Manutenzione ordinaria e riparazioni di impianti e macchinari;13/11/2023
3375;1;9999999;60;60;TERMICA SILE S.R.L.;Z733832940;08/11/2023;6590;1;977;1;Spese correnti;3;Acquisto di beni e servizi;2;Acquisto di servizi;9;Manutenzione ordinaria e riparazioni;4;Manutenzione ordinaria e riparazioni di impianti e macchinari;13/11/2023
3376;1;9999999;170;170;TERMICA SILE S.R.L.;Z733832940;08/11/2023;7550;0;979;1;Spese correnti;3;Acquisto di beni e servizi;2;Acquisto di servizi;9;Manutenzione ordinaria e riparazioni;4;Manutenzione ordinaria e riparazioni di impianti e macchinari;13/11/2023
3378;1;9999999;6.274,73;6.274,73;PRO LOCO PREGANZIOL; ;08/11/2023;5412;0;918;1;Spese correnti;4;Trasferimenti correnti;4;Trasferimenti correnti a Istituzioni Sociali Private;1;Trasferimenti correnti a Istituzioni Sociali Private;1;Trasferimenti correnti a Istituzioni Sociali Private;13/11/2023
3380;1;9999999;30;30;BANCOPOSTA; ;09/11/2023;820;0;127;1;Spese correnti;3;Acquisto di beni e servizi;2;Acquisto di servizi;17;Servizi finanziari;2;Oneri per servizio di tesoreria;14/11/2023
3382;1;9999999;263,99;263,99;AGENZIA DELLE ENTRATE DI TREVISO; ;09/11/2023;1904;0;924;1;Spese correnti;10;Altre spese correnti;3;Versamenti IVA a debito;1;Versamenti IVA a debito per le gestioni commerciali;1;Versamenti IVA a debito per le gestioni commerciali;15/11/2023
3384;1;9999999;272,66;272,66;EDILVERDE S.R.L.;Z82398837C;09/11/2023;1300;0;150;1;Spese correnti;3;Acquisto di beni e servizi;1;Acquisto di beni;2;Altri beni di consumo;999;Altri beni e materiali di consumo n.a.c.;14/11/2023
3385;1;9999999;1.380,00;1.380,00;FONDAZIONE G. GINI ONLUS - VILLAGGIO SOLIDALE DI MIRANO; ;09/11/2023;8204;2;650;1;Spese correnti;3;Acquisto di beni e servizi;2;Acquisto di servizi;15;Contratti di servizio pubblico;8;Contratti di servizio di assistenza sociale residenziale e semiresidenziale;14/11/2023
3386;1;9999999;2.313,50;2.313,50;FONDAZIONE G. GINI ONLUS - VILLAGGIO SOLIDALE DI MIRANO; ;09/11/2023;8204;2;842;1;Spese correnti;3;Acquisto di beni e servizi;2;Acquisto di servizi;15;Contratti di servizio pubblico;8;Contratti di servizio di assistenza sociale residenziale e semiresidenziale;14/11/2023
3387;1;9999999;158.358,57;158.358,57;AZIENDA ULSS N.2 - MARCA TREVIGIANA; ;09/11/2023;8360;0;183;1;Spese correnti;4;Trasferimenti correnti;1;Trasferimenti correnti a Amministrazioni Pubbliche;2;Trasferimenti correnti a Amministrazioni Locali;20;Trasferimenti correnti a Aziende sanitarie locali  a titolo di finanziamento del servizio sanitario nazionale;14/11/2023
3388;1;9999999;1.298,13;1.298,13;AUSER INSIEME CIRCOLO RICREATIVO ANZIANI S.TROVASO; ;09/11/2023;4760;0;921;1;Spese correnti;4;Trasferimenti correnti;4;Trasferimenti correnti a Istituzioni Sociali Private;1;Trasferimenti correnti a Istituzioni Sociali Private;1;Trasferimenti correnti a Istituzioni Sociali Private;14/11/2023
3389;1;9999999;152;152;INTERMEDIA IB SRL BROKER PER CATTOLICA ASSICURAZIONI SPA;Z11389F3AE;09/11/2023;810;0;923;1;Spese correnti;3;Acquisto di beni e servizi;2;Acquisto di servizi;99;Altri servizi;999;Altri servizi diversi n.a.c.;14/11/2023
3390;1;9999999;793;793;SOC. IMM. MURETTO S.N.C. DI CRESCENTE V. & C.; ;09/11/2023;1812;0;327;1;Spese correnti;3;Acquisto di beni e servizi;2;Acquisto di servizi;7;Utilizzo di beni di terzi;1;Locazione di beni immobili;14/11/2023
3392;1;9999999;150;150;OMESSO NOMINATIVO NEL RISPETTO DELLA NORMATIVA SULLA PROTEZIONE DATI PERSONALI; ;10/11/2023;8361;0;451;1;Spese correnti;4;Trasferimenti correnti;2;Trasferimenti correnti a Famiglie;2;Interventi assistenziali;999;Altri assegni e sussidi assistenziali;15/11/2023
3393;1;9999999;300;300;OMESSO NOMINATIVO NEL RISPETTO DELLA NORMATIVA SULLA PROTEZIONE DATI PERSONALI; ;10/11/2023;8361;0;451;1;Spese correnti;4;Trasferimenti correnti;2;Trasferimenti correnti a Famiglie;2;Interventi assistenziali;999;Altri assegni e sussidi assistenziali;15/11/2023
3394;1;9999999;100;100;OMESSO NOMINATIVO NEL RISPETTO DELLA NORMATIVA SULLA PROTEZIONE DATI PERSONALI; ;10/11/2023;8361;0;451;1;Spese correnti;4;Trasferimenti correnti;2;Trasferimenti correnti a Famiglie;2;Interventi assistenziali;999;Altri assegni e sussidi assistenziali;15/11/2023
3395;1;9999999;180;180;OMESSO NOMINATIVO NEL RISPETTO DELLA NORMATIVA SULLA PROTEZIONE DATI PERSONALI; ;10/11/2023;8361;0;451;1;Spese correnti;4;Trasferimenti correnti;2;Trasferimenti correnti a Famiglie;2;Interventi assistenziali;999;Altri assegni e sussidi assistenziali;15/11/2023
3396;1;9999999;200;200;OMESSO NOMINATIVO NEL RISPETTO DELLA NORMATIVA SULLA PROTEZIONE DATI PERSONALI; ;10/11/2023;8361;0;451;1;Spese correnti;4;Trasferimenti correnti;2;Trasferimenti correnti a Famiglie;2;Interventi assistenziali;999;Altri assegni e sussidi assistenziali;15/11/2023
3397;1;9999999;100;100;OMESSO NOMINATIVO NEL RISPETTO DELLA NORMATIVA SULLA PROTEZIONE DATI PERSONALI; ;10/11/2023;8361;0;451;1;Spese correnti;4;Trasferimenti correnti;2;Trasferimenti correnti a Famiglie;2;Interventi assistenziali;999;Altri assegni e sussidi assistenziali;15/11/2023
3398;1;9999999;100;100;OMESSO NOMINATIVO NEL RISPETTO DELLA NORMATIVA SULLA PROTEZIONE DATI PERSONALI; ;10/11/2023;8361;0;451;1;Spese correnti;4;Trasferimenti correnti;2;Trasferimenti correnti a Famiglie;2;Interventi assistenziali;999;Altri assegni e sussidi assistenziali;15/11/2023
3399;1;9999999;150;150;OMESSO NOMINATIVO NEL RISPETTO DELLA NORMATIVA SULLA PROTEZIONE DATI PERSONALI; ;10/11/2023;8361;0;451;1;Spese correnti;4;Trasferimenti correnti;2;Trasferimenti correnti a Famiglie;2;Interventi assistenziali;999;Altri assegni e sussidi assistenziali;15/11/2023
3400;1;9999999;100;100;OMESSO NOMINATIVO NEL RISPETTO DELLA NORMATIVA SULLA PROTEZIONE DATI PERSONALI; ;10/11/2023;8361;0;451;1;Spese correnti;4;Trasferimenti correnti;2;Trasferimenti correnti a Famiglie;2;Interventi assistenziali;999;Altri assegni e sussidi assistenziali;15/11/2023
3401;1;9999999;100;100;OMESSO NOMINATIVO NEL RISPETTO DELLA NORMATIVA SULLA PROTEZIONE DATI PERSONALI; ;10/11/2023;8361;0;451;1;Spese correnti;4;Trasferimenti correnti;2;Trasferimenti correnti a Famiglie;2;Interventi assistenziali;999;Altri assegni e sussidi assistenziali;15/11/2023
3402;1;9999999;135;135;OMESSO NOMINATIVO NEL RISPETTO DELLA NORMATIVA SULLA PROTEZIONE DATI PERSONALI; ;10/11/2023;8361;0;451;1;Spese correnti;4;Trasferimenti correnti;2;Trasferimenti correnti a Famiglie;2;Interventi assistenziali;999;Altri assegni e sussidi assistenziali;15/11/2023
3403;1;9999999;243;243;OMESSO NOMINATIVO NEL RISPETTO DELLA NORMATIVA SULLA PROTEZIONE DATI PERSONALI; ;10/11/2023;8361;0;451;1;Spese correnti;4;Trasferimenti correnti;2;Trasferimenti correnti a Famiglie;2;Interventi assistenziali;999;Altri assegni e sussidi assistenziali;15/11/2023
3404;1;9999999;90;90;OMESSO NOMINATIVO NEL RISPETTO DELLA NORMATIVA SULLA PROTEZIONE DATI PERSONALI; ;10/11/2023;8361;0;451;1;Spese correnti;4;Trasferimenti correnti;2;Trasferimenti correnti a Famiglie;2;Interventi assistenziali;999;Altri assegni e sussidi assistenziali;15/11/2023
3405;1;9999999;100;100;OMESSO NOMINATIVO NEL RISPETTO DELLA NORMATIVA SULLA PROTEZIONE DATI PERSONALI; ;10/11/2023;8361;0;451;1;Spese correnti;4;Trasferimenti correnti;2;Trasferimenti correnti a Famiglie;2;Interventi assistenziali;999;Altri assegni e sussidi assistenziali;15/11/2023
3406;1;9999999;270;270;OMESSO NOMINATIVO NEL RISPETTO DELLA NORMATIVA SULLA PROTEZIONE DATI PERSONALI; ;10/11/2023;8361;0;451;1;Spese correnti;4;Trasferimenti correnti;2;Trasferimenti correnti a Famiglie;2;Interventi assistenziali;999;Altri assegni e sussidi assistenziali;15/11/2023
3407;1;9999999;400;400;OMESSO NOMINATIVO NEL RISPETTO DELLA NORMATIVA SULLA PROTEZIONE DATI PERSONALI; ;10/11/2023;8361;0;451;1;Spese correnti;4;Trasferimenti correnti;2;Trasferimenti correnti a Famiglie;2;Interventi assistenziali;999;Altri assegni e sussidi assistenziali;15/11/2023
3408;1;9999999;90;90;OMESSO NOMINATIVO NEL RISPETTO DELLA NORMATIVA SULLA PROTEZIONE DATI PERSONALI; ;10/11/2023;8361;0;451;1;Spese correnti;4;Trasferimenti correnti;2;Trasferimenti correnti a Famiglie;2;Interventi assistenziali;999;Altri assegni e sussidi assistenziali;15/11/2023
3409;1;9999999;200;200;OMESSO NOMINATIVO NEL RISPETTO DELLA NORMATIVA SULLA PROTEZIONE DATI PERSONALI; ;10/11/2023;8361;0;451;1;Spese correnti;4;Trasferimenti correnti;2;Trasferimenti correnti a Famiglie;2;Interventi assistenziali;999;Altri assegni e sussidi assistenziali;15/11/2023
3410;1;9999999;90;90;OMESSO NOMINATIVO NEL RISPETTO DELLA NORMATIVA SULLA PROTEZIONE DATI PERSONALI; ;10/11/2023;8361;0;451;1;Spese correnti;4;Trasferimenti correnti;2;Trasferimenti correnti a Famiglie;2;Interventi assistenziali;999;Altri assegni e sussidi assistenziali;15/11/2023
3411;1;9999999;150;150;OMESSO NOMINATIVO NEL RISPETTO DELLA NORMATIVA SULLA PROTEZIONE DATI PERSONALI; ;10/11/2023;8361;0;451;1;Spese correnti;4;Trasferimenti correnti;2;Trasferimenti correnti a Famiglie;2;Interventi assistenziali;999;Altri assegni e sussidi assistenziali;15/11/2023
3412;1;9999999;150;150;OMESSO NOMINATIVO NEL RISPETTO DELLA NORMATIVA SULLA PROTEZIONE DATI PERSONALI; ;10/11/2023;8361;0;451;1;Spese correnti;4;Trasferimenti correnti;2;Trasferimenti correnti a Famiglie;2;Interventi assistenziali;999;Altri assegni e sussidi assistenziali;15/11/2023
3413;1;9999999;100;100;OMESSO NOMINATIVO NEL RISPETTO DELLA NORMATIVA SULLA PROTEZIONE DATI PERSONALI; ;10/11/2023;8361;0;451;1;Spese correnti;4;Trasferimenti correnti;2;Trasferimenti correnti a Famiglie;2;Interventi assistenziali;999;Altri assegni e sussidi assistenziali;15/11/2023
3414;1;9999999;60;60;OMESSO NOMINATIVO NEL RISPETTO DELLA NORMATIVA SULLA PROTEZIONE DATI PERSONALI; ;10/11/2023;8361;0;451;1;Spese correnti;4;Trasferimenti correnti;2;Trasferimenti correnti a Famiglie;2;Interventi assistenziali;999;Altri assegni e sussidi assistenziali;15/11/2023
3415;1;9999999;100;100;OMESSO NOMINATIVO NEL RISPETTO DELLA NORMATIVA SULLA PROTEZIONE DATI PERSONALI; ;10/11/2023;8361;0;451;1;Spese correnti;4;Trasferimenti correnti;2;Trasferimenti correnti a Famiglie;2;Interventi assistenziali;999;Altri assegni e sussidi assistenziali;15/11/2023
3416;1;9999999;540;540;OMESSO NOMINATIVO NEL RISPETTO DELLA NORMATIVA SULLA PROTEZIONE DATI PERSONALI; ;10/11/2023;8361;0;451;1;Spese correnti;4;Trasferimenti correnti;2;Trasferimenti correnti a Famiglie;2;Interventi assistenziali;999;Altri assegni e sussidi assistenziali;15/11/2023
3417;1;9999999;100;100;OMESSO NOMINATIVO NEL RISPETTO DELLA NORMATIVA SULLA PROTEZIONE DATI PERSONALI; ;10/11/2023;8361;0;451;1;Spese correnti;4;Trasferimenti correnti;2;Trasferimenti correnti a Famiglie;2;Interventi assistenziali;999;Altri assegni e sussidi assistenziali;15/11/2023
3418;1;9999999;200;200;OMESSO NOMINATIVO NEL RISPETTO DELLA NORMATIVA SULLA PROTEZIONE DATI PERSONALI; ;10/11/2023;8361;0;451;1;Spese correnti;4;Trasferimenti correnti;2;Trasferimenti correnti a Famiglie;2;Interventi assistenziali;999;Altri assegni e sussidi assistenziali;15/11/2023
3419;1;9999999;200;200;OMESSO NOMINATIVO NEL RISPETTO DELLA NORMATIVA SULLA PROTEZIONE DATI PERSONALI; ;10/11/2023;8361;0;451;1;Spese correnti;4;Trasferimenti correnti;2;Trasferimenti correnti a Famiglie;2;Interventi assistenziali;999;Altri assegni e sussidi assistenziali;15/11/2023
3420;1;9999999;180;180;OMESSO NOMINATIVO NEL RISPETTO DELLA NORMATIVA SULLA PROTEZIONE DATI PERSONALI; ;10/11/2023;8361;0;451;1;Spese correnti;4;Trasferimenti correnti;2;Trasferimenti correnti a Famiglie;2;Interventi assistenziali;999;Altri assegni e sussidi assistenziali;15/11/2023
3421;1;9999999;180;180;OMESSO NOMINATIVO NEL RISPETTO DELLA NORMATIVA SULLA PROTEZIONE DATI PERSONALI; ;10/11/2023;8361;0;451;1;Spese correnti;4;Trasferimenti correnti;2;Trasferimenti correnti a Famiglie;2;Interventi assistenziali;999;Altri assegni e sussidi assistenziali;15/11/2023
3422;1;9999999;100;100;OMESSO NOMINATIVO NEL RISPETTO DELLA NORMATIVA SULLA PROTEZIONE DATI PERSONALI; ;10/11/2023;8361;0;451;1;Spese correnti;4;Trasferimenti correnti;2;Trasferimenti correnti a Famiglie;2;Interventi assistenziali;999;Altri assegni e sussidi assistenziali;15/11/2023
3423;1;9999999;100;100;OMESSO NOMINATIVO NEL RISPETTO DELLA NORMATIVA SULLA PROTEZIONE DATI PERSONALI; ;10/11/2023;8361;0;451;1;Spese correnti;4;Trasferimenti correnti;2;Trasferimenti correnti a Famiglie;2;Interventi assistenziali;999;Altri assegni e sussidi assistenziali;15/11/2023
3424;1;9999999;90;90;OMESSO NOMINATIVO NEL RISPETTO DELLA NORMATIVA SULLA PROTEZIONE DATI PERSONALI; ;10/11/2023;8361;0;451;1;Spese correnti;4;Trasferimenti correnti;2;Trasferimenti correnti a Famiglie;2;Interventi assistenziali;999;Altri assegni e sussidi assistenziali;15/11/2023
3425;1;9999999;135;135;OMESSO NOMINATIVO NEL RISPETTO DELLA NORMATIVA SULLA PROTEZIONE DATI PERSONALI; ;10/11/2023;8361;0;451;1;Spese correnti;4;Trasferimenti correnti;2;Trasferimenti correnti a Famiglie;2;Interventi assistenziali;999;Altri assegni e sussidi assistenziali;15/11/2023
3426;1;9999999;90;90;OMESSO NOMINATIVO NEL RISPETTO DELLA NORMATIVA SULLA PROTEZIONE DATI PERSONALI; ;10/11/2023;8361;0;451;1;Spese correnti;4;Trasferimenti correnti;2;Trasferimenti correnti a Famiglie;2;Interventi assistenziali;999;Altri assegni e sussidi assistenziali;15/11/2023
3427;1;9999999;180;180;OMESSO NOMINATIVO NEL RISPETTO DELLA NORMATIVA SULLA PROTEZIONE DATI PERSONALI; ;10/11/2023;8361;0;451;1;Spese correnti;4;Trasferimenti correnti;2;Trasferimenti correnti a Famiglie;2;Interventi assistenziali;999;Altri assegni e sussidi assistenziali;15/11/2023
3428;1;9999999;200;200;OMESSO NOMINATIVO NEL RISPETTO DELLA NORMATIVA SULLA PROTEZIONE DATI PERSONALI; ;10/11/2023;8361;0;451;1;Spese correnti;4;Trasferimenti correnti;2;Trasferimenti correnti a Famiglie;2;Interventi assistenziali;999;Altri assegni e sussidi assistenziali;15/11/2023
3429;1;9999999;150;150;OMESSO NOMINATIVO NEL RISPETTO DELLA NORMATIVA SULLA PROTEZIONE DATI PERSONALI; ;10/11/2023;8361;0;451;1;Spese correnti;4;Trasferimenti correnti;2;Trasferimenti correnti a Famiglie;2;Interventi assistenziali;999;Altri assegni e sussidi assistenziali;15/11/2023
3431;1;9999999;732;732;HALLEY VENETO SRL;ZDE3C5CDD0;14/11/2023;670;1;748;1;Spese correnti;3;Acquisto di beni e servizi;2;Acquisto di servizi;99;Altri servizi;999;Altri servizi diversi n.a.c.;17/11/2023
3432;1;9999999;733,52;733,52;SOGEST ITALIA SRL;Z08372EAAD;14/11/2023;1185;1;715;1;Spese correnti;3;Acquisto di beni e servizi;2;Acquisto di servizi;9;Manutenzione ordinaria e riparazioni;4;Manutenzione ordinaria e riparazioni di impianti e macchinari;17/11/2023
3433;1;9999999;50;50;SOGEST ITALIA SRL;Z08372EAAD;14/11/2023;1185;2;716;1;Spese correnti;3;Acquisto di beni e servizi;2;Acquisto di servizi;9;Manutenzione ordinaria e riparazioni;4;Manutenzione ordinaria e riparazioni di impianti e macchinari;17/11/2023
3434;1;9999999;1.800,00;1.800,00;SOGEST ITALIA SRL;Z08372EAAD;14/11/2023;1805;0;714;1;Spese correnti;3;Acquisto di beni e servizi;2;Acquisto di servizi;13;Servizi ausiliari per il funzionamento dell'ente;1;Servizi di sorveglianza, custodia e accoglienza;17/11/2023
3435;1;9999999;373,12;373,12;VIER  SCARL; ;14/11/2023;2792;0;235;1;Spese correnti;3;Acquisto di beni e servizi;2;Acquisto di servizi;5;Utenze e canoni;4;Energia elettrica;17/11/2023
3436;1;9999999;1.402,13;1.402,13;VIER  SCARL; ;14/11/2023;2973;0;131;1;Spese correnti;3;Acquisto di beni e servizi;2;Acquisto di servizi;5;Utenze e canoni;4;Energia elettrica;17/11/2023
3437;1;9999999;671,25;671,25;VIER  SCARL; ;14/11/2023;4020;0;236;1;Spese correnti;3;Acquisto di beni e servizi;2;Acquisto di servizi;5;Utenze e canoni;4;Energia elettrica;17/11/2023
3438;1;9999999;686,66;686,66;VIER  SCARL; ;14/11/2023;5050;0;132;1;Spese correnti;3;Acquisto di beni e servizi;2;Acquisto di servizi;5;Utenze e canoni;4;Energia elettrica;17/11/2023
3439;1;9999999;248,75;248,75;VIER  SCARL; ;14/11/2023;7552;1;237;1;Spese correnti;3;Acquisto di beni e servizi;2;Acquisto di servizi;5;Utenze e canoni;4;Energia elettrica;17/11/2023
3440;1;9999999;9.811,74;9.811,74;CODESS SOCIALE-COOP. ONLUS;8855832FBD;14/11/2023;7560;1;771;1;Spese correnti;3;Acquisto di beni e servizi;2;Acquisto di servizi;15;Contratti di servizio pubblico;10;Contratti di servizio di asilo nido;17/11/2023
3441;1;9999999;5.533,79;5.533,79;CODESS SOCIALE-COOP. ONLUS;8855832FBD;14/11/2023;7560;1;771;1;Spese correnti;3;Acquisto di beni e servizi;2;Acquisto di servizi;15;Contratti di servizio pubblico;10;Contratti di servizio di asilo nido;17/11/2023
3443;1;9999999;13,21;13,21;FASTWEB SPA;Z742CA65BF;14/11/2023;1346;1;321;1;Spese correnti;3;Acquisto di beni e servizi;2;Acquisto di servizi;5;Utenze e canoni;1;Telefonia fissa;17/11/2023
3444;1;9999999;267,3;267,3;FASTWEB SPA;Z742CA65BF;14/11/2023;1801;1;322;1;Spese correnti;3;Acquisto di beni e servizi;2;Acquisto di servizi;5;Utenze e canoni;1;Telefonia fissa;17/11/2023
3445;1;9999999;15,8;15,8;FASTWEB SPA;Z742CA65BF;14/11/2023;2790;1;323;1;Spese correnti;3;Acquisto di beni e servizi;2;Acquisto di servizi;5;Utenze e canoni;1;Telefonia fissa;17/11/2023
3446;1;9999999;14,03;14,03;FASTWEB SPA;Z742CA65BF;14/11/2023;2792;1;324;1;Spese correnti;3;Acquisto di beni e servizi;2;Acquisto di servizi;5;Utenze e canoni;1;Telefonia fissa;17/11/2023
3447;1;9999999;104,27;104,27;FASTWEB SPA;Z742CA65BF;14/11/2023;2973;1;325;1;Spese correnti;3;Acquisto di beni e servizi;2;Acquisto di servizi;5;Utenze e canoni;1;Telefonia fissa;17/11/2023
3448;1;9999999;118,79;118,79;FASTWEB SPA;Z742CA65BF;14/11/2023;4020;1;326;1;Spese correnti;3;Acquisto di beni e servizi;2;Acquisto di servizi;5;Utenze e canoni;1;Telefonia fissa;17/11/2023
3449;1;9999999;13,18;13,18;FASTWEB SPA;Z742CA65BF;14/11/2023;4527;1;327;1;Spese correnti;3;Acquisto di beni e servizi;2;Acquisto di servizi;5;Utenze e canoni;1;Telefonia fissa;17/11/2023
3450;1;9999999;13,18;13,18;FASTWEB SPA;Z742CA65BF;14/11/2023;6642;0;328;1;Spese correnti;3;Acquisto di beni e servizi;2;Acquisto di servizi;5;Utenze e canoni;1;Telefonia fissa;17/11/2023
3451;1;9999999;2.501,00;2.501,00;AGENZIA PER L'ENERGIA DEL FRIULI VENEZIA GIULIA;ZBD2E20B3A;15/11/2023;7433;0;879;1;Spese correnti;3;Acquisto di beni e servizi;2;Acquisto di servizi;99;Altri servizi;999;Altri servizi diversi n.a.c.;17/11/2023
3452;1;9999999;29.003,98;29.003,98;STUDIO NADALIN & ASSOCIATI DI NADALIN LORENZO E ZANESCO;9799499266;15/11/2023;13452;0;469;2;Spese in conto capitale;2;Investimenti fissi lordi e acquisto di terreni;1;Beni materiali;9;Beni immobili;3;Fabbricati ad uso scolastico;17/11/2023
3453;1;9999999;1.081,57;1.081,57;COMUNE DI MOGLIANO VENETO; ;15/11/2023;2452;1;307;1;Spese correnti;4;Trasferimenti correnti;1;Trasferimenti correnti a Amministrazioni Pubbliche;2;Trasferimenti correnti a Amministrazioni Locali;3;Trasferimenti correnti a Comuni;17/11/2023
3454;1;9999999;5,88;5,88;COMUNE DI BELLUNO; ;15/11/2023;675;0;936;1;Spese correnti;3;Acquisto di beni e servizi;2;Acquisto di servizi;16;Servizi amministrativi;999;Altre spese per servizi amministrativi;17/11/2023
3455;1;9999999;5,88;5,88;COMUNE DI BELLUNO; ;15/11/2023;675;0;936;1;Spese correnti;3;Acquisto di beni e servizi;2;Acquisto di servizi;16;Servizi amministrativi;999;Altre spese per servizi amministrativi;17/11/2023
3456;1;9999999;5,88;5,88;COMUNE DI BELLUNO; ;15/11/2023;675;0;936;1;Spese correnti;3;Acquisto di beni e servizi;2;Acquisto di servizi;16;Servizi amministrativi;999;Altre spese per servizi amministrativi;17/11/2023
3457;1;9999999;5,88;5,88;COMUNE DI BELLUNO; ;15/11/2023;675;0;936;1;Spese correnti;3;Acquisto di beni e servizi;2;Acquisto di servizi;16;Servizi amministrativi;999;Altre spese per servizi amministrativi;17/11/2023
3458;1;9999999;5,88;5,88;COMUNE DI BELLUNO; ;15/11/2023;675;0;936;1;Spese correnti;3;Acquisto di beni e servizi;2;Acquisto di servizi;16;Servizi amministrativi;999;Altre spese per servizi amministrativi;17/11/2023
3459;1;9999999;5,88;5,88;COMUNE DI BELLUNO; ;15/11/2023;675;0;936;1;Spese correnti;3;Acquisto di beni e servizi;2;Acquisto di servizi;16;Servizi amministrativi;999;Altre spese per servizi amministrativi;17/11/2023
3460;1;9999999;5,88;5,88;COMUNE DI BELLUNO; ;15/11/2023;675;0;936;1;Spese correnti;3;Acquisto di beni e servizi;2;Acquisto di servizi;16;Servizi amministrativi;999;Altre spese per servizi amministrativi;17/11/2023
3461;1;9999999;5,88;5,88;COMUNE DI BELLUNO; ;15/11/2023;675;0;936;1;Spese correnti;3;Acquisto di beni e servizi;2;Acquisto di servizi;16;Servizi amministrativi;999;Altre spese per servizi amministrativi;17/11/2023
3462;1;9999999;5,88;5,88;COMUNE DI SPRESIANO; ;15/11/2023;675;0;936;1;Spese correnti;3;Acquisto di beni e servizi;2;Acquisto di servizi;16;Servizi amministrativi;999;Altre spese per servizi amministrativi;17/11/2023
3463;1;9999999;10,18;10,18;COMUNE DI GROSSETO; ;15/11/2023;675;0;936;1;Spese correnti;3;Acquisto di beni e servizi;2;Acquisto di servizi;16;Servizi amministrativi;999;Altre spese per servizi amministrativi;17/11/2023
3464;1;9999999;427,68;427,68;HALLEY INFORMATICA DI CICCOLINI G.&C. SRL;Z5E3CD8C23;15/11/2023;1470;0;869;1;Spese correnti;3;Acquisto di beni e servizi;1;Acquisto di beni;2;Altri beni di consumo;1;Carta, cancelleria e stampati;17/11/2023
3465;1;9999999;146,4;146,4;ARMONIA COMPUTERS SRL;Z4339CEDA7;16/11/2023;1780;0;238;1;Spese correnti;3;Acquisto di beni e servizi;1;Acquisto di beni;2;Altri beni di consumo;6;Materiale informatico;21/11/2023
3466;1;9999999;2.257,00;2.257,00;ARMONIA COMPUTERS SRL;Z4339CEDA7;16/11/2023;1798;0;239;1;Spese correnti;3;Acquisto di beni e servizi;2;Acquisto di servizi;19;Servizi informatici e di telecomunicazioni;999;Altri servizi informatici e di telecomunicazioni n.a.c.;21/11/2023
3467;1;9999999;1.037,00;1.037,00;ARMONIA COMPUTERS SRL;ZF93C7C72B;16/11/2023;1798;0;767;1;Spese correnti;3;Acquisto di beni e servizi;2;Acquisto di servizi;19;Servizi informatici e di telecomunicazioni;999;Altri servizi informatici e di telecomunicazioni n.a.c.;21/11/2023
3468;1;9999999;1.575,00;1.575,00;OMESSO NOMINATIVO NEL RISPETTO DELLA NORMATIVA SULLA PROTEZIONE DATI PERSONALI; ;16/11/2023;8361;0;948;1;Spese correnti;4;Trasferimenti correnti;2;Trasferimenti correnti a Famiglie;2;Interventi assistenziali;999;Altri assegni e sussidi assistenziali;21/11/2023
3469;1;9999999;374,26;374,26;"ASSOCIAZIONE VOLONTARI ""ARCOBALENO"""; ;16/11/2023;8361;3;472;1;Spese correnti;4;Trasferimenti correnti;4;Trasferimenti correnti a Istituzioni Sociali Private;1;Trasferimenti correnti a Istituzioni Sociali Private;1;Trasferimenti correnti a Istituzioni Sociali Private;21/11/2023
3470;1;9999999;486,25;486,25;KUWAIT PETROLEUM ITALIA SPA;Z9C36EAB07;16/11/2023;2197;0;271;1;Spese correnti;3;Acquisto di beni e servizi;1;Acquisto di beni;2;Altri beni di consumo;2;Carburanti, combustibili e lubrificanti;21/11/2023
3471;1;9999999;342,35;342,35;KUWAIT PETROLEUM ITALIA SPA;Z9C36EAB07;16/11/2023;1307;0;270;1;Spese correnti;3;Acquisto di beni e servizi;1;Acquisto di beni;2;Altri beni di consumo;2;Carburanti, combustibili e lubrificanti;21/11/2023
3473;1;9999999;11.294,41;11.294,41;AMMINISTRATORI COMUNALI; ;21/11/2023;74;0;141;1;Spese correnti;3;Acquisto di beni e servizi;2;Acquisto di servizi;1;Organi e incarichi istituzionali dell'amministrazione;1;Organi istituzionali dell'amministrazione - Indennità;23/11/2023
3516;1;9999999;25,9;25,9;DIPENDENTI DIVERSI (MISSIONI E RIMBORSO SPESE); ;21/11/2023;1786;0;211;1;Spese correnti;3;Acquisto di beni e servizi;2;Acquisto di servizi;2;Organizzazione eventi, pubblicita` e servizi per trasferta;1;Rimborso per viaggio e trasloco;23/11/2023
3561;1;9999999;1.036,40;1.036,40;Societa' Cooperativa PORTABAGAGLI MULTISERVICE;Z3A3B6CA4B;21/11/2023;1344;1;525;1;Spese correnti;3;Acquisto di beni e servizi;2;Acquisto di servizi;99;Altri servizi;999;Altri servizi diversi n.a.c.;24/11/2023
3562;1;9999999;415,37;415,37;ENEL ENERGIA SPA;Z5A3AB0AFF;21/11/2023;2790;0;641;1;Spese correnti;3;Acquisto di beni e servizi;2;Acquisto di servizi;5;Utenze e canoni;4;Energia elettrica;24/11/2023
3563;1;9999999;302,94;302,94;ENEL ENERGIA SPA;Z5A3AB0AFF;21/11/2023;2973;0;640;1;Spese correnti;3;Acquisto di beni e servizi;2;Acquisto di servizi;5;Utenze e canoni;4;Energia elettrica;24/11/2023
3564;1;9999999;263,12;4.836,14;SERENISSIMA RISTORAZIONE SPA;932853027C;21/11/2023;4260;0;731;1;Spese correnti;3;Acquisto di beni e servizi;2;Acquisto di servizi;15;Contratti di servizio pubblico;6;Contratti di servizio per le mense scolastiche;24/11/2023
3564;2;9999999;263,12;4.836,14;SERENISSIMA RISTORAZIONE SPA;932853027C;21/11/2023;4260;0;731;1;Spese correnti;3;Acquisto di beni e servizi;2;Acquisto di servizi;15;Contratti di servizio pubblico;6;Contratti di servizio per le mense scolastiche;24/11/2023
3564;3;9999999;273,64;4.836,14;SERENISSIMA RISTORAZIONE SPA;932853027C;21/11/2023;4260;0;731;1;Spese correnti;3;Acquisto di beni e servizi;2;Acquisto di servizi;15;Contratti di servizio pubblico;6;Contratti di servizio per le mense scolastiche;24/11/2023
3564;4;9999999;810,41;4.836,14;SERENISSIMA RISTORAZIONE SPA;932853027C;21/11/2023;4260;0;731;1;Spese correnti;3;Acquisto di beni e servizi;2;Acquisto di servizi;15;Contratti di servizio pubblico;6;Contratti di servizio per le mense scolastiche;24/11/2023
3564;5;9999999;1.373,49;4.836,14;SERENISSIMA RISTORAZIONE SPA;932853027C;21/11/2023;4260;0;731;1;Spese correnti;3;Acquisto di beni e servizi;2;Acquisto di servizi;15;Contratti di servizio pubblico;6;Contratti di servizio per le mense scolastiche;24/11/2023
3564;6;9999999;1.852,36;4.836,14;SERENISSIMA RISTORAZIONE SPA;932853027C;21/11/2023;4260;0;731;1;Spese correnti;3;Acquisto di beni e servizi;2;Acquisto di servizi;15;Contratti di servizio pubblico;6;Contratti di servizio per le mense scolastiche;24/11/2023
3565;1;9999999;832,14;12.036,48;SERENISSIMA RISTORAZIONE SPA;932853027C;21/11/2023;4261;0;732;1;Spese correnti;3;Acquisto di beni e servizi;2;Acquisto di servizi;15;Contratti di servizio pubblico;6;Contratti di servizio per le mense scolastiche;24/11/2023
3565;2;9999999;1.693,46;12.036,48;SERENISSIMA RISTORAZIONE SPA;932853027C;21/11/2023;4261;0;732;1;Spese correnti;3;Acquisto di beni e servizi;2;Acquisto di servizi;15;Contratti di servizio pubblico;6;Contratti di servizio per le mense scolastiche;24/11/2023
3565;3;9999999;3.115,81;12.036,48;SERENISSIMA RISTORAZIONE SPA;932853027C;21/11/2023;4261;0;732;1;Spese correnti;3;Acquisto di beni e servizi;2;Acquisto di servizi;15;Contratti di servizio pubblico;6;Contratti di servizio per le mense scolastiche;24/11/2023
3565;4;9999999;6.395,07;12.036,48;SERENISSIMA RISTORAZIONE SPA;932853027C;21/11/2023;4261;0;732;1;Spese correnti;3;Acquisto di beni e servizi;2;Acquisto di servizi;15;Contratti di servizio pubblico;6;Contratti di servizio per le mense scolastiche;24/11/2023
3566;1;9999999;66,66;6.166,73;SERENISSIMA RISTORAZIONE SPA;932853027C;21/11/2023;4261;0;867;1;Spese correnti;3;Acquisto di beni e servizi;2;Acquisto di servizi;15;Contratti di servizio pubblico;6;Contratti di servizio per le mense scolastiche;24/11/2023
3566;2;9999999;907,63;6.166,73;SERENISSIMA RISTORAZIONE SPA;932853027C;21/11/2023;4261;0;867;1;Spese correnti;3;Acquisto di beni e servizi;2;Acquisto di servizi;15;Contratti di servizio pubblico;6;Contratti di servizio per le mense scolastiche;24/11/2023
3566;3;9999999;1.128,55;6.166,73;SERENISSIMA RISTORAZIONE SPA;932853027C;21/11/2023;4261;0;867;1;Spese correnti;3;Acquisto di beni e servizi;2;Acquisto di servizi;15;Contratti di servizio pubblico;6;Contratti di servizio per le mense scolastiche;24/11/2023
3566;4;9999999;4.063,89;6.166,73;SERENISSIMA RISTORAZIONE SPA;932853027C;21/11/2023;4261;0;867;1;Spese correnti;3;Acquisto di beni e servizi;2;Acquisto di servizi;15;Contratti di servizio pubblico;6;Contratti di servizio per le mense scolastiche;24/11/2023
3567;1;9999999;697,84;697,84;NEXUS SRL;Z763C030D9;21/11/2023;4710;0;688;1;Spese correnti;3;Acquisto di beni e servizi;2;Acquisto di servizi;99;Altri servizi;999;Altri servizi diversi n.a.c.;24/11/2023
3568;1;9999999;5.988,74;5.988,74;ING. SCARPA MASSIMILIANO;Z3434F4C69;21/11/2023;7432;0;191;1;Spese correnti;3;Acquisto di beni e servizi;2;Acquisto di servizi;11;Prestazioni professionali e specialistiche;9;Prestazioni tecnico-scientifiche a fini di ricerca;24/11/2023
3569;1;9999999;276,92;276,92;ENEL ENERGIA SPA;Z5A3AB0AFF;21/11/2023;7552;1;642;1;Spese correnti;3;Acquisto di beni e servizi;2;Acquisto di servizi;5;Utenze e canoni;4;Energia elettrica;24/11/2023
3570;1;9999999;208,5;2.301,22;SERENISSIMA RISTORAZIONE SPA;932853027C;21/11/2023;7553;1;733;1;Spese correnti;3;Acquisto di beni e servizi;2;Acquisto di servizi;15;Contratti di servizio pubblico;6;Contratti di servizio per le mense scolastiche;24/11/2023
3570;2;9999999;830,3;2.301,22;SERENISSIMA RISTORAZIONE SPA;932853027C;21/11/2023;7553;1;733;1;Spese correnti;3;Acquisto di beni e servizi;2;Acquisto di servizi;15;Contratti di servizio pubblico;6;Contratti di servizio per le mense scolastiche;24/11/2023
3570;3;9999999;1.262,42;2.301,22;SERENISSIMA RISTORAZIONE SPA;932853027C;21/11/2023;7553;1;733;1;Spese correnti;3;Acquisto di beni e servizi;2;Acquisto di servizi;15;Contratti di servizio pubblico;6;Contratti di servizio per le mense scolastiche;24/11/2023
3572;1;9999999;354;354;CENTRO STUDI ALTA PADOVANA DI BRUGNOLI DIVA;Z9F3C76D38;21/11/2023;557;0;763;1;Spese correnti;3;Acquisto di beni e servizi;2;Acquisto di servizi;4;Acquisto di servizi per formazione e addestramento del personale dell'ente;999;Acquisto di servizi per altre spese per formazione e addestramento n.a.c.;24/11/2023
3573;1;9999999;55;55;CONTARINA S.P.A.; ;21/11/2023;1194;0;161;1;Spese correnti;3;Acquisto di beni e servizi;2;Acquisto di servizi;5;Utenze e canoni;999;Utenze e canoni per altri servizi n.a.c.;24/11/2023
3574;1;9999999;205,08;205,08;ENEL ENERGIA SPA;9619395FDC;21/11/2023;1346;0;482;1;Spese correnti;3;Acquisto di beni e servizi;2;Acquisto di servizi;5;Utenze e canoni;4;Energia elettrica;24/11/2023
3575;1;9999999;-779,04;1.166,31;ENEL ENERGIA SPA;9619395FDC;21/11/2023;1801;0;483;1;Spese correnti;3;Acquisto di beni e servizi;2;Acquisto di servizi;5;Utenze e canoni;4;Energia elettrica;24/11/2023
3575;2;9999999;46,98;1.166,31;ENEL ENERGIA SPA;9619395FDC;21/11/2023;1801;0;483;1;Spese correnti;3;Acquisto di beni e servizi;2;Acquisto di servizi;5;Utenze e canoni;4;Energia elettrica;24/11/2023
3575;3;9999999;176,97;1.166,31;ENEL ENERGIA SPA;9619395FDC;21/11/2023;1801;0;483;1;Spese correnti;3;Acquisto di beni e servizi;2;Acquisto di servizi;5;Utenze e canoni;4;Energia elettrica;24/11/2023
3575;4;9999999;250,25;1.166,31;ENEL ENERGIA SPA;9619395FDC;21/11/2023;1801;0;483;1;Spese correnti;3;Acquisto di beni e servizi;2;Acquisto di servizi;5;Utenze e canoni;4;Energia elettrica;24/11/2023
3575;5;9999999;707,22;1.166,31;ENEL ENERGIA SPA;9619395FDC;21/11/2023;1801;0;483;1;Spese correnti;3;Acquisto di beni e servizi;2;Acquisto di servizi;5;Utenze e canoni;4;Energia elettrica;24/11/2023
3575;6;9999999;763,93;1.166,31;ENEL ENERGIA SPA;9619395FDC;21/11/2023;1801;0;483;1;Spese correnti;3;Acquisto di beni e servizi;2;Acquisto di servizi;5;Utenze e canoni;4;Energia elettrica;24/11/2023
3576;1;9999999;800;800;SPORT SYSTEM S.R.L.;Z4A3CA60CD;21/11/2023;2910;0;787;1;Spese correnti;3;Acquisto di beni e servizi;1;Acquisto di beni;2;Altri beni di consumo;999;Altri beni e materiali di consumo n.a.c.;24/11/2023
3577;1;9999999;189,2;506,79;ENEL ENERGIA SPA;9619395FDC;21/11/2023;2973;0;484;1;Spese correnti;3;Acquisto di beni e servizi;2;Acquisto di servizi;5;Utenze e canoni;4;Energia elettrica;24/11/2023
3577;2;9999999;317,59;506,79;ENEL ENERGIA SPA;9619395FDC;21/11/2023;2973;0;484;1;Spese correnti;3;Acquisto di beni e servizi;2;Acquisto di servizi;5;Utenze e canoni;4;Energia elettrica;24/11/2023
3578;1;9999999;374,68;374,68;SPORT SYSTEM S.R.L.;Z4A3CA60CD;21/11/2023;2980;0;788;1;Spese correnti;3;Acquisto di beni e servizi;2;Acquisto di servizi;9;Manutenzione ordinaria e riparazioni;3;Manutenzione ordinaria e riparazioni di mobili e arredi;24/11/2023
3579;1;9999999;833,52;833,52;ENEL ENERGIA SPA;9619395FDC;21/11/2023;4527;0;485;1;Spese correnti;3;Acquisto di beni e servizi;2;Acquisto di servizi;5;Utenze e canoni;4;Energia elettrica;24/11/2023
3580;1;9999999;76,62;76,62;ENEL ENERGIA SPA;9619395FDC;21/11/2023;4686;1;486;1;Spese correnti;3;Acquisto di beni e servizi;2;Acquisto di servizi;5;Utenze e canoni;4;Energia elettrica;24/11/2023
3581;1;9999999;1,12;1.951,10;ENEL ENERGIA SPA;9619395FDC;21/11/2023;5930;0;481;1;Spese correnti;3;Acquisto di beni e servizi;2;Acquisto di servizi;5;Utenze e canoni;4;Energia elettrica;24/11/2023
3581;2;9999999;2,12;1.951,10;ENEL ENERGIA SPA;9619395FDC;21/11/2023;5930;0;481;1;Spese correnti;3;Acquisto di beni e servizi;2;Acquisto di servizi;5;Utenze e canoni;4;Energia elettrica;24/11/2023
3581;3;9999999;3,81;1.951,10;ENEL ENERGIA SPA;9619395FDC;21/11/2023;5930;0;481;1;Spese correnti;3;Acquisto di beni e servizi;2;Acquisto di servizi;5;Utenze e canoni;4;Energia elettrica;24/11/2023
3581;4;9999999;5,39;1.951,10;ENEL ENERGIA SPA;9619395FDC;21/11/2023;5930;0;481;1;Spese correnti;3;Acquisto di beni e servizi;2;Acquisto di servizi;5;Utenze e canoni;4;Energia elettrica;24/11/2023
3581;5;9999999;9,53;1.951,10;ENEL ENERGIA SPA;9619395FDC;21/11/2023;5930;0;481;1;Spese correnti;3;Acquisto di beni e servizi;2;Acquisto di servizi;5;Utenze e canoni;4;Energia elettrica;24/11/2023
3581;6;9999999;9,53;1.951,10;ENEL ENERGIA SPA;9619395FDC;21/11/2023;5930;0;481;1;Spese correnti;3;Acquisto di beni e servizi;2;Acquisto di servizi;5;Utenze e canoni;4;Energia elettrica;24/11/2023
3581;7;9999999;10,36;1.951,10;ENEL ENERGIA SPA;9619395FDC;21/11/2023;5930;0;481;1;Spese correnti;3;Acquisto di beni e servizi;2;Acquisto di servizi;5;Utenze e canoni;4;Energia elettrica;24/11/2023
3581;8;9999999;11,04;1.951,10;ENEL ENERGIA SPA;9619395FDC;21/11/2023;5930;0;481;1;Spese correnti;3;Acquisto di beni e servizi;2;Acquisto di servizi;5;Utenze e canoni;4;Energia elettrica;24/11/2023
3581;9;9999999;12,16;1.951,10;ENEL ENERGIA SPA;9619395FDC;21/11/2023;5930;0;481;1;Spese correnti;3;Acquisto di beni e servizi;2;Acquisto di servizi;5;Utenze e canoni;4;Energia elettrica;24/11/2023
3581;10;9999999;14,13;1.951,10;ENEL ENERGIA SPA;9619395FDC;21/11/2023;5930;0;481;1;Spese correnti;3;Acquisto di beni e servizi;2;Acquisto di servizi;5;Utenze e canoni;4;Energia elettrica;24/11/2023
3581;11;9999999;14,9;1.951,10;ENEL ENERGIA SPA;9619395FDC;21/11/2023;5930;0;481;1;Spese correnti;3;Acquisto di beni e servizi;2;Acquisto di servizi;5;Utenze e canoni;4;Energia elettrica;24/11/2023
3581;12;9999999;15,87;1.951,10;ENEL ENERGIA SPA;9619395FDC;21/11/2023;5930;0;481;1;Spese correnti;3;Acquisto di beni e servizi;2;Acquisto di servizi;5;Utenze e canoni;4;Energia elettrica;24/11/2023
3581;13;9999999;18,12;1.951,10;ENEL ENERGIA SPA;9619395FDC;21/11/2023;5930;0;481;1;Spese correnti;3;Acquisto di beni e servizi;2;Acquisto di servizi;5;Utenze e canoni;4;Energia elettrica;24/11/2023
3581;14;9999999;18,69;1.951,10;ENEL ENERGIA SPA;9619395FDC;21/11/2023;5930;0;481;1;Spese correnti;3;Acquisto di beni e servizi;2;Acquisto di servizi;5;Utenze e canoni;4;Energia elettrica;24/11/2023
3581;15;9999999;22,48;1.951,10;ENEL ENERGIA SPA;9619395FDC;21/11/2023;5930;0;481;1;Spese correnti;3;Acquisto di beni e servizi;2;Acquisto di servizi;5;Utenze e canoni;4;Energia elettrica;24/11/2023
3581;16;9999999;25,93;1.951,10;ENEL ENERGIA SPA;9619395FDC;21/11/2023;5930;0;481;1;Spese correnti;3;Acquisto di beni e servizi;2;Acquisto di servizi;5;Utenze e canoni;4;Energia elettrica;24/11/2023
3581;17;9999999;27,93;1.951,10;ENEL ENERGIA SPA;9619395FDC;21/11/2023;5930;0;481;1;Spese correnti;3;Acquisto di beni e servizi;2;Acquisto di servizi;5;Utenze e canoni;4;Energia elettrica;24/11/2023
3581;18;9999999;30,85;1.951,10;ENEL ENERGIA SPA;9619395FDC;21/11/2023;5930;0;481;1;Spese correnti;3;Acquisto di beni e servizi;2;Acquisto di servizi;5;Utenze e canoni;4;Energia elettrica;24/11/2023
3581;19;9999999;33,56;1.951,10;ENEL ENERGIA SPA;9619395FDC;21/11/2023;5930;0;481;1;Spese correnti;3;Acquisto di beni e servizi;2;Acquisto di servizi;5;Utenze e canoni;4;Energia elettrica;24/11/2023
3581;20;9999999;34,32;1.951,10;ENEL ENERGIA SPA;9619395FDC;21/11/2023;5930;0;481;1;Spese correnti;3;Acquisto di beni e servizi;2;Acquisto di servizi;5;Utenze e canoni;4;Energia elettrica;24/11/2023
3581;21;9999999;34,86;1.951,10;ENEL ENERGIA SPA;9619395FDC;21/11/2023;5930;0;481;1;Spese correnti;3;Acquisto di beni e servizi;2;Acquisto di servizi;5;Utenze e canoni;4;Energia elettrica;24/11/2023
3581;22;9999999;40,06;1.951,10;ENEL ENERGIA SPA;9619395FDC;21/11/2023;5930;0;481;1;Spese correnti;3;Acquisto di beni e servizi;2;Acquisto di servizi;5;Utenze e canoni;4;Energia elettrica;24/11/2023
3581;23;9999999;45,2;1.951,10;ENEL ENERGIA SPA;9619395FDC;21/11/2023;5930;0;481;1;Spese correnti;3;Acquisto di beni e servizi;2;Acquisto di servizi;5;Utenze e canoni;4;Energia elettrica;24/11/2023
3581;24;9999999;45,47;1.951,10;ENEL ENERGIA SPA;9619395FDC;21/11/2023;5930;0;481;1;Spese correnti;3;Acquisto di beni e servizi;2;Acquisto di servizi;5;Utenze e canoni;4;Energia elettrica;24/11/2023
3581;25;9999999;49,57;1.951,10;ENEL ENERGIA SPA;9619395FDC;21/11/2023;5930;0;481;1;Spese correnti;3;Acquisto di beni e servizi;2;Acquisto di servizi;5;Utenze e canoni;4;Energia elettrica;24/11/2023
3581;26;9999999;50,47;1.951,10;ENEL ENERGIA SPA;9619395FDC;21/11/2023;5930;0;481;1;Spese correnti;3;Acquisto di beni e servizi;2;Acquisto di servizi;5;Utenze e canoni;4;Energia elettrica;24/11/2023
3581;27;9999999;51,11;1.951,10;ENEL ENERGIA SPA;9619395FDC;21/11/2023;5930;0;481;1;Spese correnti;3;Acquisto di beni e servizi;2;Acquisto di servizi;5;Utenze e canoni;4;Energia elettrica;24/11/2023
3581;28;9999999;60,56;1.951,10;ENEL ENERGIA SPA;9619395FDC;21/11/2023;5930;0;481;1;Spese correnti;3;Acquisto di beni e servizi;2;Acquisto di servizi;5;Utenze e canoni;4;Energia elettrica;24/11/2023
3581;29;9999999;71,21;1.951,10;ENEL ENERGIA SPA;9619395FDC;21/11/2023;5930;0;481;1;Spese correnti;3;Acquisto di beni e servizi;2;Acquisto di servizi;5;Utenze e canoni;4;Energia elettrica;24/11/2023
3581;30;9999999;76,47;1.951,10;ENEL ENERGIA SPA;9619395FDC;21/11/2023;5930;0;481;1;Spese correnti;3;Acquisto di beni e servizi;2;Acquisto di servizi;5;Utenze e canoni;4;Energia elettrica;24/11/2023
3581;31;9999999;77,34;1.951,10;ENEL ENERGIA SPA;9619395FDC;21/11/2023;5930;0;481;1;Spese correnti;3;Acquisto di beni e servizi;2;Acquisto di servizi;5;Utenze e canoni;4;Energia elettrica;24/11/2023
3581;32;9999999;83,03;1.951,10;ENEL ENERGIA SPA;9619395FDC;21/11/2023;5930;0;481;1;Spese correnti;3;Acquisto di beni e servizi;2;Acquisto di servizi;5;Utenze e canoni;4;Energia elettrica;24/11/2023
3581;33;9999999;100,61;1.951,10;ENEL ENERGIA SPA;9619395FDC;21/11/2023;5930;0;481;1;Spese correnti;3;Acquisto di beni e servizi;2;Acquisto di servizi;5;Utenze e canoni;4;Energia elettrica;24/11/2023
3581;34;9999999;111,03;1.951,10;ENEL ENERGIA SPA;9619395FDC;21/11/2023;5930;0;481;1;Spese correnti;3;Acquisto di beni e servizi;2;Acquisto di servizi;5;Utenze e canoni;4;Energia elettrica;24/11/2023
3581;35;9999999;111,62;1.951,10;ENEL ENERGIA SPA;9619395FDC;21/11/2023;5930;0;481;1;Spese correnti;3;Acquisto di beni e servizi;2;Acquisto di servizi;5;Utenze e canoni;4;Energia elettrica;24/11/2023
3581;36;9999999;111,89;1.951,10;ENEL ENERGIA SPA;9619395FDC;21/11/2023;5930;0;481;1;Spese correnti;3;Acquisto di beni e servizi;2;Acquisto di servizi;5;Utenze e canoni;4;Energia elettrica;24/11/2023
3581;37;9999999;112,15;1.951,10;ENEL ENERGIA SPA;9619395FDC;21/11/2023;5930;0;481;1;Spese correnti;3;Acquisto di beni e servizi;2;Acquisto di servizi;5;Utenze e canoni;4;Energia elettrica;24/11/2023
3581;38;9999999;113,01;1.951,10;ENEL ENERGIA SPA;9619395FDC;21/11/2023;5930;0;481;1;Spese correnti;3;Acquisto di beni e servizi;2;Acquisto di servizi;5;Utenze e canoni;4;Energia elettrica;24/11/2023
3581;39;9999999;136,02;1.951,10;ENEL ENERGIA SPA;9619395FDC;21/11/2023;5930;0;481;1;Spese correnti;3;Acquisto di beni e servizi;2;Acquisto di servizi;5;Utenze e canoni;4;Energia elettrica;24/11/2023
3581;40;9999999;147,58;1.951,10;ENEL ENERGIA SPA;9619395FDC;21/11/2023;5930;0;481;1;Spese correnti;3;Acquisto di beni e servizi;2;Acquisto di servizi;5;Utenze e canoni;4;Energia elettrica;24/11/2023
3582;1;9999999;151,12;13.493,29;ENEL ENERGIA SPA;9619395FDC;21/11/2023;5930;0;481;1;Spese correnti;3;Acquisto di beni e servizi;2;Acquisto di servizi;5;Utenze e canoni;4;Energia elettrica;24/11/2023
3582;2;9999999;151,99;13.493,29;ENEL ENERGIA SPA;9619395FDC;21/11/2023;5930;0;481;1;Spese correnti;3;Acquisto di beni e servizi;2;Acquisto di servizi;5;Utenze e canoni;4;Energia elettrica;24/11/2023
3582;3;9999999;170,09;13.493,29;ENEL ENERGIA SPA;9619395FDC;21/11/2023;5930;0;481;1;Spese correnti;3;Acquisto di beni e servizi;2;Acquisto di servizi;5;Utenze e canoni;4;Energia elettrica;24/11/2023
3582;4;9999999;173;13.493,29;ENEL ENERGIA SPA;9619395FDC;21/11/2023;5930;0;481;1;Spese correnti;3;Acquisto di beni e servizi;2;Acquisto di servizi;5;Utenze e canoni;4;Energia elettrica;24/11/2023
3582;5;9999999;173,28;13.493,29;ENEL ENERGIA SPA;9619395FDC;21/11/2023;5930;0;481;1;Spese correnti;3;Acquisto di beni e servizi;2;Acquisto di servizi;5;Utenze e canoni;4;Energia elettrica;24/11/2023
3582;6;9999999;176,07;13.493,29;ENEL ENERGIA SPA;9619395FDC;21/11/2023;5930;0;481;1;Spese correnti;3;Acquisto di beni e servizi;2;Acquisto di servizi;5;Utenze e canoni;4;Energia elettrica;24/11/2023
3582;7;9999999;187,71;13.493,29;ENEL ENERGIA SPA;9619395FDC;21/11/2023;5930;0;481;1;Spese correnti;3;Acquisto di beni e servizi;2;Acquisto di servizi;5;Utenze e canoni;4;Energia elettrica;24/11/2023
3582;8;9999999;189,83;13.493,29;ENEL ENERGIA SPA;9619395FDC;21/11/2023;5930;0;481;1;Spese correnti;3;Acquisto di beni e servizi;2;Acquisto di servizi;5;Utenze e canoni;4;Energia elettrica;24/11/2023
3582;9;9999999;190,94;13.493,29;ENEL ENERGIA SPA;9619395FDC;21/11/2023;5930;0;481;1;Spese correnti;3;Acquisto di beni e servizi;2;Acquisto di servizi;5;Utenze e canoni;4;Energia elettrica;24/11/2023
3582;10;9999999;199,31;13.493,29;ENEL ENERGIA SPA;9619395FDC;21/11/2023;5930;0;481;1;Spese correnti;3;Acquisto di beni e servizi;2;Acquisto di servizi;5;Utenze e canoni;4;Energia elettrica;24/11/2023
3582;11;9999999;203,33;13.493,29;ENEL ENERGIA SPA;9619395FDC;21/11/2023;5930;0;481;1;Spese correnti;3;Acquisto di beni e servizi;2;Acquisto di servizi;5;Utenze e canoni;4;Energia elettrica;24/11/2023
3582;12;9999999;206,97;13.493,29;ENEL ENERGIA SPA;9619395FDC;21/11/2023;5930;0;481;1;Spese correnti;3;Acquisto di beni e servizi;2;Acquisto di servizi;5;Utenze e canoni;4;Energia elettrica;24/11/2023
3582;13;9999999;219,38;13.493,29;ENEL ENERGIA SPA;9619395FDC;21/11/2023;5930;0;481;1;Spese correnti;3;Acquisto di beni e servizi;2;Acquisto di servizi;5;Utenze e canoni;4;Energia elettrica;24/11/2023
3582;14;9999999;220,99;13.493,29;ENEL ENERGIA SPA;9619395FDC;21/11/2023;5930;0;481;1;Spese correnti;3;Acquisto di beni e servizi;2;Acquisto di servizi;5;Utenze e canoni;4;Energia elettrica;24/11/2023
3582;15;9999999;223,15;13.493,29;ENEL ENERGIA SPA;9619395FDC;21/11/2023;5930;0;481;1;Spese correnti;3;Acquisto di beni e servizi;2;Acquisto di servizi;5;Utenze e canoni;4;Energia elettrica;24/11/2023
3582;16;9999999;227,46;13.493,29;ENEL ENERGIA SPA;9619395FDC;21/11/2023;5930;0;481;1;Spese correnti;3;Acquisto di beni e servizi;2;Acquisto di servizi;5;Utenze e canoni;4;Energia elettrica;24/11/2023
3582;17;9999999;232,58;13.493,29;ENEL ENERGIA SPA;9619395FDC;21/11/2023;5930;0;481;1;Spese correnti;3;Acquisto di beni e servizi;2;Acquisto di servizi;5;Utenze e canoni;4;Energia elettrica;24/11/2023
3582;18;9999999;256,57;13.493,29;ENEL ENERGIA SPA;9619395FDC;21/11/2023;5930;0;481;1;Spese correnti;3;Acquisto di beni e servizi;2;Acquisto di servizi;5;Utenze e canoni;4;Energia elettrica;24/11/2023
3582;19;9999999;325,53;13.493,29;ENEL ENERGIA SPA;9619395FDC;21/11/2023;5930;0;481;1;Spese correnti;3;Acquisto di beni e servizi;2;Acquisto di servizi;5;Utenze e canoni;4;Energia elettrica;24/11/2023
3582;20;9999999;394,77;13.493,29;ENEL ENERGIA SPA;9619395FDC;21/11/2023;5930;0;481;1;Spese correnti;3;Acquisto di beni e servizi;2;Acquisto di servizi;5;Utenze e canoni;4;Energia elettrica;24/11/2023
3582;21;9999999;396,5;13.493,29;ENEL ENERGIA SPA;9619395FDC;21/11/2023;5930;0;481;1;Spese correnti;3;Acquisto di beni e servizi;2;Acquisto di servizi;5;Utenze e canoni;4;Energia elettrica;24/11/2023
3582;22;9999999;411,07;13.493,29;ENEL ENERGIA SPA;9619395FDC;21/11/2023;5930;0;481;1;Spese correnti;3;Acquisto di beni e servizi;2;Acquisto di servizi;5;Utenze e canoni;4;Energia elettrica;24/11/2023
3582;23;9999999;425,35;13.493,29;ENEL ENERGIA SPA;9619395FDC;21/11/2023;5930;0;481;1;Spese correnti;3;Acquisto di beni e servizi;2;Acquisto di servizi;5;Utenze e canoni;4;Energia elettrica;24/11/2023
3582;24;9999999;427,35;13.493,29;ENEL ENERGIA SPA;9619395FDC;21/11/2023;5930;0;481;1;Spese correnti;3;Acquisto di beni e servizi;2;Acquisto di servizi;5;Utenze e canoni;4;Energia elettrica;24/11/2023
3582;25;9999999;470,47;13.493,29;ENEL ENERGIA SPA;9619395FDC;21/11/2023;5930;0;481;1;Spese correnti;3;Acquisto di beni e servizi;2;Acquisto di servizi;5;Utenze e canoni;4;Energia elettrica;24/11/2023
3582;26;9999999;484,6;13.493,29;ENEL ENERGIA SPA;9619395FDC;21/11/2023;5930;0;481;1;Spese correnti;3;Acquisto di beni e servizi;2;Acquisto di servizi;5;Utenze e canoni;4;Energia elettrica;24/11/2023
3582;27;9999999;520,64;13.493,29;ENEL ENERGIA SPA;9619395FDC;21/11/2023;5930;0;481;1;Spese correnti;3;Acquisto di beni e servizi;2;Acquisto di servizi;5;Utenze e canoni;4;Energia elettrica;24/11/2023
3582;28;9999999;542,94;13.493,29;ENEL ENERGIA SPA;9619395FDC;21/11/2023;5930;0;481;1;Spese correnti;3;Acquisto di beni e servizi;2;Acquisto di servizi;5;Utenze e canoni;4;Energia elettrica;24/11/2023
3582;29;9999999;572,85;13.493,29;ENEL ENERGIA SPA;9619395FDC;21/11/2023;5930;0;481;1;Spese correnti;3;Acquisto di beni e servizi;2;Acquisto di servizi;5;Utenze e canoni;4;Energia elettrica;24/11/2023
3582;30;9999999;593,94;13.493,29;ENEL ENERGIA SPA;9619395FDC;21/11/2023;5930;0;481;1;Spese correnti;3;Acquisto di beni e servizi;2;Acquisto di servizi;5;Utenze e canoni;4;Energia elettrica;24/11/2023
3582;31;9999999;644,4;13.493,29;ENEL ENERGIA SPA;9619395FDC;21/11/2023;5930;0;481;1;Spese correnti;3;Acquisto di beni e servizi;2;Acquisto di servizi;5;Utenze e canoni;4;Energia elettrica;24/11/2023
3582;32;9999999;665,49;13.493,29;ENEL ENERGIA SPA;9619395FDC;21/11/2023;5930;0;481;1;Spese correnti;3;Acquisto di beni e servizi;2;Acquisto di servizi;5;Utenze e canoni;4;Energia elettrica;24/11/2023
3582;33;9999999;723,14;13.493,29;ENEL ENERGIA SPA;9619395FDC;21/11/2023;5930;0;481;1;Spese correnti;3;Acquisto di beni e servizi;2;Acquisto di servizi;5;Utenze e canoni;4;Energia elettrica;24/11/2023
3582;34;9999999;731,51;13.493,29;ENEL ENERGIA SPA;9619395FDC;21/11/2023;5930;0;481;1;Spese correnti;3;Acquisto di beni e servizi;2;Acquisto di servizi;5;Utenze e canoni;4;Energia elettrica;24/11/2023
3582;35;9999999;771,74;13.493,29;ENEL ENERGIA SPA;9619395FDC;21/11/2023;5930;0;481;1;Spese correnti;3;Acquisto di beni e servizi;2;Acquisto di servizi;5;Utenze e canoni;4;Energia elettrica;24/11/2023
3582;36;9999999;837,23;13.493,29;ENEL ENERGIA SPA;9619395FDC;21/11/2023;5930;0;481;1;Spese correnti;3;Acquisto di beni e servizi;2;Acquisto di servizi;5;Utenze e canoni;4;Energia elettrica;24/11/2023
3583;1;9999999;11,71;901;ENEL ENERGIA SPA;9619395FDC;21/11/2023;5931;0;488;1;Spese correnti;3;Acquisto di beni e servizi;2;Acquisto di servizi;5;Utenze e canoni;4;Energia elettrica;24/11/2023
3583;2;9999999;17,14;901;ENEL ENERGIA SPA;9619395FDC;21/11/2023;5931;0;488;1;Spese correnti;3;Acquisto di beni e servizi;2;Acquisto di servizi;5;Utenze e canoni;4;Energia elettrica;24/11/2023
3583;3;9999999;72,47;901;ENEL ENERGIA SPA;9619395FDC;21/11/2023;5931;0;488;1;Spese correnti;3;Acquisto di beni e servizi;2;Acquisto di servizi;5;Utenze e canoni;4;Energia elettrica;24/11/2023
3583;4;9999999;82,11;901;ENEL ENERGIA SPA;9619395FDC;21/11/2023;5931;0;488;1;Spese correnti;3;Acquisto di beni e servizi;2;Acquisto di servizi;5;Utenze e canoni;4;Energia elettrica;24/11/2023
3583;5;9999999;88,46;901;ENEL ENERGIA SPA;9619395FDC;21/11/2023;5931;0;488;1;Spese correnti;3;Acquisto di beni e servizi;2;Acquisto di servizi;5;Utenze e canoni;4;Energia elettrica;24/11/2023
3583;6;9999999;93,15;901;ENEL ENERGIA SPA;9619395FDC;21/11/2023;5931;0;488;1;Spese correnti;3;Acquisto di beni e servizi;2;Acquisto di servizi;5;Utenze e canoni;4;Energia elettrica;24/11/2023
3583;7;9999999;127,15;901;ENEL ENERGIA SPA;9619395FDC;21/11/2023;5931;0;488;1;Spese correnti;3;Acquisto di beni e servizi;2;Acquisto di servizi;5;Utenze e canoni;4;Energia elettrica;24/11/2023
3583;8;9999999;148,86;901;ENEL ENERGIA SPA;9619395FDC;21/11/2023;5931;0;488;1;Spese correnti;3;Acquisto di beni e servizi;2;Acquisto di servizi;5;Utenze e canoni;4;Energia elettrica;24/11/2023
3583;9;9999999;259,95;901;ENEL ENERGIA SPA;9619395FDC;21/11/2023;5931;0;488;1;Spese correnti;3;Acquisto di beni e servizi;2;Acquisto di servizi;5;Utenze e canoni;4;Energia elettrica;24/11/2023
3584;1;9999999;61,79;132,73;ENEL ENERGIA SPA;9619395FDC;21/11/2023;6461;0;487;1;Spese correnti;3;Acquisto di beni e servizi;2;Acquisto di servizi;5;Utenze e canoni;4;Energia elettrica;24/11/2023
3584;2;9999999;70,94;132,73;ENEL ENERGIA SPA;9619395FDC;21/11/2023;6461;0;487;1;Spese correnti;3;Acquisto di beni e servizi;2;Acquisto di servizi;5;Utenze e canoni;4;Energia elettrica;24/11/2023
3585;1;9999999;3.235,44;3.235,44;BIANCHIN EMANUELE;8,74E+14;21/11/2023;15928;0;524;2;Spese in conto capitale;2;Investimenti fissi lordi e acquisto di terreni;3;Beni immateriali;5;Incarichi professionali per la realizzazione di investimenti;1;Incarichi professionali per la realizzazione di investimenti;24/11/2023
3586;1;9999999;3.000,00;3.000,00;CIRCOLO RICREATIVO ANZIANI PREGANZIOL; ;23/11/2023;8248;0;972;1;Spese correnti;4;Trasferimenti correnti;4;Trasferimenti correnti a Istituzioni Sociali Private;1;Trasferimenti correnti a Istituzioni Sociali Private;1;Trasferimenti correnti a Istituzioni Sociali Private;27/11/2023
3587;1;9999999;305;305;OMESSO NOMINATIVO NEL RISPETTO DELLA NORMATIVA SULLA PROTEZIONE DATI PERSONALI; ;23/11/2023;8361;0;971;1;Spese correnti;4;Trasferimenti correnti;2;Trasferimenti correnti a Famiglie;2;Interventi assistenziali;999;Altri assegni e sussidi assistenziali;27/11/2023
3588;1;9999999;1.162,50;1.162,50;DISMA SAS DI A. RIGO & C.;Z0A3BA9AA6;23/11/2023;4529;0;666;1;Spese correnti;3;Acquisto di beni e servizi;2;Acquisto di servizi;11;Prestazioni professionali e specialistiche;999;Altre prestazioni professionali e specialistiche n.a.c.;27/11/2023
3589;1;9999999;2.464,15;2.464,15;CREMONESE IVANO - CARTOLERIA SERVICE POINT;ZBB3C5F080;23/11/2023;4711;0;778;1;Spese correnti;3;Acquisto di beni e servizi;2;Acquisto di servizi;99;Altri servizi;999;Altri servizi diversi n.a.c.;27/11/2023
3590;1;9999999;15.497,13;15.497,13;CODESS SOCIALE-COOP. ONLUS;9120417633;23/11/2023;8250;0;578;1;Spese correnti;3;Acquisto di beni e servizi;2;Acquisto di servizi;15;Contratti di servizio pubblico;9;Contratti di servizio di assistenza sociale domiciliare;27/11/2023
3591;1;9999999;5.075,20;5.075,20;BIANCHIN EMANUELE;9617224050;23/11/2023;15925;3;1374;2;Spese in conto capitale;2;Investimenti fissi lordi e acquisto di terreni;1;Beni materiali;9;Beni immobili;12;Infrastrutture stradali;27/11/2023
3592;1;9999999;8.704,70;8.704,70;VILLANOVA COSTRUZIONI SRL;ZCA3CF0F1E;23/11/2023;13215;0;678;2;Spese in conto capitale;2;Investimenti fissi lordi e acquisto di terreni;1;Beni materiali;9;Beni immobili;3;Fabbricati ad uso scolastico;27/11/2023
3594;1;9999999;0,06;0,06;AGENZIA DELLE ENTRATE-RISCOSSIONE; ;24/11/2023;2351;1;228;1;Spese correnti;3;Acquisto di beni e servizi;2;Acquisto di servizi;3;Aggi di riscossione;999;Altri aggi di riscossione n.a.c.;28/11/2023
3595;1;9999999;0,18;0,18;AGENZIA DELLE ENTRATE-RISCOSSIONE; ;24/11/2023;2351;1;249;1;Spese correnti;3;Acquisto di beni e servizi;2;Acquisto di servizi;3;Aggi di riscossione;999;Altri aggi di riscossione n.a.c.;28/11/2023
3596;1;9999999;0,31;0,31;AGENZIA DELLE ENTRATE-RISCOSSIONE; ;24/11/2023;2351;1;249;1;Spese correnti;3;Acquisto di beni e servizi;2;Acquisto di servizi;3;Aggi di riscossione;999;Altri aggi di riscossione n.a.c.;28/11/2023
3597;1;9999999;2,43;2,43;AGENZIA DELLE ENTRATE-RISCOSSIONE; ;24/11/2023;2351;1;1531;1;Spese correnti;3;Acquisto di beni e servizi;2;Acquisto di servizi;3;Aggi di riscossione;999;Altri aggi di riscossione n.a.c.;28/11/2023
3598;1;9999999;0,19;0,19;AGENZIA DELLE ENTRATE-RISCOSSIONE; ;24/11/2023;2351;1;249;1;Spese correnti;3;Acquisto di beni e servizi;2;Acquisto di servizi;3;Aggi di riscossione;999;Altri aggi di riscossione n.a.c.;28/11/2023
3599;1;9999999;0,39;0,39;AGENZIA DELLE ENTRATE-RISCOSSIONE; ;24/11/2023;2351;1;249;1;Spese correnti;3;Acquisto di beni e servizi;2;Acquisto di servizi;3;Aggi di riscossione;999;Altri aggi di riscossione n.a.c.;28/11/2023
3600;1;9999999;3,74;3,74;AGENZIA DELLE ENTRATE-RISCOSSIONE; ;24/11/2023;2351;1;370;1;Spese correnti;3;Acquisto di beni e servizi;2;Acquisto di servizi;3;Aggi di riscossione;999;Altri aggi di riscossione n.a.c.;28/11/2023
3601;1;9999999;1,48;1,48;AGENZIA DELLE ENTRATE-RISCOSSIONE; ;24/11/2023;2351;1;370;1;Spese correnti;3;Acquisto di beni e servizi;2;Acquisto di servizi;3;Aggi di riscossione;999;Altri aggi di riscossione n.a.c.;28/11/2023
3602;1;9999999;0,16;0,16;AGENZIA DELLE ENTRATE-RISCOSSIONE; ;24/11/2023;2351;1;292;1;Spese correnti;3;Acquisto di beni e servizi;2;Acquisto di servizi;3;Aggi di riscossione;999;Altri aggi di riscossione n.a.c.;28/11/2023
3603;1;9999999;0,77;0,77;AGENZIA DELLE ENTRATE-RISCOSSIONE; ;24/11/2023;2351;1;249;1;Spese correnti;3;Acquisto di beni e servizi;2;Acquisto di servizi;3;Aggi di riscossione;999;Altri aggi di riscossione n.a.c.;28/11/2023
3604;1;9999999;0,76;0,76;AGENZIA DELLE ENTRATE-RISCOSSIONE; ;24/11/2023;1010;0;250;1;Spese correnti;3;Acquisto di beni e servizi;2;Acquisto di servizi;3;Aggi di riscossione;999;Altri aggi di riscossione n.a.c.;28/11/2023
3605;1;9999999;0,04;0,04;AGENZIA DELLE ENTRATE-RISCOSSIONE; ;24/11/2023;1010;0;328;1;Spese correnti;3;Acquisto di beni e servizi;2;Acquisto di servizi;3;Aggi di riscossione;999;Altri aggi di riscossione n.a.c.;28/11/2023
3606;1;9999999;4,18;4,18;AGENZIA DELLE ENTRATE-RISCOSSIONE; ;24/11/2023;1010;0;250;1;Spese correnti;3;Acquisto di beni e servizi;2;Acquisto di servizi;3;Aggi di riscossione;999;Altri aggi di riscossione n.a.c.;28/11/2023
3607;1;9999999;464,64;464,64;ABACO S.P.A.;9,44E+58;24/11/2023;1010;0;1259;1;Spese correnti;3;Acquisto di beni e servizi;2;Acquisto di servizi;3;Aggi di riscossione;999;Altri aggi di riscossione n.a.c.;28/11/2023
3608;1;9999999;967,22;967,22;ABACO S.P.A.;9,44E+58;24/11/2023;1010;0;1259;1;Spese correnti;3;Acquisto di beni e servizi;2;Acquisto di servizi;3;Aggi di riscossione;999;Altri aggi di riscossione n.a.c.;28/11/2023
3610;1;9999999;1.016,93;1.016,93;ABACO S.P.A.;9,44E+58;24/11/2023;1010;0;975;1;Spese correnti;3;Acquisto di beni e servizi;2;Acquisto di servizi;3;Aggi di riscossione;999;Altri aggi di riscossione n.a.c.;28/11/2023
3611;1;9999999;480;480;OMESSO NOMINATIVO NEL RISPETTO DELLA NORMATIVA SULLA PROTEZIONE DATI PERSONALI;ZE43AD9BD9;24/11/2023;470;0;442;1;Spese correnti;3;Acquisto di beni e servizi;1;Acquisto di beni;2;Altri beni di consumo;999;Altri beni e materiali di consumo n.a.c.;28/11/2023
3612;1;9999999;353,8;353,8;INIZIATIVE UNINDUSTRIA SRL; ;27/11/2023;8204;4;758;1;Spese correnti;3;Acquisto di beni e servizi;2;Acquisto di servizi;99;Altri servizi;999;Altri servizi diversi n.a.c.;30/11/2023
3613;1;9999999;854;854;INIZIATIVE UNINDUSTRIA SRL; ;27/11/2023;8204;4;758;1;Spese correnti;3;Acquisto di beni e servizi;2;Acquisto di servizi;99;Altri servizi;999;Altri servizi diversi n.a.c.;30/11/2023
3614;1;9999999;4.994,84;4.994,84;CONSORZIO PROVINCIALE INTESA-CCA SOC.COOP.SOCIALECONSORTILE;9293702D7F;27/11/2023;8208;0;660;1;Spese correnti;3;Acquisto di beni e servizi;2;Acquisto di servizi;99;Altri servizi;999;Altri servizi diversi n.a.c.;30/11/2023
3615;1;9999999;283,66;283,66;CONSORZIO PROVINCIALE INTESA-CCA SOC.COOP.SOCIALECONSORTILE;9293702D7F;27/11/2023;8208;1;661;1;Spese correnti;3;Acquisto di beni e servizi;2;Acquisto di servizi;99;Altri servizi;999;Altri servizi diversi n.a.c.;30/11/2023
3616;1;9999999;1.871,58;1.871,58;ANAS SPA; ;28/11/2023;7022;0;980;1;Spese correnti;3;Acquisto di beni e servizi;2;Acquisto di servizi;7;Utilizzo di beni di terzi;999;Altre spese sostenute per utilizzo di beni di terzi n.a.c.;30/11/2023
3617;1;9999999;150,4;150,4;ANAS SPA; ;28/11/2023;5800;0;981;1;Spese correnti;3;Acquisto di beni e servizi;2;Acquisto di servizi;7;Utilizzo di beni di terzi;999;Altre spese sostenute per utilizzo di beni di terzi n.a.c.;30/11/2023
3618;1;9999999;950;950;CENTRO STUDI AMM.VI M.T.;Z583C4FA31;28/11/2023;550;0;742;1;Spese correnti;3;Acquisto di beni e servizi;2;Acquisto di servizi;4;Acquisto di servizi per formazione e addestramento del personale dell'ente;999;Acquisto di servizi per altre spese per formazione e addestramento n.a.c.;30/11/2023
3619;1;9999999;3.170,73;3.170,73;CESA SAS DI COVRE A. & C.;ZC23C0F5D1;28/11/2023;810;0;677;1;Spese correnti;3;Acquisto di beni e servizi;2;Acquisto di servizi;99;Altri servizi;999;Altri servizi diversi n.a.c.;30/11/2023
3620;1;9999999;91,5;91,5;FERRAMENTA ZOTTARELLI S.N.C.;Z70386DE84;28/11/2023;1300;0;1014;1;Spese correnti;3;Acquisto di beni e servizi;1;Acquisto di beni;2;Altri beni di consumo;999;Altri beni e materiali di consumo n.a.c.;30/11/2023
3621;1;9999999;1.000,00;1.000,00;ISTITUTO PIA SOCIETA' FIGLIE DI SAN PAOLO;ZC13CB81C2;28/11/2023;4711;0;846;1;Spese correnti;3;Acquisto di beni e servizi;2;Acquisto di servizi;99;Altri servizi;999;Altri servizi diversi n.a.c.;30/11/2023
3622;1;9999999;41,6;41,6;GEOFIN S.P.A.;ZA73CEEA3B;28/11/2023;7412;0;886;1;Spese correnti;3;Acquisto di beni e servizi;1;Acquisto di beni;2;Altri beni di consumo;7;Altri materiali tecnico-specialistici non sanitari;30/11/2023
3623;1;9999999;796;796;"COND.""ALARTIGLIO"" C/O AMM.NI IMM.LI TAGLIAPIETRA A."; ;28/11/2023;1198;0;982;1;Spese correnti;3;Acquisto di beni e servizi;2;Acquisto di servizi;5;Utenze e canoni;999;Utenze e canoni per altri servizi n.a.c.;30/11/2023
3624;1;9999999;1.000,00;1.000,00;"COMITATO PROM. FESTIVAL ORGANISTICO ""CITTA' DI TREVISO"""; ;28/11/2023;4770;0;983;1;Spese correnti;4;Trasferimenti correnti;4;Trasferimenti correnti a Istituzioni Sociali Private;1;Trasferimenti correnti a Istituzioni Sociali Private;1;Trasferimenti correnti a Istituzioni Sociali Private;30/11/2023
3625;1;9999999;3.424,00;3.424,00;COMUNE DI TREVISO; ;28/11/2023;7439;0;993;1;Spese correnti;4;Trasferimenti correnti;1;Trasferimenti correnti a Amministrazioni Pubbliche;2;Trasferimenti correnti a Amministrazioni Locali;3;Trasferimenti correnti a Comuni;30/11/2023
3627;1;9999999;14.879,07;14.879,07;CASSA DEPOSITI E PRESTITI; ;29/11/2023;1861;0;952;1;Spese correnti;7;Interessi passivi;5;Interessi su Mutui e altri finanziamenti a medio lungo termine;4;Interessi passivi su finanziamenti a medio lungo termine a Imprese;3;Interessi passivi a Cassa Depositi e Prestiti SPA su mutui e altri finanziamenti a medio lungo termine;28/12/2023
3628;1;9999999;1.837,27;5.812,53;CASSA DEPOSITI E PRESTITI; ;29/11/2023;2830;0;953;1;Spese correnti;7;Interessi passivi;5;Interessi su Mutui e altri finanziamenti a medio lungo termine;4;Interessi passivi su finanziamenti a medio lungo termine a Imprese;3;Interessi passivi a Cassa Depositi e Prestiti SPA su mutui e altri finanziamenti a medio lungo termine;28/12/2023
3628;2;9999999;3.975,26;5.812,53;CASSA DEPOSITI E PRESTITI; ;29/11/2023;2830;0;953;1;Spese correnti;7;Interessi passivi;5;Interessi su Mutui e altri finanziamenti a medio lungo termine;4;Interessi passivi su finanziamenti a medio lungo termine a Imprese;3;Interessi passivi a Cassa Depositi e Prestiti SPA su mutui e altri finanziamenti a medio lungo termine;28/12/2023
3629;1;9999999;876,76;876,76;CASSA DEPOSITI E PRESTITI; ;29/11/2023;5830;0;954;1;Spese correnti;7;Interessi passivi;5;Interessi su Mutui e altri finanziamenti a medio lungo termine;4;Interessi passivi su finanziamenti a medio lungo termine a Imprese;3;Interessi passivi a Cassa Depositi e Prestiti SPA su mutui e altri finanziamenti a medio lungo termine;28/12/2023
3630;1;9999999;1.813,61;1.813,61;CASSA DEPOSITI E PRESTITI; ;29/11/2023;7050;0;955;1;Spese correnti;7;Interessi passivi;5;Interessi su Mutui e altri finanziamenti a medio lungo termine;4;Interessi passivi su finanziamenti a medio lungo termine a Imprese;3;Interessi passivi a Cassa Depositi e Prestiti SPA su mutui e altri finanziamenti a medio lungo termine;28/12/2023
3631;1;9999999;3.399,01;3.399,01;CASSA DEPOSITI E PRESTITI; ;29/11/2023;7053;0;956;1;Spese correnti;7;Interessi passivi;5;Interessi su Mutui e altri finanziamenti a medio lungo termine;4;Interessi passivi su finanziamenti a medio lungo termine a Imprese;3;Interessi passivi a Cassa Depositi e Prestiti SPA su mutui e altri finanziamenti a medio lungo termine;28/12/2023
3632;1;9999999;2.572,10;2.572,10;CASSA DEPOSITI E PRESTITI; ;29/11/2023;7054;0;957;1;Spese correnti;7;Interessi passivi;5;Interessi su Mutui e altri finanziamenti a medio lungo termine;4;Interessi passivi su finanziamenti a medio lungo termine a Imprese;3;Interessi passivi a Cassa Depositi e Prestiti SPA su mutui e altri finanziamenti a medio lungo termine;28/12/2023
3635;1;9999999;3.172,00;3.172,00;OMESSO NOMINATIVO NEL RISPETTO DELLA NORMATIVA SULLA PROTEZIONE DATI PERSONALI;Z4E392BF97;29/11/2023;1340;0;1278;1;Spese correnti;3;Acquisto di beni e servizi;2;Acquisto di servizi;11;Prestazioni professionali e specialistiche;999;Altre prestazioni professionali e specialistiche n.a.c.;01/12/2023
3636;1;9999999;101,2;101,2;PULITORI ED AFFINI SPA;87752258BF;29/11/2023;1794;0;656;1;Spese correnti;3;Acquisto di beni e servizi;2;Acquisto di servizi;13;Servizi ausiliari per il funzionamento dell'ente;2;Servizi di pulizia e lavanderia;01/12/2023
3637;1;9999999;219,6;219,6;OFFICINA BONATO SNC DI BONATO ANDREA E DIEGO & C.;ZDE3D008A5;29/11/2023;5720;2;908;1;Spese correnti;3;Acquisto di beni e servizi;2;Acquisto di servizi;9;Manutenzione ordinaria e riparazioni;12;Manutenzione ordinaria e riparazioni di terreni e beni materiali non prodotti;01/12/2023
3638;1;9999999;3.602,00;3.602,00;OMESSO NOMINATIVO NEL RISPETTO DELLA NORMATIVA SULLA PROTEZIONE DATI PERSONALI;ZC63BAD13E;29/11/2023;7433;0;564;1;Spese correnti;3;Acquisto di beni e servizi;2;Acquisto di servizi;99;Altri servizi;9;Acquisto di sevizi per verde e arredo urbano;01/12/2023
3640;1;9999999;68,99;68,99;D.M.P. DALLA MORA PREFABBRICATI S.R.L.;Z2C3CFB173;01/12/2023;1300;0;888;1;Spese correnti;3;Acquisto di beni e servizi;1;Acquisto di beni;2;Altri beni di consumo;999;Altri beni e materiali di consumo n.a.c.;05/12/2023
3641;1;9999999;504,77;504,77;POSTE ITALIANE SPA;ZCE3502180;01/12/2023;1793;0;288;1;Spese correnti;3;Acquisto di beni e servizi;2;Acquisto di servizi;16;Servizi amministrativi;2;Spese postali;05/12/2023
3642;1;9999999;-124,15;557,37;VERITAS  S.P.A.; ;01/12/2023;1801;0;203;1;Spese correnti;3;Acquisto di beni e servizi;2;Acquisto di servizi;5;Utenze e canoni;5;Acqua;05/12/2023
3642;2;9999999;19,27;557,37;VERITAS  S.P.A.; ;01/12/2023;1801;0;203;1;Spese correnti;3;Acquisto di beni e servizi;2;Acquisto di servizi;5;Utenze e canoni;5;Acqua;05/12/2023
3642;3;9999999;74,73;557,37;VERITAS  S.P.A.; ;01/12/2023;1801;0;203;1;Spese correnti;3;Acquisto di beni e servizi;2;Acquisto di servizi;5;Utenze e canoni;5;Acqua;05/12/2023
3642;4;9999999;93,22;557,37;VERITAS  S.P.A.; ;01/12/2023;1801;0;203;1;Spese correnti;3;Acquisto di beni e servizi;2;Acquisto di servizi;5;Utenze e canoni;5;Acqua;05/12/2023
3642;5;9999999;494,3;557,37;VERITAS  S.P.A.; ;01/12/2023;1801;0;203;1;Spese correnti;3;Acquisto di beni e servizi;2;Acquisto di servizi;5;Utenze e canoni;5;Acqua;05/12/2023
3643;1;9999999;13,52;13,52;VERITAS  S.P.A.; ;01/12/2023;2790;0;222;1;Spese correnti;3;Acquisto di beni e servizi;2;Acquisto di servizi;5;Utenze e canoni;5;Acqua;05/12/2023
3644;1;9999999;280,46;280,46;VERITAS  S.P.A.; ;01/12/2023;2792;0;223;1;Spese correnti;3;Acquisto di beni e servizi;2;Acquisto di servizi;5;Utenze e canoni;5;Acqua;05/12/2023
3645;1;9999999;13,58;2.227,18;VERITAS  S.P.A.; ;01/12/2023;2973;0;224;1;Spese correnti;3;Acquisto di beni e servizi;2;Acquisto di servizi;5;Utenze e canoni;5;Acqua;05/12/2023
3645;2;9999999;42,16;2.227,18;VERITAS  S.P.A.; ;01/12/2023;2973;0;224;1;Spese correnti;3;Acquisto di beni e servizi;2;Acquisto di servizi;5;Utenze e canoni;5;Acqua;05/12/2023
3645;3;9999999;52,21;2.227,18;VERITAS  S.P.A.; ;01/12/2023;2973;0;224;1;Spese correnti;3;Acquisto di beni e servizi;2;Acquisto di servizi;5;Utenze e canoni;5;Acqua;05/12/2023
3645;4;9999999;52,21;2.227,18;VERITAS  S.P.A.; ;01/12/2023;2973;0;224;1;Spese correnti;3;Acquisto di beni e servizi;2;Acquisto di servizi;5;Utenze e canoni;5;Acqua;05/12/2023
3645;5;9999999;52,21;2.227,18;VERITAS  S.P.A.; ;01/12/2023;2973;0;224;1;Spese correnti;3;Acquisto di beni e servizi;2;Acquisto di servizi;5;Utenze e canoni;5;Acqua;05/12/2023
3645;6;9999999;52,21;2.227,18;VERITAS  S.P.A.; ;01/12/2023;2973;0;224;1;Spese correnti;3;Acquisto di beni e servizi;2;Acquisto di servizi;5;Utenze e canoni;5;Acqua;05/12/2023
3645;7;9999999;52,21;2.227,18;VERITAS  S.P.A.; ;01/12/2023;2973;0;224;1;Spese correnti;3;Acquisto di beni e servizi;2;Acquisto di servizi;5;Utenze e canoni;5;Acqua;05/12/2023
3645;8;9999999;71,73;2.227,18;VERITAS  S.P.A.; ;01/12/2023;2973;0;224;1;Spese correnti;3;Acquisto di beni e servizi;2;Acquisto di servizi;5;Utenze e canoni;5;Acqua;05/12/2023
3645;9;9999999;135,37;2.227,18;VERITAS  S.P.A.; ;01/12/2023;2973;0;224;1;Spese correnti;3;Acquisto di beni e servizi;2;Acquisto di servizi;5;Utenze e canoni;5;Acqua;05/12/2023
3645;10;9999999;423,68;2.227,18;VERITAS  S.P.A.; ;01/12/2023;2973;0;224;1;Spese correnti;3;Acquisto di beni e servizi;2;Acquisto di servizi;5;Utenze e canoni;5;Acqua;05/12/2023
3645;11;9999999;1.279,61;2.227,18;VERITAS  S.P.A.; ;01/12/2023;2973;0;224;1;Spese correnti;3;Acquisto di beni e servizi;2;Acquisto di servizi;5;Utenze e canoni;5;Acqua;05/12/2023
3646;1;9999999;39,4;91,61;VERITAS  S.P.A.; ;01/12/2023;4020;0;204;1;Spese correnti;3;Acquisto di beni e servizi;2;Acquisto di servizi;5;Utenze e canoni;5;Acqua;05/12/2023
3646;2;9999999;52,21;91,61;VERITAS  S.P.A.; ;01/12/2023;4020;0;204;1;Spese correnti;3;Acquisto di beni e servizi;2;Acquisto di servizi;5;Utenze e canoni;5;Acqua;05/12/2023
3647;1;9999999;201,94;201,94;VERITAS  S.P.A.; ;01/12/2023;4527;0;225;1;Spese correnti;3;Acquisto di beni e servizi;2;Acquisto di servizi;5;Utenze e canoni;5;Acqua;05/12/2023
3648;1;9999999;82,24;82,24;VERITAS  S.P.A.; ;01/12/2023;5051;0;205;1;Spese correnti;3;Acquisto di beni e servizi;2;Acquisto di servizi;5;Utenze e canoni;5;Acqua;05/12/2023
3649;1;9999999;1.806,10;1.806,10;D.M.P. DALLA MORA PREFABBRICATI S.R.L.;Z2C3CFB173;01/12/2023;5620;2;887;1;Spese correnti;3;Acquisto di beni e servizi;1;Acquisto di beni;2;Altri beni di consumo;999;Altri beni e materiali di consumo n.a.c.;05/12/2023
3650;1;9999999;7,97;259,6;VERITAS  S.P.A.; ;01/12/2023;6461;0;226;1;Spese correnti;3;Acquisto di beni e servizi;2;Acquisto di servizi;5;Utenze e canoni;5;Acqua;05/12/2023
3650;2;9999999;12,52;259,6;VERITAS  S.P.A.; ;01/12/2023;6461;0;226;1;Spese correnti;3;Acquisto di beni e servizi;2;Acquisto di servizi;5;Utenze e canoni;5;Acqua;05/12/2023
3650;3;9999999;36,6;259,6;VERITAS  S.P.A.; ;01/12/2023;6461;0;226;1;Spese correnti;3;Acquisto di beni e servizi;2;Acquisto di servizi;5;Utenze e canoni;5;Acqua;05/12/2023
3650;4;9999999;202,51;259,6;VERITAS  S.P.A.; ;01/12/2023;6461;0;226;1;Spese correnti;3;Acquisto di beni e servizi;2;Acquisto di servizi;5;Utenze e canoni;5;Acqua;05/12/2023
3651;1;9999999;6,03;217,45;VERITAS  S.P.A.; ;01/12/2023;6905;0;206;1;Spese correnti;3;Acquisto di beni e servizi;2;Acquisto di servizi;5;Utenze e canoni;5;Acqua;05/12/2023
3651;2;9999999;11,72;217,45;VERITAS  S.P.A.; ;01/12/2023;6905;0;206;1;Spese correnti;3;Acquisto di beni e servizi;2;Acquisto di servizi;5;Utenze e canoni;5;Acqua;05/12/2023
3651;3;9999999;12,51;217,45;VERITAS  S.P.A.; ;01/12/2023;6905;0;206;1;Spese correnti;3;Acquisto di beni e servizi;2;Acquisto di servizi;5;Utenze e canoni;5;Acqua;05/12/2023
3651;4;9999999;15,61;217,45;VERITAS  S.P.A.; ;01/12/2023;6905;0;206;1;Spese correnti;3;Acquisto di beni e servizi;2;Acquisto di servizi;5;Utenze e canoni;5;Acqua;05/12/2023
3651;5;9999999;16,49;217,45;VERITAS  S.P.A.; ;01/12/2023;6905;0;206;1;Spese correnti;3;Acquisto di beni e servizi;2;Acquisto di servizi;5;Utenze e canoni;5;Acqua;05/12/2023
3651;6;9999999;17,36;217,45;VERITAS  S.P.A.; ;01/12/2023;6905;0;206;1;Spese correnti;3;Acquisto di beni e servizi;2;Acquisto di servizi;5;Utenze e canoni;5;Acqua;05/12/2023
3651;7;9999999;17,46;217,45;VERITAS  S.P.A.; ;01/12/2023;6905;0;206;1;Spese correnti;3;Acquisto di beni e servizi;2;Acquisto di servizi;5;Utenze e canoni;5;Acqua;05/12/2023
3651;8;9999999;17,5;217,45;VERITAS  S.P.A.; ;01/12/2023;6905;0;206;1;Spese correnti;3;Acquisto di beni e servizi;2;Acquisto di servizi;5;Utenze e canoni;5;Acqua;05/12/2023
3651;9;9999999;23,74;217,45;VERITAS  S.P.A.; ;01/12/2023;6905;0;206;1;Spese correnti;3;Acquisto di beni e servizi;2;Acquisto di servizi;5;Utenze e canoni;5;Acqua;05/12/2023
3651;10;9999999;24,54;217,45;VERITAS  S.P.A.; ;01/12/2023;6905;0;206;1;Spese correnti;3;Acquisto di beni e servizi;2;Acquisto di servizi;5;Utenze e canoni;5;Acqua;05/12/2023
3651;11;9999999;54,49;217,45;VERITAS  S.P.A.; ;01/12/2023;6905;0;206;1;Spese correnti;3;Acquisto di beni e servizi;2;Acquisto di servizi;5;Utenze e canoni;5;Acqua;05/12/2023
3652;1;9999999;163,9;163,9;VENETO AGRICOLTURA - AGENZIA VENETA PER L'INNOVAZIONE NEL SETTORE PRIMARIO;Z4F3CEEA0B;01/12/2023;7412;0;909;1;Spese correnti;3;Acquisto di beni e servizi;1;Acquisto di beni;2;Altri beni di consumo;7;Altri materiali tecnico-specialistici non sanitari;05/12/2023
3653;1;9999999;-83,89;126,2;VERITAS  S.P.A.; ;01/12/2023;7431;0;207;1;Spese correnti;3;Acquisto di beni e servizi;2;Acquisto di servizi;5;Utenze e canoni;5;Acqua;05/12/2023
3653;2;9999999;7,93;126,2;VERITAS  S.P.A.; ;01/12/2023;7431;0;207;1;Spese correnti;3;Acquisto di beni e servizi;2;Acquisto di servizi;5;Utenze e canoni;5;Acqua;05/12/2023
3653;3;9999999;10,01;126,2;VERITAS  S.P.A.; ;01/12/2023;7431;0;207;1;Spese correnti;3;Acquisto di beni e servizi;2;Acquisto di servizi;5;Utenze e canoni;5;Acqua;05/12/2023
3653;4;9999999;14,11;126,2;VERITAS  S.P.A.; ;01/12/2023;7431;0;207;1;Spese correnti;3;Acquisto di beni e servizi;2;Acquisto di servizi;5;Utenze e canoni;5;Acqua;05/12/2023
3653;5;9999999;70,92;126,2;VERITAS  S.P.A.; ;01/12/2023;7431;0;207;1;Spese correnti;3;Acquisto di beni e servizi;2;Acquisto di servizi;5;Utenze e canoni;5;Acqua;05/12/2023
3653;6;9999999;107,12;126,2;VERITAS  S.P.A.; ;01/12/2023;7431;0;207;1;Spese correnti;3;Acquisto di beni e servizi;2;Acquisto di servizi;5;Utenze e canoni;5;Acqua;05/12/2023
3654;1;9999999;9,01;195,99;VERITAS  S.P.A.; ;01/12/2023;7552;1;227;1;Spese correnti;3;Acquisto di beni e servizi;2;Acquisto di servizi;5;Utenze e canoni;5;Acqua;05/12/2023
3654;2;9999999;186,98;195,99;VERITAS  S.P.A.; ;01/12/2023;7552;1;227;1;Spese correnti;3;Acquisto di beni e servizi;2;Acquisto di servizi;5;Utenze e canoni;5;Acqua;05/12/2023
3655;1;9999999;4.992,87;4.992,87;ING.PIVETTA RENZO;9187110302;01/12/2023;11302;3;1380;2;Spese in conto capitale;2;Investimenti fissi lordi e acquisto di terreni;1;Beni materiali;9;Beni immobili;19;Fabbricati ad uso strumentale;05/12/2023
3657;1;9999999;3.999,99;3.999,99;PULITORI ED AFFINI SPA;87752258BF;01/12/2023;1794;0;656;1;Spese correnti;3;Acquisto di beni e servizi;2;Acquisto di servizi;13;Servizi ausiliari per il funzionamento dell'ente;2;Servizi di pulizia e lavanderia;05/12/2023
3658;1;9999999;1.002,00;1.002,00;CAMPIGOTTO DAVID;Z133D3540A;01/12/2023;7433;0;926;1;Spese correnti;3;Acquisto di beni e servizi;2;Acquisto di servizi;99;Altri servizi;9;Acquisto di sevizi per verde e arredo urbano;05/12/2023
3659;1;9999999;6.710,00;6.710,00;BISETTO ANDREA;Z6C3D75902;01/12/2023;13451;0;976;2;Spese in conto capitale;2;Investimenti fissi lordi e acquisto di terreni;1;Beni materiali;9;Beni immobili;3;Fabbricati ad uso scolastico;05/12/2023
3660;1;9999999;4.214,00;4.214,00;BISETTO ANDREA;Z6C3D75902;01/12/2023;13451;1;977;2;Spese in conto capitale;2;Investimenti fissi lordi e acquisto di terreni;1;Beni materiali;9;Beni immobili;3;Fabbricati ad uso scolastico;05/12/2023
3661;1;9999999;8.840,00;8.840,00;BISETTO ANDREA;Z6C3D75902;01/12/2023;15010;0;978;2;Spese in conto capitale;2;Investimenti fissi lordi e acquisto di terreni;1;Beni materiali;9;Beni immobili;16;Impianti sportivi;05/12/2023
3662;1;9999999;5.559,54;5.559,54;COSTRUZIONI ROSSETTO SAS DI ROSSETTO IRENO;A00D1452A9;01/12/2023;13452;1;736;2;Spese in conto capitale;2;Investimenti fissi lordi e acquisto di terreni;1;Beni materiali;9;Beni immobili;3;Fabbricati ad uso scolastico;05/12/2023
3663;1;9999999;20.341,86;20.341,86;COSTRUZIONI ROSSETTO SAS DI ROSSETTO IRENO;A00D1452A9;01/12/2023;13452;3;738;2;Spese in conto capitale;2;Investimenti fissi lordi e acquisto di terreni;1;Beni materiali;9;Beni immobili;3;Fabbricati ad uso scolastico;05/12/2023
3664;1;9999999;2.605,85;2.605,85;COSTRUZIONI ROSSETTO SAS DI ROSSETTO IRENO;A00D1452A9;01/12/2023;13452;4;739;2;Spese in conto capitale;2;Investimenti fissi lordi e acquisto di terreni;1;Beni materiali;9;Beni immobili;3;Fabbricati ad uso scolastico;05/12/2023
3665;1;9999999;399;399;OMESSO NOMINATIVO NEL RISPETTO DELLA NORMATIVA SULLA PROTEZIONE DATI PERSONALI; ;01/12/2023;7562;0;1000;1;Spese correnti;4;Trasferimenti correnti;2;Trasferimenti correnti a Famiglie;5;Altri trasferimenti a famiglie;999;Altri trasferimenti a famiglie n.a.c.;05/12/2023
3666;1;9999999;112,2;112,2;OMESSO NOMINATIVO NEL RISPETTO DELLA NORMATIVA SULLA PROTEZIONE DATI PERSONALI; ;01/12/2023;7562;0;1000;1;Spese correnti;4;Trasferimenti correnti;2;Trasferimenti correnti a Famiglie;5;Altri trasferimenti a famiglie;999;Altri trasferimenti a famiglie n.a.c.;05/12/2023
3667;1;9999999;44,4;44,4;OMESSO NOMINATIVO NEL RISPETTO DELLA NORMATIVA SULLA PROTEZIONE DATI PERSONALI; ;01/12/2023;7562;0;1000;1;Spese correnti;4;Trasferimenti correnti;2;Trasferimenti correnti a Famiglie;5;Altri trasferimenti a famiglie;999;Altri trasferimenti a famiglie n.a.c.;05/12/2023
3668;1;9999999;120;120;OMESSO NOMINATIVO NEL RISPETTO DELLA NORMATIVA SULLA PROTEZIONE DATI PERSONALI; ;01/12/2023;7562;0;1000;1;Spese correnti;4;Trasferimenti correnti;2;Trasferimenti correnti a Famiglie;5;Altri trasferimenti a famiglie;999;Altri trasferimenti a famiglie n.a.c.;05/12/2023
3669;1;9999999;49,5;49,5;OMESSO NOMINATIVO NEL RISPETTO DELLA NORMATIVA SULLA PROTEZIONE DATI PERSONALI; ;01/12/2023;7562;0;1000;1;Spese correnti;4;Trasferimenti correnti;2;Trasferimenti correnti a Famiglie;5;Altri trasferimenti a famiglie;999;Altri trasferimenti a famiglie n.a.c.;05/12/2023
3670;1;9999999;216,2;216,2;OMESSO NOMINATIVO NEL RISPETTO DELLA NORMATIVA SULLA PROTEZIONE DATI PERSONALI; ;01/12/2023;7562;0;1000;1;Spese correnti;4;Trasferimenti correnti;2;Trasferimenti correnti a Famiglie;5;Altri trasferimenti a famiglie;999;Altri trasferimenti a famiglie n.a.c.;05/12/2023
3671;1;9999999;225,2;225,2;OMESSO NOMINATIVO NEL RISPETTO DELLA NORMATIVA SULLA PROTEZIONE DATI PERSONALI; ;01/12/2023;7562;0;1000;1;Spese correnti;4;Trasferimenti correnti;2;Trasferimenti correnti a Famiglie;5;Altri trasferimenti a famiglie;999;Altri trasferimenti a famiglie n.a.c.;05/12/2023
3672;1;9999999;108;108;OMESSO NOMINATIVO NEL RISPETTO DELLA NORMATIVA SULLA PROTEZIONE DATI PERSONALI; ;01/12/2023;7562;0;1000;1;Spese correnti;4;Trasferimenti correnti;2;Trasferimenti correnti a Famiglie;5;Altri trasferimenti a famiglie;999;Altri trasferimenti a famiglie n.a.c.;05/12/2023
3673;1;9999999;156;156;OMESSO NOMINATIVO NEL RISPETTO DELLA NORMATIVA SULLA PROTEZIONE DATI PERSONALI; ;01/12/2023;7562;0;1000;1;Spese correnti;4;Trasferimenti correnti;2;Trasferimenti correnti a Famiglie;5;Altri trasferimenti a famiglie;999;Altri trasferimenti a famiglie n.a.c.;05/12/2023
3674;1;9999999;84;84;OMESSO NOMINATIVO NEL RISPETTO DELLA NORMATIVA SULLA PROTEZIONE DATI PERSONALI; ;01/12/2023;7562;0;1000;1;Spese correnti;4;Trasferimenti correnti;2;Trasferimenti correnti a Famiglie;5;Altri trasferimenti a famiglie;999;Altri trasferimenti a famiglie n.a.c.;05/12/2023
3675;1;9999999;333;333;OMESSO NOMINATIVO NEL RISPETTO DELLA NORMATIVA SULLA PROTEZIONE DATI PERSONALI; ;01/12/2023;7562;0;1000;1;Spese correnti;4;Trasferimenti correnti;2;Trasferimenti correnti a Famiglie;5;Altri trasferimenti a famiglie;999;Altri trasferimenti a famiglie n.a.c.;05/12/2023
3676;1;9999999;341;341;OMESSO NOMINATIVO NEL RISPETTO DELLA NORMATIVA SULLA PROTEZIONE DATI PERSONALI; ;01/12/2023;7562;0;1000;1;Spese correnti;4;Trasferimenti correnti;2;Trasferimenti correnti a Famiglie;5;Altri trasferimenti a famiglie;999;Altri trasferimenti a famiglie n.a.c.;05/12/2023
3677;1;9999999;246;246;OMESSO NOMINATIVO NEL RISPETTO DELLA NORMATIVA SULLA PROTEZIONE DATI PERSONALI; ;01/12/2023;7562;0;1000;1;Spese correnti;4;Trasferimenti correnti;2;Trasferimenti correnti a Famiglie;5;Altri trasferimenti a famiglie;999;Altri trasferimenti a famiglie n.a.c.;05/12/2023
3678;1;9999999;339,2;339,2;OMESSO NOMINATIVO NEL RISPETTO DELLA NORMATIVA SULLA PROTEZIONE DATI PERSONALI; ;01/12/2023;7562;0;1000;1;Spese correnti;4;Trasferimenti correnti;2;Trasferimenti correnti a Famiglie;5;Altri trasferimenti a famiglie;999;Altri trasferimenti a famiglie n.a.c.;05/12/2023
3679;1;9999999;270;270;OMESSO NOMINATIVO NEL RISPETTO DELLA NORMATIVA SULLA PROTEZIONE DATI PERSONALI; ;01/12/2023;7562;0;1000;1;Spese correnti;4;Trasferimenti correnti;2;Trasferimenti correnti a Famiglie;5;Altri trasferimenti a famiglie;999;Altri trasferimenti a famiglie n.a.c.;05/12/2023
3680;1;9999999;215,2;215,2;OMESSO NOMINATIVO NEL RISPETTO DELLA NORMATIVA SULLA PROTEZIONE DATI PERSONALI; ;01/12/2023;7562;0;1000;1;Spese correnti;4;Trasferimenti correnti;2;Trasferimenti correnti a Famiglie;5;Altri trasferimenti a famiglie;999;Altri trasferimenti a famiglie n.a.c.;05/12/2023
3681;1;9999999;178;178;OMESSO NOMINATIVO NEL RISPETTO DELLA NORMATIVA SULLA PROTEZIONE DATI PERSONALI; ;01/12/2023;7562;0;1000;1;Spese correnti;4;Trasferimenti correnti;2;Trasferimenti correnti a Famiglie;5;Altri trasferimenti a famiglie;999;Altri trasferimenti a famiglie n.a.c.;05/12/2023
3682;1;9999999;115,8;115,8;OMESSO NOMINATIVO NEL RISPETTO DELLA NORMATIVA SULLA PROTEZIONE DATI PERSONALI; ;01/12/2023;7562;0;1000;1;Spese correnti;4;Trasferimenti correnti;2;Trasferimenti correnti a Famiglie;5;Altri trasferimenti a famiglie;999;Altri trasferimenti a famiglie n.a.c.;05/12/2023
3683;1;9999999;35,59;35,59;OMESSO NOMINATIVO NEL RISPETTO DELLA NORMATIVA SULLA PROTEZIONE DATI PERSONALI; ;01/12/2023;7562;0;1000;1;Spese correnti;4;Trasferimenti correnti;2;Trasferimenti correnti a Famiglie;5;Altri trasferimenti a famiglie;999;Altri trasferimenti a famiglie n.a.c.;05/12/2023
3684;1;9999999;299,66;299,66;OMESSO NOMINATIVO NEL RISPETTO DELLA NORMATIVA SULLA PROTEZIONE DATI PERSONALI; ;01/12/2023;7563;2;1001;1;Spese correnti;4;Trasferimenti correnti;2;Trasferimenti correnti a Famiglie;5;Altri trasferimenti a famiglie;999;Altri trasferimenti a famiglie n.a.c.;05/12/2023
3685;1;9999999;131,7;131,7;OMESSO NOMINATIVO NEL RISPETTO DELLA NORMATIVA SULLA PROTEZIONE DATI PERSONALI; ;01/12/2023;7563;2;1001;1;Spese correnti;4;Trasferimenti correnti;2;Trasferimenti correnti a Famiglie;5;Altri trasferimenti a famiglie;999;Altri trasferimenti a famiglie n.a.c.;05/12/2023
3686;1;9999999;33;33;OMESSO NOMINATIVO NEL RISPETTO DELLA NORMATIVA SULLA PROTEZIONE DATI PERSONALI; ;01/12/2023;7563;2;1001;1;Spese correnti;4;Trasferimenti correnti;2;Trasferimenti correnti a Famiglie;5;Altri trasferimenti a famiglie;999;Altri trasferimenti a famiglie n.a.c.;05/12/2023
3687;1;9999999;88;88;OMESSO NOMINATIVO NEL RISPETTO DELLA NORMATIVA SULLA PROTEZIONE DATI PERSONALI; ;01/12/2023;7563;2;1001;1;Spese correnti;4;Trasferimenti correnti;2;Trasferimenti correnti a Famiglie;5;Altri trasferimenti a famiglie;999;Altri trasferimenti a famiglie n.a.c.;05/12/2023
3688;1;9999999;90;90;OMESSO NOMINATIVO NEL RISPETTO DELLA NORMATIVA SULLA PROTEZIONE DATI PERSONALI; ;01/12/2023;7563;2;1001;1;Spese correnti;4;Trasferimenti correnti;2;Trasferimenti correnti a Famiglie;5;Altri trasferimenti a famiglie;999;Altri trasferimenti a famiglie n.a.c.;05/12/2023
3689;1;9999999;240;240;OMESSO NOMINATIVO NEL RISPETTO DELLA NORMATIVA SULLA PROTEZIONE DATI PERSONALI; ;01/12/2023;7563;2;1001;1;Spese correnti;4;Trasferimenti correnti;2;Trasferimenti correnti a Famiglie;5;Altri trasferimenti a famiglie;999;Altri trasferimenti a famiglie n.a.c.;05/12/2023
3690;1;9999999;138,4;138,4;OMESSO NOMINATIVO NEL RISPETTO DELLA NORMATIVA SULLA PROTEZIONE DATI PERSONALI; ;01/12/2023;7563;2;1001;1;Spese correnti;4;Trasferimenti correnti;2;Trasferimenti correnti a Famiglie;5;Altri trasferimenti a famiglie;999;Altri trasferimenti a famiglie n.a.c.;05/12/2023
3691;1;9999999;276;276;OMESSO NOMINATIVO NEL RISPETTO DELLA NORMATIVA SULLA PROTEZIONE DATI PERSONALI; ;01/12/2023;7563;2;1001;1;Spese correnti;4;Trasferimenti correnti;2;Trasferimenti correnti a Famiglie;5;Altri trasferimenti a famiglie;999;Altri trasferimenti a famiglie n.a.c.;05/12/2023
3692;1;9999999;105;105;OMESSO NOMINATIVO NEL RISPETTO DELLA NORMATIVA SULLA PROTEZIONE DATI PERSONALI; ;01/12/2023;7563;2;1001;1;Spese correnti;4;Trasferimenti correnti;2;Trasferimenti correnti a Famiglie;5;Altri trasferimenti a famiglie;999;Altri trasferimenti a famiglie n.a.c.;05/12/2023
3693;1;9999999;96;96;OMESSO NOMINATIVO NEL RISPETTO DELLA NORMATIVA SULLA PROTEZIONE DATI PERSONALI; ;01/12/2023;7563;2;1001;1;Spese correnti;4;Trasferimenti correnti;2;Trasferimenti correnti a Famiglie;5;Altri trasferimenti a famiglie;999;Altri trasferimenti a famiglie n.a.c.;05/12/2023
3694;1;9999999;61,5;61,5;OMESSO NOMINATIVO NEL RISPETTO DELLA NORMATIVA SULLA PROTEZIONE DATI PERSONALI; ;01/12/2023;7563;2;1001;1;Spese correnti;4;Trasferimenti correnti;2;Trasferimenti correnti a Famiglie;5;Altri trasferimenti a famiglie;999;Altri trasferimenti a famiglie n.a.c.;05/12/2023
3695;1;9999999;120;120;OMESSO NOMINATIVO NEL RISPETTO DELLA NORMATIVA SULLA PROTEZIONE DATI PERSONALI; ;01/12/2023;7563;2;1001;1;Spese correnti;4;Trasferimenti correnti;2;Trasferimenti correnti a Famiglie;5;Altri trasferimenti a famiglie;999;Altri trasferimenti a famiglie n.a.c.;05/12/2023
3696;1;9999999;39;39;OMESSO NOMINATIVO NEL RISPETTO DELLA NORMATIVA SULLA PROTEZIONE DATI PERSONALI; ;01/12/2023;7563;2;1001;1;Spese correnti;4;Trasferimenti correnti;2;Trasferimenti correnti a Famiglie;5;Altri trasferimenti a famiglie;999;Altri trasferimenti a famiglie n.a.c.;05/12/2023
3697;1;9999999;533;533;OMESSO NOMINATIVO NEL RISPETTO DELLA NORMATIVA SULLA PROTEZIONE DATI PERSONALI; ;01/12/2023;7563;2;1001;1;Spese correnti;4;Trasferimenti correnti;2;Trasferimenti correnti a Famiglie;5;Altri trasferimenti a famiglie;999;Altri trasferimenti a famiglie n.a.c.;05/12/2023
3698;1;9999999;172,3;172,3;OMESSO NOMINATIVO NEL RISPETTO DELLA NORMATIVA SULLA PROTEZIONE DATI PERSONALI; ;01/12/2023;7563;2;1001;1;Spese correnti;4;Trasferimenti correnti;2;Trasferimenti correnti a Famiglie;5;Altri trasferimenti a famiglie;999;Altri trasferimenti a famiglie n.a.c.;05/12/2023
3699;1;9999999;37,5;37,5;OMESSO NOMINATIVO NEL RISPETTO DELLA NORMATIVA SULLA PROTEZIONE DATI PERSONALI; ;01/12/2023;7563;2;1001;1;Spese correnti;4;Trasferimenti correnti;2;Trasferimenti correnti a Famiglie;5;Altri trasferimenti a famiglie;999;Altri trasferimenti a famiglie n.a.c.;05/12/2023
3700;1;9999999;100,95;100,95;OMESSO NOMINATIVO NEL RISPETTO DELLA NORMATIVA SULLA PROTEZIONE DATI PERSONALI; ;01/12/2023;7563;2;1001;1;Spese correnti;4;Trasferimenti correnti;2;Trasferimenti correnti a Famiglie;5;Altri trasferimenti a famiglie;999;Altri trasferimenti a famiglie n.a.c.;05/12/2023
3701;1;9999999;235,44;235,44;OMESSO NOMINATIVO NEL RISPETTO DELLA NORMATIVA SULLA PROTEZIONE DATI PERSONALI; ;01/12/2023;7563;2;1001;1;Spese correnti;4;Trasferimenti correnti;2;Trasferimenti correnti a Famiglie;5;Altri trasferimenti a famiglie;999;Altri trasferimenti a famiglie n.a.c.;05/12/2023
3702;1;9999999;285;285;OMESSO NOMINATIVO NEL RISPETTO DELLA NORMATIVA SULLA PROTEZIONE DATI PERSONALI; ;01/12/2023;7563;2;1001;1;Spese correnti;4;Trasferimenti correnti;2;Trasferimenti correnti a Famiglie;5;Altri trasferimenti a famiglie;999;Altri trasferimenti a famiglie n.a.c.;05/12/2023
3703;1;9999999;77,1;77,1;OMESSO NOMINATIVO NEL RISPETTO DELLA NORMATIVA SULLA PROTEZIONE DATI PERSONALI; ;01/12/2023;7563;2;1001;1;Spese correnti;4;Trasferimenti correnti;2;Trasferimenti correnti a Famiglie;5;Altri trasferimenti a famiglie;999;Altri trasferimenti a famiglie n.a.c.;05/12/2023
3704;1;9999999;34,5;34,5;OMESSO NOMINATIVO NEL RISPETTO DELLA NORMATIVA SULLA PROTEZIONE DATI PERSONALI; ;01/12/2023;7563;2;1001;1;Spese correnti;4;Trasferimenti correnti;2;Trasferimenti correnti a Famiglie;5;Altri trasferimenti a famiglie;999;Altri trasferimenti a famiglie n.a.c.;05/12/2023
3705;1;9999999;37,5;37,5;OMESSO NOMINATIVO NEL RISPETTO DELLA NORMATIVA SULLA PROTEZIONE DATI PERSONALI; ;01/12/2023;7563;2;1001;1;Spese correnti;4;Trasferimenti correnti;2;Trasferimenti correnti a Famiglie;5;Altri trasferimenti a famiglie;999;Altri trasferimenti a famiglie n.a.c.;05/12/2023
3706;1;9999999;280,4;280,4;OMESSO NOMINATIVO NEL RISPETTO DELLA NORMATIVA SULLA PROTEZIONE DATI PERSONALI; ;04/12/2023;7563;2;1001;1;Spese correnti;4;Trasferimenti correnti;2;Trasferimenti correnti a Famiglie;5;Altri trasferimenti a famiglie;999;Altri trasferimenti a famiglie n.a.c.;06/12/2023
3707;1;9999999;90;90;OMESSO NOMINATIVO NEL RISPETTO DELLA NORMATIVA SULLA PROTEZIONE DATI PERSONALI; ;04/12/2023;7563;2;1001;1;Spese correnti;4;Trasferimenti correnti;2;Trasferimenti correnti a Famiglie;5;Altri trasferimenti a famiglie;999;Altri trasferimenti a famiglie n.a.c.;06/12/2023
3708;1;9999999;168;168;OMESSO NOMINATIVO NEL RISPETTO DELLA NORMATIVA SULLA PROTEZIONE DATI PERSONALI; ;04/12/2023;7563;2;1001;1;Spese correnti;4;Trasferimenti correnti;2;Trasferimenti correnti a Famiglie;5;Altri trasferimenti a famiglie;999;Altri trasferimenti a famiglie n.a.c.;06/12/2023
3709;1;9999999;79,65;79,65;OMESSO NOMINATIVO NEL RISPETTO DELLA NORMATIVA SULLA PROTEZIONE DATI PERSONALI; ;04/12/2023;7563;2;1001;1;Spese correnti;4;Trasferimenti correnti;2;Trasferimenti correnti a Famiglie;5;Altri trasferimenti a famiglie;999;Altri trasferimenti a famiglie n.a.c.;06/12/2023
